FIN.POSTING DATE,FIN.ACCOUNTING CODE 02 VALUE,FIN.ACCOUNTING CODE 02 DESCRIPTION,MCH.MERCHANT CATEGORY CODE (MCC),MCH.MERCHANT NAME - ORIGINAL,MCH.MCC DESCRIPTION,FIN.TRANSACTION AMOUNT
24/08/2023,10379,CHILDREN?S CRISIS INTERVENTION TEAM,5137,SCHOOLWEAR SHOP,MEN'S/WOMEN'S/CHILDREN'S UNIFORMS/COMMERCIAL CLOTH,118.94
24/08/2023,10225,HOUSING - B&B ACCOMMODATION,3811,PREMIER INN,PREMIER INN,493.5
24/08/2023,11928,COMMUNITY SUPPORT GRANTS,5999,AMZ WILSON BEDS LTD,MISCELLANEOUS AND SPECIALTY RETAIL STORES,-48.49
24/08/2023,10029,COOMBE,7991,COOMBE COUNTRY PARK,TOURIST ATTRACTIONS AND EXHIBITS,2
24/08/2023,11135,YOUTH OFFENDING SERVICE,8299,TRAINING AT WORK GROUP,SCHOOLS & EDUCATIONAL SVC-NOT ELSEWHERE CLASSIFIED,74.52
24/08/2023,11464,DSG - FAMILY HUB BUDGET,7523,COVENTRY CITY COUNCIL,AUTOMOBILE PARKING LOTS AND GARAGES,8
24/08/2023,11154,HIGHWAYS: OVERHEAD,5999,AMZNMKTPLACE AMAZON.CO,MISCELLANEOUS AND SPECIALTY RETAIL STORES,8.98
24/08/2023,11507,CARE LEAVERS,9399,HM PASSPORT OFFICE,GOVERNMENT SERVICES-NOT ELSEWHERE CLASSIFIED,82.5
24/08/2023,10416,LAC PERMANENCY,9399,HM PASSPORT OFFICE,GOVERNMENT SERVICES-NOT ELSEWHERE CLASSIFIED,53.5
24/08/2023,11507,CARE LEAVERS,5311,WWW.ARGOS.CO.UK,DEPARTMENT STORES,403
24/08/2023,10672,PUBLIC HEALTH - MIGRATION,5411,ONE BELOW,"GROCERY STORES, SUPERMARKETS",15
24/08/2023,10416,LAC PERMANENCY,4112,TRAINLINE,PASSENGER RAILWAYS,9.77
24/08/2023,11507,CARE LEAVERS,5399,B&M 526 - ANSTY ROAD,MISCELLANEOUS GENERAL MERCHANDISE,200.5
24/08/2023,11507,CARE LEAVERS,9399,HM PASSPORT OFFICE,GOVERNMENT SERVICES-NOT ELSEWHERE CLASSIFIED,82.5
24/08/2023,11507,CARE LEAVERS,9399,WP-WARWICKSHIRE CO,GOVERNMENT SERVICES-NOT ELSEWHERE CLASSIFIED,11
24/08/2023,10416,LAC PERMANENCY,9399,HM PASSPORT OFFICE,GOVERNMENT SERVICES-NOT ELSEWHERE CLASSIFIED,53.5
24/08/2023,11507,CARE LEAVERS,5812,THE BOTANIST COVENTRY,"EATING PLACES, RESTAURANTS",39.6
24/08/2023,11507,CARE LEAVERS,4112,TRAINLINE,PASSENGER RAILWAYS,81.51
24/08/2023,10565,ROUGH SLEEPER AND RAPID HOUSING PATH,5995,WWW.PETSATHOME.COM,PET SHOPS - PET FOODS AND SUPPLIES,29.95
24/08/2023,10565,ROUGH SLEEPER AND RAPID HOUSING PATH,5311,WWW.ARGOS.CO.UK,DEPARTMENT STORES,30
24/08/2023,11135,YOUTH OFFENDING SERVICE,4112,TRAINLINE,PASSENGER RAILWAYS,28.01
24/08/2023,11507,CARE LEAVERS,7523,MIPERMIT,AUTOMOBILE PARKING LOTS AND GARAGES,2.3
24/08/2023,10565,ROUGH SLEEPER AND RAPID HOUSING PATH,5912,TRESSLERS PHARMACY,"DRUG STORES, PHARMACIES",6.68
24/08/2023,10565,ROUGH SLEEPER AND RAPID HOUSING PATH,5311,EBAY O 08-10449-61984,DEPARTMENT STORES,89.1
24/08/2023,11307,IPS MH THE POD,5499,SQ  PETER MAC,"MISC FOOD STORE-CONVENIENCE,MRKT,SPLTY,VENDNG MACS",250
24/08/2023,11826,REPAIR & MAINTENANCE,5331,PAYPAL  ARGOSDIRECT,VARIETY STORES,30
24/08/2023,11865,PUBLIC HEALTH - MIGRATION,9399,WWW.WMCA.CO.UK,GOVERNMENT SERVICES-NOT ELSEWHERE CLASSIFIED,60
24/08/2023,10084,SECTION17 PAYMENTS WEST,4131,WEST MIDLANDS TRAV,BUS LINES,17
24/08/2023,11865,PUBLIC HEALTH - MIGRATION,9399,WWW.WMCA.CO.UK,GOVERNMENT SERVICES-NOT ELSEWHERE CLASSIFIED,30
24/08/2023,11507,CARE LEAVERS,5411,ASDA STORES 4602,"GROCERY STORES, SUPERMARKETS",6
24/08/2023,11826,REPAIR & MAINTENANCE,1520,SUMUP   TIO LTD,GENERAL CONTRACTORS/RESIDENTIAL BUILDINGS,"1,644.00"
24/08/2023,11865,PUBLIC HEALTH - MIGRATION,9399,WWW.WMCA.CO.UK,GOVERNMENT SERVICES-NOT ELSEWHERE CLASSIFIED,30
24/08/2023,10774,FACILITIES & PROPERTY SERVICES,7399,WWW.TOTALACCESS.CO.UK,BUSINESS SERVICES-NOT ELSEWHERE CLASSIFIED,246
24/08/2023,11539,CENTRALISED PROMOTIONS BUDGET,7311,GOOGLE ADS8599866235,ADVERTISING SERVICES,500
24/08/2023,10211,MIGRATION PROJECT B,5310,POUNDLAND LTD - 2017,DISCOUNT STORES,1
24/08/2023,11507,CARE LEAVERS,5499,MARTIN MCCOLL,"MISC FOOD STORE-CONVENIENCE,MRKT,SPLTY,VENDNG MACS",12
24/08/2023,10211,MIGRATION PROJECT B,5411,KALMA FOODS LIMITED,"GROCERY STORES, SUPERMARKETS",70.25
24/08/2023,10226,LORD MAYORS OFFICE,5999,AMZNMKTPLACE,MISCELLANEOUS AND SPECIALTY RETAIL STORES,16.25
24/08/2023,10211,MIGRATION PROJECT B,5970,HOBBYCRAFT,"ARTIST SUPPLY STORES, CRAFT SHOPS",5
24/08/2023,11057,SFPC-FAMILY GROUP CONFERENCING,5411,SKM CONVENIENCE STORE,"GROCERY STORES, SUPERMARKETS",2.14
24/08/2023,10558,FDAC - FAMILY DRUG AND ALCOHOL COURT,9402,POST OFFICE COUNTER,POSTAL SERVICES-GOVERNMENT ONLY,9.15
24/08/2023,11507,CARE LEAVERS,5411,TONBRIDGE INTERNATIONA,"GROCERY STORES, SUPERMARKETS",21.78
24/08/2023,11887,DIRECTOR - PEOPLE,8220,UCLONLINESTORE,"COLLEGES, UNIV, PRO SCHOOLS, JUNIOR COLLEGES",220
24/08/2023,11507,CARE LEAVERS,5411,SAINSBURYS S/MKTS,"GROCERY STORES, SUPERMARKETS",3.45
24/08/2023,11928,COMMUNITY SUPPORT GRANTS,5999,AMZNMKTPLACE AMAZON.CO,MISCELLANEOUS AND SPECIALTY RETAIL STORES,193.92
24/08/2023,11928,COMMUNITY SUPPORT GRANTS,5999,AMZNMKTPLACE AMAZON.CO,MISCELLANEOUS AND SPECIALTY RETAIL STORES,23.87
24/08/2023,11928,COMMUNITY SUPPORT GRANTS,5999,AMZNMKTPLACE AMAZON.CO,MISCELLANEOUS AND SPECIALTY RETAIL STORES,151.96
24/08/2023,11928,COMMUNITY SUPPORT GRANTS,5999,AMZNMKTPLACE AMAZON.CO,MISCELLANEOUS AND SPECIALTY RETAIL STORES,22
24/08/2023,11928,COMMUNITY SUPPORT GRANTS,5999,AMZNMKTPLACE AMAZON.CO,MISCELLANEOUS AND SPECIALTY RETAIL STORES,185.21
24/08/2023,11928,COMMUNITY SUPPORT GRANTS,5999,AMZNMKTPLACE AMAZON.CO,MISCELLANEOUS AND SPECIALTY RETAIL STORES,139.99
24/08/2023,11928,COMMUNITY SUPPORT GRANTS,5999,AMZNMKTPLACE AMAZON.CO,MISCELLANEOUS AND SPECIALTY RETAIL STORES,11.58
24/08/2023,11928,COMMUNITY SUPPORT GRANTS,5999,AMZNMKTPLACE AMAZON.CO,MISCELLANEOUS AND SPECIALTY RETAIL STORES,41.83
24/08/2023,11928,COMMUNITY SUPPORT GRANTS,5999,AMZNMKTPLACE AMAZON.CO,MISCELLANEOUS AND SPECIALTY RETAIL STORES,96.96
24/08/2023,11928,COMMUNITY SUPPORT GRANTS,5999,AMZNMKTPLACE AMAZON.CO,MISCELLANEOUS AND SPECIALTY RETAIL STORES,41.83
24/08/2023,11928,COMMUNITY SUPPORT GRANTS,5999,AMZNMKTPLACE AMAZON.CO,MISCELLANEOUS AND SPECIALTY RETAIL STORES,53.75
24/08/2023,11928,COMMUNITY SUPPORT GRANTS,5999,AMZNMKTPLACE AMAZON.CO,MISCELLANEOUS AND SPECIALTY RETAIL STORES,-13.99
24/08/2023,11928,COMMUNITY SUPPORT GRANTS,5999,AMZNMKTPLACE AMAZON.CO,MISCELLANEOUS AND SPECIALTY RETAIL STORES,15.99
24/08/2023,11928,COMMUNITY SUPPORT GRANTS,5999,AMZNMKTPLACE AMAZON.CO,MISCELLANEOUS AND SPECIALTY RETAIL STORES,75.98
24/08/2023,11928,COMMUNITY SUPPORT GRANTS,5999,AMZNMKTPLACE AMAZON.CO,MISCELLANEOUS AND SPECIALTY RETAIL STORES,41.83
24/08/2023,11928,COMMUNITY SUPPORT GRANTS,5999,AMZNMKTPLACE AMAZON.CO,MISCELLANEOUS AND SPECIALTY RETAIL STORES,63.64
24/08/2023,11928,COMMUNITY SUPPORT GRANTS,5999,AMZNMKTPLACE AMAZON.CO,MISCELLANEOUS AND SPECIALTY RETAIL STORES,48.48
24/08/2023,11928,COMMUNITY SUPPORT GRANTS,5999,AMZNMKTPLACE AMAZON.CO,MISCELLANEOUS AND SPECIALTY RETAIL STORES,37.99
24/08/2023,11928,COMMUNITY SUPPORT GRANTS,5999,AMZNMKTPLACE AMAZON.CO,MISCELLANEOUS AND SPECIALTY RETAIL STORES,71.48
24/08/2023,11928,COMMUNITY SUPPORT GRANTS,5999,AMZNMKTPLACE AMAZON.CO,MISCELLANEOUS AND SPECIALTY RETAIL STORES,90.23
24/08/2023,11381,PUBLIC HEALTH,4131,WEST MIDLAND CARD,BUS LINES,17
24/08/2023,11307,IPS MH THE POD,5499,AL HALAL SUPERMARKET,"MISC FOOD STORE-CONVENIENCE,MRKT,SPLTY,VENDNG MACS",7.98
24/08/2023,11107,CENTRAL FAMILY HUB,5999,AMZNBUSINESS 1F7OL0WW4,MISCELLANEOUS AND SPECIALTY RETAIL STORES,23.44
24/08/2023,10541,COVENTRY EXTENDED LEARNING CENTRE,5999,AMZNMKTPLACE AMAZON.CO,MISCELLANEOUS AND SPECIALTY RETAIL STORES,-43.1
24/08/2023,10676,HOUSING AND HOMELESSNESS,5211,SCREWFIX DIR LTD,"BUILDING MATERIALS, LUMBER STORES",11.49
24/08/2023,11107,CENTRAL FAMILY HUB,5999,AMZNMKTPLACE AMAZON.CO,MISCELLANEOUS AND SPECIALTY RETAIL STORES,0.49
24/08/2023,11049,CREMATORIUM,9399,COVENTRY CITY COUNCIL,GOVERNMENT SERVICES-NOT ELSEWHERE CLASSIFIED,11
24/08/2023,11381,PUBLIC HEALTH,4131,WEST MIDLANDS TRAV,BUS LINES,17
24/08/2023,11507,CARE LEAVERS,7922,LONDON NORTH WESTERN R,"THEATRICAL PRODUCERS(EXCL MOTION PIX),TICKET AGNCY",64.9
24/08/2023,10225,HOUSING - B&B ACCOMMODATION,5712,DUNELM SOFTFURNISHINGS,"EQUIP, FURNITURE, HOME FURNSHNGS STRS (EXCPT APPL)",635
24/08/2023,11307,IPS MH THE POD,5411,SAINSBURYS S MKTS,"GROCERY STORES, SUPERMARKETS",2.1
24/08/2023,10379,CHILDREN?S CRISIS INTERVENTION TEAM,5211,B&Q LTD,"BUILDING MATERIALS, LUMBER STORES",32
24/08/2023,10300,INTERNAL FOSTERING TEAM,9399,HM PASSPORT OFFICE,GOVERNMENT SERVICES-NOT ELSEWHERE CLASSIFIED,82.5
24/08/2023,11507,CARE LEAVERS,7523,WALSGRAVE CAR PARK,AUTOMOBILE PARKING LOTS AND GARAGES,3.6
24/08/2023,10040,IPS HWC COPTHORNE,5411,ICELAND FOODS,"GROCERY STORES, SUPERMARKETS",56.41
24/08/2023,11870,IPS LD WILFRED SPENCER CENTRE,5999,AMZNMKTPLACE AMAZON.CO,MISCELLANEOUS AND SPECIALTY RETAIL STORES,8.98
24/08/2023,11507,CARE LEAVERS,5994,MARKS&SPENCER PLC SF,NEWS DEALERS AND NEWSSTANDS,4.6
24/08/2023,10300,INTERNAL FOSTERING TEAM,9399,HM PASSPORT OFFICE,GOVERNMENT SERVICES-NOT ELSEWHERE CLASSIFIED,82.5
24/08/2023,10040,IPS HWC COPTHORNE,5411,ICELAND FOODS,"GROCERY STORES, SUPERMARKETS",-1.65
24/08/2023,11870,IPS LD WILFRED SPENCER CENTRE,5999,AMZNMKTPLACE AMAZON.CO,MISCELLANEOUS AND SPECIALTY RETAIL STORES,34
24/08/2023,11870,IPS LD WILFRED SPENCER CENTRE,5999,AMZNMKTPLACE AMAZON.CO,MISCELLANEOUS AND SPECIALTY RETAIL STORES,10.99
24/08/2023,11870,IPS LD WILFRED SPENCER CENTRE,5999,AMZNMKTPLACE AMAZON.CO,MISCELLANEOUS AND SPECIALTY RETAIL STORES,22.17
24/08/2023,11307,IPS MH THE POD,5399,SP COMMON THREADS PR,MISCELLANEOUS GENERAL MERCHANDISE,30.4
24/08/2023,11307,IPS MH THE POD,5411,TESCO STORES 2328,"GROCERY STORES, SUPERMARKETS",0.1
24/08/2023,11307,IPS MH THE POD,5411,TESCO STORES 2328,"GROCERY STORES, SUPERMARKETS",2.45
24/08/2023,11507,CARE LEAVERS,4722,BKG HOTEL AT BOOKING.C,TRAVEL AGENCIES AND TOUR OPERATORS,85.5
24/08/2023,11826,REPAIR & MAINTENANCE,5211,TOOLSTATION LTD - COVE,"BUILDING MATERIALS, LUMBER STORES",4.05
24/08/2023,11307,IPS MH THE POD,5411,TESCO STORES 2328,"GROCERY STORES, SUPERMARKETS",2.73
24/08/2023,10288,MEMBERS SERVICES,5999,AMZNBUSINESS 1M8ZA84B4,MISCELLANEOUS AND SPECIALTY RETAIL STORES,115.99
24/08/2023,10687,WEST SOCIAL WORKER CASEHOLDING TEAM,5999,AMZNMKTPLACE,MISCELLANEOUS AND SPECIALTY RETAIL STORES,29.99
24/08/2023,11792,HOUSING AND HOMELESSNESS,5975,NRS HEALTHCARE,"HEARING AIDS-SALES, SERVICE, SUPPLY STORES",31.43
24/08/2023,10225,HOUSING - B&B ACCOMMODATION,3533,IBIS COVENTRY SOUTH,HOTEL IBIS,490
24/08/2023,10084,SECTION17 PAYMENTS WEST,5311,WWW.ARGOS.CO.UK,DEPARTMENT STORES,13.49
24/08/2023,11248,IPS ERIC WILLIAMS HOUSE,5300,GOMPELS HEALTHCARE,WHOLESALE CLUBS,75.52
24/08/2023,10445,SOUTH SOCIAL WORKER CASEHOLDING TEAM,4112,LONDON NW,PASSENGER RAILWAYS,57.7
24/08/2023,10687,WEST SOCIAL WORKER CASEHOLDING TEAM,5999,AMZNMKTPLACE,MISCELLANEOUS AND SPECIALTY RETAIL STORES,26.38
24/08/2023,10291,SECTION17 PAYMENTS CENTRAL,5999,AMZNMKTPLACE,MISCELLANEOUS AND SPECIALTY RETAIL STORES,29.99
24/08/2023,10103,SECTION17 PAYMENTS EAST,5999,AMZNMKTPLACE,MISCELLANEOUS AND SPECIALTY RETAIL STORES,19.98
24/08/2023,11507,CARE LEAVERS,5999,AMZNMKTPLACE AMAZON.CO,MISCELLANEOUS AND SPECIALTY RETAIL STORES,200.97
24/08/2023,11830,HELP & PROTECTION,5940,ALBANY CYCLES LTD,BICYCLE SHOPS-SALES AND SERVICE,25
24/08/2023,10103,SECTION17 PAYMENTS EAST,5999,AMZNMKTPLACE,MISCELLANEOUS AND SPECIALTY RETAIL STORES,29.99
24/08/2023,11307,IPS MH THE POD,5399,ETSY.COM - RACHELROWAN,MISCELLANEOUS GENERAL MERCHANDISE,15.5
24/08/2023,11072,ADULT EDUCATION ? WORK PLACE LEARNING,5411,SAINSBURYS S/MKTS,"GROCERY STORES, SUPERMARKETS",11.95
24/08/2023,11507,CARE LEAVERS,9399,HM PASSPORT OFFICE,GOVERNMENT SERVICES-NOT ELSEWHERE CLASSIFIED,87.5
24/08/2023,11879,IPS LD MAURICE EDELMAN HOUSE,5811,BRAKES (TELEPHONE),CATERERS,306.71
24/08/2023,10103,SECTION17 PAYMENTS EAST,5999,AMZNMKTPLACE,MISCELLANEOUS AND SPECIALTY RETAIL STORES,13.9
24/08/2023,11136,EAST FAMILY HUB,5813,BELL GREEN WM CLUB,"BAR,LOUNGE,DISCO,NIGHTCLUB,TAVERN-ALCOHOLIC DRINKS",200
24/08/2023,11874,OPR0077 EARL STREET COUNCIL HOUSE,2842,ADMIRAL CLEANING SUPPL,"SANITATION, POLISHING & SPECIALITY CLEANING PREP",417.82
24/08/2023,10638,"SSGS PERFORMANCE, PROJECTS & TECHN",5999,AMZNMKTPLACE,MISCELLANEOUS AND SPECIALTY RETAIL STORES,32.99
24/08/2023,11602,IPS LD GOSFORD COMMUNITY HUB,5411,CO-OPERATIVE FOOD,"GROCERY STORES, SUPERMARKETS",3.5
24/08/2023,11847,ICT & DIGITAL,3615,TRAVELODG TRAVELODGE G,TRAVELODGE,109.38
24/08/2023,10448,RESIDENTIAL - GRAVEL HILL,7832,ODEON CONVENTRY,MOTION PICTURE THEATERS,10.5
24/08/2023,10448,RESIDENTIAL - GRAVEL HILL,5812,WING WAH COVENTRY,"EATING PLACES, RESTAURANTS",29.57
24/08/2023,11602,IPS LD GOSFORD COMMUNITY HUB,5310,POUNDLAND LTD - 2243,DISCOUNT STORES,5
24/08/2023,11300,PEST CONTROL & ANIMAL WELFARE,5200,B & Q 1231,HOME SUPPLY WAREHOUSE STORES,45.18
24/08/2023,10251,IPS LD PILS OPERATIONAL,7375,DISCLOSURE.CO.UK,INFORMATION RETRIEVAL SERVICES,38
24/08/2023,10251,IPS LD PILS OPERATIONAL,7375,DISCLOSURE.CO.UK,INFORMATION RETRIEVAL SERVICES,17.5
24/08/2023,11969,ICT SECURITY,4816,DNH GO DADDY EUROPE GB,COMPUTER NETWORK/INFORMATION SERVICES,28.78
24/08/2023,11255,ADULT ED ADMIN & MANAGEMENT,7278,COOLERAID LTD,"BUYING/SHOPPING CLUBS, SERVICES",42.9
24/08/2023,11507,CARE LEAVERS,5399,B&M 526 - ANSTY ROAD,MISCELLANEOUS GENERAL MERCHANDISE,33.5
24/08/2023,11894,ICT SYSTEMS,5815,PAYPAL  FSUK DBFRONT,DIGITAL GOODS AUDIOVISUAL MEDIA,359
24/08/2023,10448,RESIDENTIAL - GRAVEL HILL,7523,COVENTRY CITY COUNCIL,AUTOMOBILE PARKING LOTS AND GARAGES,1
24/08/2023,11859,BUILDING CONTROL,9399,LAND REGISTRY ECOM CCC,GOVERNMENT SERVICES-NOT ELSEWHERE CLASSIFIED,6
24/08/2023,10368,PARKS ? EVENTS & ACTIVITIES,7991,COOMBE COUNTRY PARK,TOURIST ATTRACTIONS AND EXHIBITS,0.01
24/08/2023,11136,EAST FAMILY HUB,5999,AMZNMKTPLACE AMAZON.CO,MISCELLANEOUS AND SPECIALTY RETAIL STORES,36.99
24/08/2023,11456,GENERAL EVENTS,4112,LNER WEB SALES,PASSENGER RAILWAYS,64.8
24/08/2023,11154,HIGHWAYS: OVERHEAD,5999,AMZNMKTPLACE AMAZON.CO,MISCELLANEOUS AND SPECIALTY RETAIL STORES,14.93
24/08/2023,11149,WAR MEMORIAL PARK,5995,COVENTRY SEEDS,PET SHOPS - PET FOODS AND SUPPLIES,29.5
25/08/2023,10379,CHILDREN?S CRISIS INTERVENTION TEAM,5712,DUNELM SOFTFURNISHINGS,"EQUIP, FURNITURE, HOME FURNSHNGS STRS (EXCPT APPL)",254.95
25/08/2023,11746,RESIDENTIAL - GRAYSWOOD,5411,TESCO STORES 2328,"GROCERY STORES, SUPERMARKETS",145
25/08/2023,10676,HOUSING AND HOMELESSNESS,5411,WM MORRISONS STORE,"GROCERY STORES, SUPERMARKETS",42.6
25/08/2023,11135,YOUTH OFFENDING SERVICE,4112,TRAINLINE,PASSENGER RAILWAYS,25.97
25/08/2023,11865,PUBLIC HEALTH - MIGRATION,5099,FOLESHILL WAREHOUSE LI,"DURABLE GOODS, NOT ELSEWHERE CLASSIFIED",97.92
25/08/2023,10379,CHILDREN?S CRISIS INTERVENTION TEAM,5712,DUNELM SOFTFURNISHINGS,"EQUIP, FURNITURE, HOME FURNSHNGS STRS (EXCPT APPL)",6
25/08/2023,10379,CHILDREN?S CRISIS INTERVENTION TEAM,5211,B&Q MARKETPLACE,"BUILDING MATERIALS, LUMBER STORES",29.97
25/08/2023,11865,PUBLIC HEALTH - MIGRATION,5099,FOLESHILL WAREHOUSE LI,"DURABLE GOODS, NOT ELSEWHERE CLASSIFIED",87.93
25/08/2023,11149,WAR MEMORIAL PARK,5411,SAINSBURYS S/MKTS,"GROCERY STORES, SUPERMARKETS",12.16
25/08/2023,10379,CHILDREN?S CRISIS INTERVENTION TEAM,5940,HALFORDS 0762,BICYCLE SHOPS-SALES AND SERVICE,44
25/08/2023,11865,PUBLIC HEALTH - MIGRATION,5411,MNK DADYAL HALAL MEAT,"GROCERY STORES, SUPERMARKETS",12
25/08/2023,10300,INTERNAL FOSTERING TEAM,7399,EB  CHILDREN MOVING OV,BUSINESS SERVICES-NOT ELSEWHERE CLASSIFIED,13.55
25/08/2023,11307,IPS MH THE POD,5411,SAINSBURYS S MKTS,"GROCERY STORES, SUPERMARKETS",3.35
25/08/2023,11507,CARE LEAVERS,4112,TRAINLINE,PASSENGER RAILWAYS,4.74
25/08/2023,10448,RESIDENTIAL - GRAVEL HILL,5969,AMAZON.CO.UK 1M12W2NK4,DIRECT MARKETING-OTHER DIRECT MARKETERS/NOT ELSEW.,2.02
25/08/2023,11829,PARKING ENFORCEMENT,5999,AMZNMKTPLACE AMAZON.CO,MISCELLANEOUS AND SPECIALTY RETAIL STORES,42.98
25/08/2023,11135,YOUTH OFFENDING SERVICE,7399,CS ODEON GIFT CARDS,BUSINESS SERVICES-NOT ELSEWHERE CLASSIFIED,25
25/08/2023,11136,EAST FAMILY HUB,5999,AMZNMKTPLACE AMAZON.CO,MISCELLANEOUS AND SPECIALTY RETAIL STORES,9.99
25/08/2023,11166,SOUTH FAMILY HUB,5999,AMZNMKTPLACE AMAZON.CO,MISCELLANEOUS AND SPECIALTY RETAIL STORES,83.06
25/08/2023,10103,SECTION17 PAYMENTS EAST,1520,BUDGET SKIP SERVICES L,GENERAL CONTRACTORS/RESIDENTIAL BUILDINGS,200
25/08/2023,11354,IPS DAY OPPS GILBERT RICHARDS CENTRE,5811,BRAKES (STORED CARDS),CATERERS,619.98
25/08/2023,11687,RESIDENTIAL - BROAD PARK HOUSE,5999,AMZNMKTPLACE,MISCELLANEOUS AND SPECIALTY RETAIL STORES,11.83
25/08/2023,11248,IPS ERIC WILLIAMS HOUSE,5300,GOMPELS HEALTHCARE,WHOLESALE CLUBS,67.04
25/08/2023,11255,ADULT ED ADMIN & MANAGEMENT,5999,AMZNBUSINESS 1M4QE2N84,MISCELLANEOUS AND SPECIALTY RETAIL STORES,20.29
25/08/2023,10951,IPS HWC SHORT TERM TENANCIES,4900,E.ON NEXT,"UTLTS-ELCTRC, GAS, HEATING OIL, SANITARY, WATER",31.22
25/08/2023,11829,PARKING ENFORCEMENT,5999,AMZ AMAZON.CO.UK,MISCELLANEOUS AND SPECIALTY RETAIL STORES,-141.82
25/08/2023,11166,SOUTH FAMILY HUB,5999,AMZNMKTPLACE,MISCELLANEOUS AND SPECIALTY RETAIL STORES,83.06
25/08/2023,11879,IPS LD MAURICE EDELMAN HOUSE,5411,TESCO STORES 2328,"GROCERY STORES, SUPERMARKETS",252.03
25/08/2023,10448,RESIDENTIAL - GRAVEL HILL,5655,NIKE GBP,"SPORTS APPAREL, RIDING APPAREL STORES",41.97
25/08/2023,11879,IPS LD MAURICE EDELMAN HOUSE,5811,BRAKES (STORED CARDS),CATERERS,293.59
25/08/2023,11248,IPS ERIC WILLIAMS HOUSE,5999,AMZNMKTPLACE,MISCELLANEOUS AND SPECIALTY RETAIL STORES,24.18
25/08/2023,11830,HELP & PROTECTION,7999,RED KANGAROO,RECREATION SERVICES (NOT ELSEWHERE CLASSIFIED),3.8
25/08/2023,10448,RESIDENTIAL - GRAVEL HILL,5995,PETS AT HOME LTD,PET SHOPS - PET FOODS AND SUPPLIES,21.99
25/08/2023,10225,HOUSING - B&B ACCOMMODATION,3811,PREMIER INN,PREMIER INN,100
25/08/2023,10225,HOUSING - B&B ACCOMMODATION,3811,PREMIER INN,PREMIER INN,637
25/08/2023,11507,CARE LEAVERS,5651,PRIMARK - COVENTRY,FAMILY CLOTHING STORES,500
25/08/2023,11398,REFUGEE TRANSITIONS OUTCOME FUND (RTOF),5411,ONE STOP STORES,"GROCERY STORES, SUPERMARKETS",1.99
25/08/2023,10962,OUTDOOR EDUCATION SERVICE,5411,WM MORRISONS STORE,"GROCERY STORES, SUPERMARKETS",29.74
25/08/2023,10962,OUTDOOR EDUCATION SERVICE,7011,COOMBE ABBEY HOTEL CAF,"LODGING-HOTELS,MOTELS,RESORTS-NOT CLASSIFIED",85
25/08/2023,11398,REFUGEE TRANSITIONS OUTCOME FUND (RTOF),5411,SAINSBURYS S/MKTS,"GROCERY STORES, SUPERMARKETS",2.8
25/08/2023,11507,CARE LEAVERS,7523,SNOWDOME LTD,AUTOMOBILE PARKING LOTS AND GARAGES,2.5
25/08/2023,10378,CHILDREN?S SERVICES MANAGEMENT TEAM,9399,C2E863700037O UKVI,GOVERNMENT SERVICES-NOT ELSEWHERE CLASSIFIED,"3,199.00"
25/08/2023,10225,HOUSING - B&B ACCOMMODATION,3615,TRAVELODG TRAVELODGE G,TRAVELODGE,449.74
25/08/2023,11507,CARE LEAVERS,5411,ALDI STORES LTD,"GROCERY STORES, SUPERMARKETS",117.54
25/08/2023,11507,CARE LEAVERS,9402,POST OFFICE COUNTER,POSTAL SERVICES-GOVERNMENT ONLY,6.85
25/08/2023,10704,LEGAL SERVICES,5999,AMZNBUSINESS 1M19G4N74,MISCELLANEOUS AND SPECIALTY RETAIL STORES,135
25/08/2023,10448,RESIDENTIAL - GRAVEL HILL,5969,AMAZON.CO.UK 1M2CT3NA4,DIRECT MARKETING-OTHER DIRECT MARKETERS/NOT ELSEW.,23.86
25/08/2023,10448,RESIDENTIAL - GRAVEL HILL,5969,AMAZON.CO.UK 1M0QW7N94,DIRECT MARKETING-OTHER DIRECT MARKETERS/NOT ELSEW.,26.99
25/08/2023,11507,CARE LEAVERS,5411,TESCO STORES 5168,"GROCERY STORES, SUPERMARKETS",28.45
25/08/2023,11507,CARE LEAVERS,5812,NANDOS PERRY BAR,"EATING PLACES, RESTAURANTS",35.15
25/08/2023,11507,CARE LEAVERS,5399,WILKO RETAIL LIMITED,MISCELLANEOUS GENERAL MERCHANDISE,53.95
25/08/2023,10416,LAC PERMANENCY,4112,TRAINLINE,PASSENGER RAILWAYS,43.2
25/08/2023,11507,CARE LEAVERS,5734,UNILINK SOFTWARE LTD,COMPUTER SOFTWARE STORES,5
25/08/2023,11136,EAST FAMILY HUB,5411,ASDA STORES 4602,"GROCERY STORES, SUPERMARKETS",16
25/08/2023,11874,OPR0077 EARL STREET COUNCIL HOUSE,5399,SPECIALISED CANVAS,MISCELLANEOUS GENERAL MERCHANDISE,66.88
25/08/2023,11507,CARE LEAVERS,5411,TESCO STORES 2849,"GROCERY STORES, SUPERMARKETS",51.16
25/08/2023,11507,CARE LEAVERS,4112,TRAINLINE,PASSENGER RAILWAYS,4.13
25/08/2023,10676,HOUSING AND HOMELESSNESS,5200,B & Q 1231,HOME SUPPLY WAREHOUSE STORES,26.06
25/08/2023,11507,CARE LEAVERS,5999,AMZNMKTPLACE,MISCELLANEOUS AND SPECIALTY RETAIL STORES,15.99
25/08/2023,11507,CARE LEAVERS,4112,TRAINLINE,PASSENGER RAILWAYS,9.68
25/08/2023,10676,HOUSING AND HOMELESSNESS,5999,AMZNMKTPLACE AMAZON.CO,MISCELLANEOUS AND SPECIALTY RETAIL STORES,69.8
25/08/2023,10448,RESIDENTIAL - GRAVEL HILL,5969,AMAZON.CO.UK 1M9K29N84,DIRECT MARKETING-OTHER DIRECT MARKETERS/NOT ELSEW.,2.32
25/08/2023,11403,IPS HWC COTTAGE FARM,5811,BRAKES (TELEPHONE),CATERERS,275.84
25/08/2023,10672,PUBLIC HEALTH - MIGRATION,5411,ONE BELOW,"GROCERY STORES, SUPERMARKETS",16
25/08/2023,10416,LAC PERMANENCY,4131,WEST MIDLANDS TRAV,BUS LINES,60
25/08/2023,10488,IPS LD JENNER8,4111,WWW.WMCA.ORG.UK,"TRANSPRTN-SUBRBN & LOCAL COMTR PSNGR, INCL FERRIES",10
25/08/2023,11602,IPS LD GOSFORD COMMUNITY HUB,5411,ALDI 113 772,"GROCERY STORES, SUPERMARKETS",45.86
25/08/2023,11248,IPS ERIC WILLIAMS HOUSE,5811,BRAKES (STORED CARDS),CATERERS,40.16
25/08/2023,10900,LOCAL WELFARE PROVISION COVID-19,5999,AMZNMKTPLACE,MISCELLANEOUS AND SPECIALTY RETAIL STORES,107.98
25/08/2023,11928,COMMUNITY SUPPORT GRANTS,5999,AMZNMKTPLACE,MISCELLANEOUS AND SPECIALTY RETAIL STORES,14.8
25/08/2023,11166,SOUTH FAMILY HUB,5411,TESCO STORES 2335,"GROCERY STORES, SUPERMARKETS",24.65
25/08/2023,11507,CARE LEAVERS,5814,MCDONALDS,FAST FOOD RESTAURANTS,12.27
25/08/2023,11928,COMMUNITY SUPPORT GRANTS,5999,AMZNMKTPLACE,MISCELLANEOUS AND SPECIALTY RETAIL STORES,56.9
25/08/2023,11507,CARE LEAVERS,7997,SNOWDOME LIMITED,"CLUBS-CNTRY,MBRSHIP(ATHLET,REC,SPRTS,PRIVATE GOLF",14.8
25/08/2023,11928,COMMUNITY SUPPORT GRANTS,5999,AMZNMKTPLACE AMAZON.CO,MISCELLANEOUS AND SPECIALTY RETAIL STORES,169.99
25/08/2023,11507,CARE LEAVERS,5399,WILKO RETAIL LIMITED,MISCELLANEOUS GENERAL MERCHANDISE,11.2
25/08/2023,10291,SECTION17 PAYMENTS CENTRAL,5311,WWW.ARGOS.CO.UK,DEPARTMENT STORES,13.5
25/08/2023,11507,CARE LEAVERS,5399,WILKO RETAIL LIMITED,MISCELLANEOUS GENERAL MERCHANDISE,14.4
25/08/2023,10084,SECTION17 PAYMENTS WEST,5072,CROMA LOCKSMITHS & SEC,HARDWARE EQUIPMENT AND SUPPLIES,105.4
25/08/2023,10360,JOB SHOP,5311,WWW.ARGOS.CO.UK,DEPARTMENT STORES,59.99
25/08/2023,11507,CARE LEAVERS,5399,WILKO RETAIL LIMITED,MISCELLANEOUS GENERAL MERCHANDISE,20.23
25/08/2023,11984,IPS MAYMORN RESOURCE CENTRE,4111,WWW.WMCA.ORG.UK,"TRANSPRTN-SUBRBN & LOCAL COMTR PSNGR, INCL FERRIES",10
25/08/2023,11507,CARE LEAVERS,5211,WICKES BUILDING,"BUILDING MATERIALS, LUMBER STORES",193
25/08/2023,11307,IPS MH THE POD,5411,SAINSBURYS S/MKTS,"GROCERY STORES, SUPERMARKETS",17.01
25/08/2023,11792,HOUSING AND HOMELESSNESS,5411,EM10 EXPRESS,"GROCERY STORES, SUPERMARKETS",80
25/08/2023,10448,RESIDENTIAL - GRAVEL HILL,5995,PETS AT HOME LTD,PET SHOPS - PET FOODS AND SUPPLIES,88
25/08/2023,10448,RESIDENTIAL - GRAVEL HILL,5999,SASS - WINSFORD,MISCELLANEOUS AND SPECIALTY RETAIL STORES,127.42
25/08/2023,11928,COMMUNITY SUPPORT GRANTS,5999,AMZNMKTPLACE,MISCELLANEOUS AND SPECIALTY RETAIL STORES,71.48
25/08/2023,10565,ROUGH SLEEPER AND RAPID HOUSING PATH,5399,WILKO RETAIL LIMITED,MISCELLANEOUS GENERAL MERCHANDISE,8.4
25/08/2023,11928,COMMUNITY SUPPORT GRANTS,5999,AMZNMKTPLACE,MISCELLANEOUS AND SPECIALTY RETAIL STORES,9.45
25/08/2023,10565,ROUGH SLEEPER AND RAPID HOUSING PATH,5411,TESCO STORES 4843,"GROCERY STORES, SUPERMARKETS",13.05
25/08/2023,11928,COMMUNITY SUPPORT GRANTS,5999,AMZNMKTPLACE,MISCELLANEOUS AND SPECIALTY RETAIL STORES,99.98
25/08/2023,11928,COMMUNITY SUPPORT GRANTS,5999,AMZNMKTPLACE,MISCELLANEOUS AND SPECIALTY RETAIL STORES,67.91
25/08/2023,11865,PUBLIC HEALTH - MIGRATION,5411,TESCO STORES 5168,"GROCERY STORES, SUPERMARKETS",100.62
25/08/2023,11928,COMMUNITY SUPPORT GRANTS,5999,AMZNMKTPLACE,MISCELLANEOUS AND SPECIALTY RETAIL STORES,14.83
25/08/2023,10565,ROUGH SLEEPER AND RAPID HOUSING PATH,5661,LARRY AND SONS,SHOE STORES,3.5
25/08/2023,11507,CARE LEAVERS,5999,AMZNMKTPLACE AMAZON.CO,MISCELLANEOUS AND SPECIALTY RETAIL STORES,14.99
25/08/2023,11464,DSG - FAMILY HUB BUDGET,7523,COVENTRY CITY COUNCIL,AUTOMOBILE PARKING LOTS AND GARAGES,5
25/08/2023,11507,CARE LEAVERS,5999,AMZNMKTPLACE AMAZON.CO,MISCELLANEOUS AND SPECIALTY RETAIL STORES,11.99
25/08/2023,10951,IPS HWC SHORT TERM TENANCIES,4900,E.ON NEXT,"UTLTS-ELCTRC, GAS, HEATING OIL, SANITARY, WATER",36.99
25/08/2023,11157,IPS HWC ELSIE JONES,5811,BRAKES (STORED CARDS),CATERERS,250.88
25/08/2023,11746,RESIDENTIAL - GRAYSWOOD,5311,WWW.ARGOS.CO.UK,DEPARTMENT STORES,53.97
25/08/2023,10383,IPS HWC KNIGHTLOW,5699,EXPRESS TABLECLOTHS &,ACCESSORY AND APPAREL STORES-MISCELLANEOUS,155.44
25/08/2023,11746,RESIDENTIAL - GRAYSWOOD,5399,B&M 526 - ANSTY ROAD,MISCELLANEOUS GENERAL MERCHANDISE,144.2
25/08/2023,10300,INTERNAL FOSTERING TEAM,7399,EB  OVERSEAS CONVENTIO,BUSINESS SERVICES-NOT ELSEWHERE CLASSIFIED,13.55
28/08/2023,11166,SOUTH FAMILY HUB,5999,AMZNMKTPLACE,MISCELLANEOUS AND SPECIALTY RETAIL STORES,23.95
28/08/2023,11746,RESIDENTIAL - GRAYSWOOD,5655,JD SPORTS FASHION PLC,"SPORTS APPAREL, RIDING APPAREL STORES",115
28/08/2023,10300,INTERNAL FOSTERING TEAM,9399,HM PASSPORT OFFICE,GOVERNMENT SERVICES-NOT ELSEWHERE CLASSIFIED,87.5
28/08/2023,10676,HOUSING AND HOMELESSNESS,5999,AMZNMKTPLACE AMAZON.CO,MISCELLANEOUS AND SPECIALTY RETAIL STORES,25.9
28/08/2023,11746,RESIDENTIAL - GRAYSWOOD,5999,AMZNMKTPLACE,MISCELLANEOUS AND SPECIALTY RETAIL STORES,25.95
28/08/2023,11746,RESIDENTIAL - GRAYSWOOD,5814,MCDONALDS,FAST FOOD RESTAURANTS,16.09
28/08/2023,10786,STREETPRIDE CITY CENTRE,5691,HAZCHEM SAFETY LTD,MEN'S AND WOMEN'S CLOTHING STORES,112.06
28/08/2023,11842,"OCCUPATIONAL HEALTH, COUNSELLING & SUPPO",5999,AMZNBUSINESS 1M15A2E14,MISCELLANEOUS AND SPECIALTY RETAIL STORES,4.64
28/08/2023,11135,YOUTH OFFENDING SERVICE,5812,GREGGS PLC,"EATING PLACES, RESTAURANTS",4.8
28/08/2023,10090,LIBRARIES - OPERATIONS,5411,ICELAND FOODS,"GROCERY STORES, SUPERMARKETS",3.2
28/08/2023,11001,BUSINESS INVESTMENT ? INWARD INVESTME,4816,IONOS CLOUD LTD,COMPUTER NETWORK/INFORMATION SERVICES,11.99
28/08/2023,10084,SECTION17 PAYMENTS WEST,4131,NATIONAL EXPRESS LIMIT,BUS LINES,30.7
28/08/2023,11687,RESIDENTIAL - BROAD PARK HOUSE,5411,TESCO STORES 2328,"GROCERY STORES, SUPERMARKETS",97.71
28/08/2023,11049,CREMATORIUM,5999,AMZNMKTPLACE AMAZON.CO,MISCELLANEOUS AND SPECIALTY RETAIL STORES,31.8
28/08/2023,11197,WEST FAMILY HUB,7278,COOLERAID LTD,"BUYING/SHOPPING CLUBS, SERVICES",66
28/08/2023,11687,RESIDENTIAL - BROAD PARK HOUSE,5411,ASDA STORES 4602,"GROCERY STORES, SUPERMARKETS",31.44
28/08/2023,10541,COVENTRY EXTENDED LEARNING CENTRE,7278,COOLERAID LTD,"BUYING/SHOPPING CLUBS, SERVICES",33
28/08/2023,11049,CREMATORIUM,5999,AMZNMKTPLACE,MISCELLANEOUS AND SPECIALTY RETAIL STORES,8.97
28/08/2023,11507,CARE LEAVERS,5211,B&Q MARKETPLACE,"BUILDING MATERIALS, LUMBER STORES",87.99
28/08/2023,11507,CARE LEAVERS,5812,GREGGS PLC,"EATING PLACES, RESTAURANTS",5.85
28/08/2023,11932,LAC THROUGHCARE TEAM,9402,POST OFFICE COUNTER,POSTAL SERVICES-GOVERNMENT ONLY,6.85
28/08/2023,11507,CARE LEAVERS,5072,WWW.GOV.UK/PAY-DARTFOR,HARDWARE EQUIPMENT AND SUPPLIES,3
28/08/2023,11507,CARE LEAVERS,4112,TRAINLINE,PASSENGER RAILWAYS,-31
28/08/2023,11932,LAC THROUGHCARE TEAM,9399,HM PASSPORT OFFICE,GOVERNMENT SERVICES-NOT ELSEWHERE CLASSIFIED,53.5
28/08/2023,11602,IPS LD GOSFORD COMMUNITY HUB,7278,COOLERAID LTD,"BUYING/SHOPPING CLUBS, SERVICES",33
28/08/2023,10053,OPR0276 LONDON ROAD 259 WHITLEY DEPOT,5999,AMZNMKTPLACE,MISCELLANEOUS AND SPECIALTY RETAIL STORES,23.16
28/08/2023,11381,PUBLIC HEALTH,4121,UBER  TRIP,LIMOUSINES AND TAXICABS,10.21
28/08/2023,11507,CARE LEAVERS,5812,GREGGS PLC,"EATING PLACES, RESTAURANTS",18.6
28/08/2023,11932,LAC THROUGHCARE TEAM,4112,TRAINLINE,PASSENGER RAILWAYS,5.7
28/08/2023,10448,RESIDENTIAL - GRAVEL HILL,5941,SPORTSDIRECT.COM,SPORTING GOODS STORES,16
28/08/2023,11507,CARE LEAVERS,5812,CAFFE NERO COVENTRY,"EATING PLACES, RESTAURANTS",6.25
28/08/2023,11870,IPS LD WILFRED SPENCER CENTRE,7278,COOLERAID LTD,"BUYING/SHOPPING CLUBS, SERVICES",69.6
28/08/2023,11103,RESIDENTIAL - BROAD LANE,5999,AMZNMKTPLACE,MISCELLANEOUS AND SPECIALTY RETAIL STORES,27.89
28/08/2023,10448,RESIDENTIAL - GRAVEL HILL,5814,PIZZA KING MABLETHORPE,FAST FOOD RESTAURANTS,32.6
28/08/2023,10416,LAC PERMANENCY,3811,PREMIER INN,PREMIER INN,226.99
28/08/2023,11507,CARE LEAVERS,5462,KAHAWA CAFE LTD,BAKERIES,35.24
28/08/2023,10448,RESIDENTIAL - GRAVEL HILL,7997,CAPTAIN JACKS ADVENTUR,"CLUBS-CNTRY,MBRSHIP(ATHLET,REC,SPRTS,PRIVATE GOLF",30
28/08/2023,10416,LAC PERMANENCY,4131,WEST MIDLANDS TRAV,BUS LINES,30
28/08/2023,11403,IPS HWC COTTAGE FARM,5811,BRAKES (STORED CARDS),CATERERS,225.32
28/08/2023,11687,RESIDENTIAL - BROAD PARK HOUSE,7278,WWW.GROUPON.CO.UK,"BUYING/SHOPPING CLUBS, SERVICES",25.98
28/08/2023,10300,INTERNAL FOSTERING TEAM,9399,HM PASSPORT OFFICE,GOVERNMENT SERVICES-NOT ELSEWHERE CLASSIFIED,58.5
28/08/2023,10469,RESIDENTIAL - JOBS LANE,5411,ALDI STORES ATHERSTONE,"GROCERY STORES, SUPERMARKETS",183.51
28/08/2023,10448,RESIDENTIAL - GRAVEL HILL,7033,GOLDEN SANDS,CAMPGROUNDS AND TRAILER PARKS,18.34
28/08/2023,11687,RESIDENTIAL - BROAD PARK HOUSE,5699,PRINTERPIX UK LIMITED,ACCESSORY AND APPAREL STORES-MISCELLANEOUS,7.99
28/08/2023,11687,RESIDENTIAL - BROAD PARK HOUSE,5699,PRINTERPIX UK LIMITED,ACCESSORY AND APPAREL STORES-MISCELLANEOUS,7.99
28/08/2023,10448,RESIDENTIAL - GRAVEL HILL,7523,EAST_LINDSEY_DC_PARKIN,AUTOMOBILE PARKING LOTS AND GARAGES,8
28/08/2023,10416,LAC PERMANENCY,4131,WEST MIDLANDS TRAV,BUS LINES,60
28/08/2023,10291,SECTION17 PAYMENTS CENTRAL,5999,AMZNMKTPLACE,MISCELLANEOUS AND SPECIALTY RETAIL STORES,44.97
28/08/2023,10225,HOUSING - B&B ACCOMMODATION,3811,PREMIER INN,PREMIER INN,492.5
28/08/2023,11307,IPS MH THE POD,5411,WM MORRISONS STORE,"GROCERY STORES, SUPERMARKETS",27.2
28/08/2023,11687,RESIDENTIAL - BROAD PARK HOUSE,5251,BEDWORTH TOOLBOX,HARDWARE STORES,9.97
28/08/2023,11248,IPS ERIC WILLIAMS HOUSE,5999,AMZNMKTPLACE,MISCELLANEOUS AND SPECIALTY RETAIL STORES,2.75
28/08/2023,11507,CARE LEAVERS,4112,WWW.AVANTIWESTCOAST.CO,PASSENGER RAILWAYS,23.7
28/08/2023,11166,SOUTH FAMILY HUB,5999,AMZNMKTPLACE,MISCELLANEOUS AND SPECIALTY RETAIL STORES,21.98
28/08/2023,11879,IPS LD MAURICE EDELMAN HOUSE,9402,POST OFFICE COUNTER,POSTAL SERVICES-GOVERNMENT ONLY,3.75
28/08/2023,10225,HOUSING - B&B ACCOMMODATION,3811,PREMIER INN,PREMIER INN,345.95
28/08/2023,11879,IPS LD MAURICE EDELMAN HOUSE,5968,AMAZON PRIME 1M6664JQ4,DIRECT MARKETING-CONTINUITY/SUBSCRIPTION MERCHANTS,8.99
28/08/2023,10291,SECTION17 PAYMENTS CENTRAL,4112,TRAINLINE,PASSENGER RAILWAYS,70.1
28/08/2023,10033,APPRENTICE STRATEGY,5999,AMZNMKTPLACE AMAZON.CO,MISCELLANEOUS AND SPECIALTY RETAIL STORES,16.99
28/08/2023,11166,SOUTH FAMILY HUB,5999,AMZNMKTPLACE,MISCELLANEOUS AND SPECIALTY RETAIL STORES,48.98
28/08/2023,10475,CORPORATE PROPERTY MANAGEMENT,7278,COOLERAID LTD,"BUYING/SHOPPING CLUBS, SERVICES",33
28/08/2023,11307,IPS MH THE POD,5411,WM MORRISONS STORE,"GROCERY STORES, SUPERMARKETS",9.18
28/08/2023,11879,IPS LD MAURICE EDELMAN HOUSE,5411,TESCO STORES 2325,"GROCERY STORES, SUPERMARKETS",19
28/08/2023,11687,RESIDENTIAL - BROAD PARK HOUSE,4899,NETFLIX.COM,"CABLE, SATELLITE, OTHER PAY TELEVISION, RADIO SVCS",15.99
28/08/2023,11166,SOUTH FAMILY HUB,5999,AMZNMKTPLACE AMAZON.CO,MISCELLANEOUS AND SPECIALTY RETAIL STORES,84.99
28/08/2023,11166,SOUTH FAMILY HUB,5999,AMZNMKTPLACE,MISCELLANEOUS AND SPECIALTY RETAIL STORES,7.69
28/08/2023,11166,SOUTH FAMILY HUB,5999,AMZNMKTPLACE,MISCELLANEOUS AND SPECIALTY RETAIL STORES,124.29
28/08/2023,11687,RESIDENTIAL - BROAD PARK HOUSE,5411,TESCO STORES 2328,"GROCERY STORES, SUPERMARKETS",27.01
28/08/2023,10541,COVENTRY EXTENDED LEARNING CENTRE,5411,ASDA GROCERIES ONLINE,"GROCERY STORES, SUPERMARKETS",6.5
28/08/2023,11507,CARE LEAVERS,5812,LITTLEDESSERT SHOP,"EATING PLACES, RESTAURANTS",5.5
28/08/2023,11507,CARE LEAVERS,5411,MARKS&SPENCER PLC SA,"GROCERY STORES, SUPERMARKETS",13.7
28/08/2023,11984,IPS MAYMORN RESOURCE CENTRE,4111,WWW.WMCA.ORG.UK,"TRANSPRTN-SUBRBN & LOCAL COMTR PSNGR, INCL FERRIES",10
28/08/2023,11507,CARE LEAVERS,5691,H & M,MEN'S AND WOMEN'S CLOTHING STORES,33.97
28/08/2023,11507,CARE LEAVERS,5065,THE ELECTRICAL COUNTER,ELECTRICAL PARTS AND EQUIPMENT,136.37
28/08/2023,11507,CARE LEAVERS,4121,UBER  TRIP,LIMOUSINES AND TAXICABS,11.08
28/08/2023,11507,CARE LEAVERS,5411,ALDI 75 772,"GROCERY STORES, SUPERMARKETS",8.74
28/08/2023,11507,CARE LEAVERS,5814,COSTA COFFEE 43011460,FAST FOOD RESTAURANTS,8
28/08/2023,11507,CARE LEAVERS,5941,J D SPORTS  147,SPORTING GOODS STORES,45.2
28/08/2023,11507,CARE LEAVERS,5712,FURNITURE VILLAGE,"EQUIP, FURNITURE, HOME FURNSHNGS STRS (EXCPT APPL)",179
28/08/2023,11507,CARE LEAVERS,5712,SOFOLOGY LIMITED,"EQUIP, FURNITURE, HOME FURNSHNGS STRS (EXCPT APPL)",300
28/08/2023,10416,LAC PERMANENCY,4112,TRAINLINE,PASSENGER RAILWAYS,122.27
28/08/2023,11507,CARE LEAVERS,5814,JUST EAT,FAST FOOD RESTAURANTS,76.94
28/08/2023,11539,CENTRALISED PROMOTIONS BUDGET,7392,NATIVES GROUP,"CONSULTING, MANAGEMENT, AND PUBLIC RELATIONS SVCS",78
28/08/2023,11507,CARE LEAVERS,5812,MCDONALDS   931,"EATING PLACES, RESTAURANTS",9.82
28/08/2023,10672,PUBLIC HEALTH - MIGRATION,5814,ROTI JUNCTION,FAST FOOD RESTAURANTS,25
28/08/2023,10676,HOUSING AND HOMELESSNESS,5999,AMZNMKTPLACE,MISCELLANEOUS AND SPECIALTY RETAIL STORES,54.35
28/08/2023,11507,CARE LEAVERS,5814,MCDONALDS,FAST FOOD RESTAURANTS,13.57
28/08/2023,10300,INTERNAL FOSTERING TEAM,7399,EB  CHILDREN MOVING OV,BUSINESS SERVICES-NOT ELSEWHERE CLASSIFIED,13.55
28/08/2023,10300,INTERNAL FOSTERING TEAM,7399,EB  CHILDREN MOVING OV,BUSINESS SERVICES-NOT ELSEWHERE CLASSIFIED,13.55
28/08/2023,10300,INTERNAL FOSTERING TEAM,7399,EB  CHILDREN MOVING OV,BUSINESS SERVICES-NOT ELSEWHERE CLASSIFIED,13.55
28/08/2023,10090,LIBRARIES - OPERATIONS,5411,ALDI 15 772,"GROCERY STORES, SUPERMARKETS",6.29
28/08/2023,11507,CARE LEAVERS,5719,WWW.THERANGE.CO.UK,MISCELLANEOUS HOUSE FURNISHING SPECIALTY SHOPS,159.99
28/08/2023,11746,RESIDENTIAL - GRAYSWOOD,5655,JD SPORTS FASHION PLC,"SPORTS APPAREL, RIDING APPAREL STORES",115
28/08/2023,10225,HOUSING - B&B ACCOMMODATION,3533,IBIS COVENTRY SOUTH,HOTEL IBIS,506
28/08/2023,11928,COMMUNITY SUPPORT GRANTS,5999,AMZNMKTPLACE,MISCELLANEOUS AND SPECIALTY RETAIL STORES,90.23
28/08/2023,11928,COMMUNITY SUPPORT GRANTS,5999,AMZNMKTPLACE,MISCELLANEOUS AND SPECIALTY RETAIL STORES,79.98
28/08/2023,11928,COMMUNITY SUPPORT GRANTS,5999,AMZNMKTPLACE,MISCELLANEOUS AND SPECIALTY RETAIL STORES,41.83
28/08/2023,11928,COMMUNITY SUPPORT GRANTS,5999,AMZNMKTPLACE AMAZON.CO,MISCELLANEOUS AND SPECIALTY RETAIL STORES,39.99
28/08/2023,11928,COMMUNITY SUPPORT GRANTS,5999,AMZNMKTPLACE AMAZON.CO,MISCELLANEOUS AND SPECIALTY RETAIL STORES,39.99
28/08/2023,11928,COMMUNITY SUPPORT GRANTS,5999,AMZNMKTPLACE AMAZON.CO,MISCELLANEOUS AND SPECIALTY RETAIL STORES,102.49
28/08/2023,11928,COMMUNITY SUPPORT GRANTS,5999,AMZNMKTPLACE,MISCELLANEOUS AND SPECIALTY RETAIL STORES,41.83
28/08/2023,11928,COMMUNITY SUPPORT GRANTS,5999,AMZNMKTPLACE AMAZON.CO,MISCELLANEOUS AND SPECIALTY RETAIL STORES,41.83
28/08/2023,11307,IPS MH THE POD,5411,TESCO STORES 2325,"GROCERY STORES, SUPERMARKETS",20.63
28/08/2023,11507,CARE LEAVERS,5812,GREGGS PLC,"EATING PLACES, RESTAURANTS",5.25
28/08/2023,11381,PUBLIC HEALTH,4121,UBER    TRIP,LIMOUSINES AND TAXICABS,14.83
28/08/2023,11307,IPS MH THE POD,5411,SAINSBURYS S/MKTS,"GROCERY STORES, SUPERMARKETS",14.78
28/08/2023,11381,PUBLIC HEALTH,5969,AMAZON.CO.UK 1M1B29A64,DIRECT MARKETING-OTHER DIRECT MARKETERS/NOT ELSEW.,11.98
28/08/2023,11307,IPS MH THE POD,5411,WM MORRISONS STORE,"GROCERY STORES, SUPERMARKETS",6
28/08/2023,10448,RESIDENTIAL - GRAVEL HILL,4722,ATTRACTIONTICKETS.COM,TRAVEL AGENCIES AND TOUR OPERATORS,78
28/08/2023,11771,STREETPRIDE SOUTH,5211,BB FENCING LTD,"BUILDING MATERIALS, LUMBER STORES",31.32
28/08/2023,11984,IPS MAYMORN RESOURCE CENTRE,5399,B&M 526 - ANSTY ROAD,MISCELLANEOUS GENERAL MERCHANDISE,15.89
28/08/2023,11771,STREETPRIDE SOUTH,5999,AMZNMKTPLACE,MISCELLANEOUS AND SPECIALTY RETAIL STORES,4.59
28/08/2023,10448,RESIDENTIAL - GRAVEL HILL,5651,MATALAN ECOM,FAMILY CLOTHING STORES,20
28/08/2023,10565,ROUGH SLEEPER AND RAPID HOUSING PATH,5999,AMZNMKTPLACE AMAZON.CO,MISCELLANEOUS AND SPECIALTY RETAIL STORES,12.95
28/08/2023,10033,APPRENTICE STRATEGY,5999,AMZNMKTPLACE AMAZON.CO,MISCELLANEOUS AND SPECIALTY RETAIL STORES,17.24
28/08/2023,10448,RESIDENTIAL - GRAVEL HILL,5995,PETS AT HOME LTD,PET SHOPS - PET FOODS AND SUPPLIES,-88
28/08/2023,10565,ROUGH SLEEPER AND RAPID HOUSING PATH,5999,AMZNMKTPLACE,MISCELLANEOUS AND SPECIALTY RETAIL STORES,63.92
28/08/2023,10565,ROUGH SLEEPER AND RAPID HOUSING PATH,5999,AMZNMKTPLACE,MISCELLANEOUS AND SPECIALTY RETAIL STORES,10.49
28/08/2023,11928,COMMUNITY SUPPORT GRANTS,5999,AMZNMKTPLACE,MISCELLANEOUS AND SPECIALTY RETAIL STORES,37.99
28/08/2023,11928,COMMUNITY SUPPORT GRANTS,5999,AMZNMKTPLACE,MISCELLANEOUS AND SPECIALTY RETAIL STORES,16.94
28/08/2023,11928,COMMUNITY SUPPORT GRANTS,5999,AMZNMKTPLACE AMAZON.CO,MISCELLANEOUS AND SPECIALTY RETAIL STORES,13.74
28/08/2023,11928,COMMUNITY SUPPORT GRANTS,5999,AMZNMKTPLACE,MISCELLANEOUS AND SPECIALTY RETAIL STORES,17.5
28/08/2023,11928,COMMUNITY SUPPORT GRANTS,5999,AMZNMKTPLACE,MISCELLANEOUS AND SPECIALTY RETAIL STORES,90.23
28/08/2023,11928,COMMUNITY SUPPORT GRANTS,5999,AMZNMKTPLACE,MISCELLANEOUS AND SPECIALTY RETAIL STORES,16.94
28/08/2023,11928,COMMUNITY SUPPORT GRANTS,5999,AMZNMKTPLACE AMAZON.CO,MISCELLANEOUS AND SPECIALTY RETAIL STORES,56.9
28/08/2023,11928,COMMUNITY SUPPORT GRANTS,5999,AMZNMKTPLACE,MISCELLANEOUS AND SPECIALTY RETAIL STORES,13.74
28/08/2023,11928,COMMUNITY SUPPORT GRANTS,5999,AMZNMKTPLACE,MISCELLANEOUS AND SPECIALTY RETAIL STORES,13.74
28/08/2023,11928,COMMUNITY SUPPORT GRANTS,5999,AMZNMKTPLACE,MISCELLANEOUS AND SPECIALTY RETAIL STORES,41.83
28/08/2023,11507,CARE LEAVERS,7997,SNOWDOME LIMITED,"CLUBS-CNTRY,MBRSHIP(ATHLET,REC,SPRTS,PRIVATE GOLF",9
28/08/2023,10565,ROUGH SLEEPER AND RAPID HOUSING PATH,5411,TESCO STORES 4843,"GROCERY STORES, SUPERMARKETS",13.05
28/08/2023,11507,CARE LEAVERS,7523,SNOWDOME LTD,AUTOMOBILE PARKING LOTS AND GARAGES,2.5
28/08/2023,11687,RESIDENTIAL - BROAD PARK HOUSE,5999,AMZNMKTPLACE AMAZON.CO,MISCELLANEOUS AND SPECIALTY RETAIL STORES,36.95
28/08/2023,11166,SOUTH FAMILY HUB,7278,COOLERAID LTD,"BUYING/SHOPPING CLUBS, SERVICES",297
28/08/2023,11389,HOUSING FIRST GRANT,5977,BODYCARE,COSMETIC STORES,11.98
28/08/2023,11928,COMMUNITY SUPPORT GRANTS,5999,AMZNMKTPLACE,MISCELLANEOUS AND SPECIALTY RETAIL STORES,21.93
28/08/2023,11928,COMMUNITY SUPPORT GRANTS,5999,AMZNMKTPLACE,MISCELLANEOUS AND SPECIALTY RETAIL STORES,29.89
28/08/2023,11149,WAR MEMORIAL PARK,5411,WM MORRISONS STORE,"GROCERY STORES, SUPERMARKETS",15.35
28/08/2023,11507,CARE LEAVERS,8398,ALLPAY  CITIZEN HOUSIN,"ORGANIZATIONS, CHARITABLE AND SOCIAL SERVICES",472.04
28/08/2023,11521,IPS MH SUPPORTED LIVING,4111,WWW.WMCA.ORG.UK,"TRANSPRTN-SUBRBN & LOCAL COMTR PSNGR, INCL FERRIES",40
28/08/2023,10368,PARKS ? EVENTS & ACTIVITIES,5411,TESCO STORES 5168,"GROCERY STORES, SUPERMARKETS",4.8
28/08/2023,11507,CARE LEAVERS,5813,COSY CLUB COVENTRY,"BAR,LOUNGE,DISCO,NIGHTCLUB,TAVERN-ALCOHOLIC DRINKS",31.8
28/08/2023,10442,HOUSING ? SELECTIVE LICENSING,9222,HMCTS BIRMINGHAMCONF11,FINES,81
28/08/2023,10141,E & TS INTEGRATED COMMUNITY EQUIPME,7278,COOLERAID LTD,"BUYING/SHOPPING CLUBS, SERVICES",33
28/08/2023,11687,RESIDENTIAL - BROAD PARK HOUSE,5411,ASDA STORES 4602,"GROCERY STORES, SUPERMARKETS",37.18
28/08/2023,11829,PARKING ENFORCEMENT,5999,AMZNMKTPLACE,MISCELLANEOUS AND SPECIALTY RETAIL STORES,9.24
28/08/2023,10448,RESIDENTIAL - GRAVEL HILL,5411,TESCO STORES 2328,"GROCERY STORES, SUPERMARKETS",128.39
28/08/2023,10448,RESIDENTIAL - GRAVEL HILL,5399,HOME BARGAINS-SKEGNESS,MISCELLANEOUS GENERAL MERCHANDISE,16.17
28/08/2023,11507,CARE LEAVERS,5814,MCDONALDS,FAST FOOD RESTAURANTS,4.91
28/08/2023,11255,ADULT ED ADMIN & MANAGEMENT,7278,COOLERAID LTD,"BUYING/SHOPPING CLUBS, SERVICES",33
28/08/2023,10507,PARK RANGERS,5411,ADSA STORES LTD 4231,"GROCERY STORES, SUPERMARKETS",3
28/08/2023,10448,RESIDENTIAL - GRAVEL HILL,7999,BIG KIDZ KARTING,RECREATION SERVICES (NOT ELSEWHERE CLASSIFIED),18
28/08/2023,10448,RESIDENTIAL - GRAVEL HILL,5812,EUROPA FISHERIES LTD,"EATING PLACES, RESTAURANTS",6.1
28/08/2023,10448,RESIDENTIAL - GRAVEL HILL,7033,GOLDEN SANDS,CAMPGROUNDS AND TRAILER PARKS,18.34
28/08/2023,10448,RESIDENTIAL - GRAVEL HILL,7033,GOLDEN SANDS,CAMPGROUNDS AND TRAILER PARKS,18.34
28/08/2023,10448,RESIDENTIAL - GRAVEL HILL,5812,EUROPA FISHERIES LTD,"EATING PLACES, RESTAURANTS",37.96
28/08/2023,11507,CARE LEAVERS,7032,CARROTY WOOD,RECREATIONAL AND SPORTING CAMPS,581
28/08/2023,10962,OUTDOOR EDUCATION SERVICE,5999,AMZNMKTPLACE,MISCELLANEOUS AND SPECIALTY RETAIL STORES,58.08
28/08/2023,10565,ROUGH SLEEPER AND RAPID HOUSING PATH,5198,DULUX DECORATOR CENTRE,"PAINTS,VARNISHES AND SUPPLIES",3.23
28/08/2023,11865,PUBLIC HEALTH - MIGRATION,5310,ARGOS LTD,DISCOUNT STORES,57
28/08/2023,11572,DEMOCRATIC SERVICES,3811,PREMIER INN,PREMIER INN,317.96
28/08/2023,11507,CARE LEAVERS,4112,TRAINLINE.COM,PASSENGER RAILWAYS,31.68
28/08/2023,11507,CARE LEAVERS,7211,ME GROUP INTERNATIONAL,LAUNDRY SERVICES - FAMILY AND COMMERICAL,5.5
28/08/2023,10962,OUTDOOR EDUCATION SERVICE,5999,AMZNMKTPLACE,MISCELLANEOUS AND SPECIALTY RETAIL STORES,146.66
28/08/2023,10565,ROUGH SLEEPER AND RAPID HOUSING PATH,7523,COVENTRY CITY COUNCIL,AUTOMOBILE PARKING LOTS AND GARAGES,2
28/08/2023,10962,OUTDOOR EDUCATION SERVICE,5999,AMZNMKTPLACE,MISCELLANEOUS AND SPECIALTY RETAIL STORES,30.73
28/08/2023,11507,CARE LEAVERS,5411,SPAR BANNER LANE,"GROCERY STORES, SUPERMARKETS",4
28/08/2023,10225,HOUSING - B&B ACCOMMODATION,3811,PREMIER INN,PREMIER INN,768
28/08/2023,11865,PUBLIC HEALTH - MIGRATION,4131,NX BUS CONTACTLESS,BUS LINES,4.5
28/08/2023,10565,ROUGH SLEEPER AND RAPID HOUSING PATH,5399,WILKO RETAIL LIMITED,MISCELLANEOUS GENERAL MERCHANDISE,5.45
28/08/2023,10469,RESIDENTIAL - JOBS LANE,5999,AMZNMKTPLACE AMAZON.CO,MISCELLANEOUS AND SPECIALTY RETAIL STORES,15.75
28/08/2023,11932,LAC THROUGHCARE TEAM,4131,WEST MIDLANDS TRAV,BUS LINES,99
28/08/2023,11507,CARE LEAVERS,5814,MCDONALDS 521,FAST FOOD RESTAURANTS,9.92
28/08/2023,10379,CHILDREN?S CRISIS INTERVENTION TEAM,7999,WWW.LQCOVENTRY.CO.UK/,RECREATION SERVICES (NOT ELSEWHERE CLASSIFIED),180
28/08/2023,11507,CARE LEAVERS,5999,AMZNMKTPLACE AMAZON.CO,MISCELLANEOUS AND SPECIALTY RETAIL STORES,194.96
28/08/2023,10962,OUTDOOR EDUCATION SERVICE,5999,AMZNMKTPLACE,MISCELLANEOUS AND SPECIALTY RETAIL STORES,66.96
28/08/2023,11507,CARE LEAVERS,5813,PENNY FARTHING,"BAR,LOUNGE,DISCO,NIGHTCLUB,TAVERN-ALCOHOLIC DRINKS",27.51
29/08/2023,11746,RESIDENTIAL - GRAYSWOOD,5814,MCDONALDS,FAST FOOD RESTAURANTS,8.78
29/08/2023,10448,RESIDENTIAL - GRAVEL HILL,5814,SQ  THE BOATING LAKE C,FAST FOOD RESTAURANTS,53.1
29/08/2023,11507,CARE LEAVERS,5814,JUST EAT,FAST FOOD RESTAURANTS,38.76
29/08/2023,10448,RESIDENTIAL - GRAVEL HILL,5814,MCDONALDS,FAST FOOD RESTAURANTS,15.48
29/08/2023,10448,RESIDENTIAL - GRAVEL HILL,5941,SPORTSDIRECT.COM,SPORTING GOODS STORES,30
29/08/2023,11307,IPS MH THE POD,5977,SP NEALS YARD REM...,COSMETIC STORES,27.03
29/08/2023,10448,RESIDENTIAL - GRAVEL HILL,5499,INDULGENCE,"MISC FOOD STORE-CONVENIENCE,MRKT,SPLTY,VENDNG MACS",8.5
29/08/2023,10448,RESIDENTIAL - GRAVEL HILL,5814,MCDONALDS 1301,FAST FOOD RESTAURANTS,41.86
29/08/2023,11687,RESIDENTIAL - BROAD PARK HOUSE,5712,IKEA LTD 142 BIRMINGHA,"EQUIP, FURNITURE, HOME FURNSHNGS STRS (EXCPT APPL)",30.75
29/08/2023,10040,IPS HWC COPTHORNE,5811,BRAKES (STORED CARDS),CATERERS,137.38
29/08/2023,11687,RESIDENTIAL - BROAD PARK HOUSE,5999,AMZNMKTPLACE AMAZON.CO,MISCELLANEOUS AND SPECIALTY RETAIL STORES,4.49
29/08/2023,11746,RESIDENTIAL - GRAYSWOOD,5999,AMZNMKTPLACE,MISCELLANEOUS AND SPECIALTY RETAIL STORES,16
29/08/2023,11746,RESIDENTIAL - GRAYSWOOD,7997,TENPIN LTD - 124,"CLUBS-CNTRY,MBRSHIP(ATHLET,REC,SPRTS,PRIVATE GOLF",44.39
29/08/2023,10448,RESIDENTIAL - GRAVEL HILL,5399,B&M 470 - HS COVENTRY,MISCELLANEOUS GENERAL MERCHANDISE,19.99
29/08/2023,10448,RESIDENTIAL - GRAVEL HILL,7033,GOLDEN SANDS,CAMPGROUNDS AND TRAILER PARKS,14.65
29/08/2023,11746,RESIDENTIAL - GRAYSWOOD,5399,HOME BARGAINS,MISCELLANEOUS GENERAL MERCHANDISE,27.79
29/08/2023,10448,RESIDENTIAL - GRAVEL HILL,7832,SHOWCASE COVENTRY,MOTION PICTURE THEATERS,21.8
29/08/2023,11746,RESIDENTIAL - GRAYSWOOD,5411,ASDA STORES 4602,"GROCERY STORES, SUPERMARKETS",38.48
29/08/2023,11248,IPS ERIC WILLIAMS HOUSE,5999,AMZNMKTPLACE,MISCELLANEOUS AND SPECIALTY RETAIL STORES,11.4
29/08/2023,10448,RESIDENTIAL - GRAVEL HILL,7032,HAVEN,RECREATIONAL AND SPORTING CAMPS,10
29/08/2023,11687,RESIDENTIAL - BROAD PARK HOUSE,5999,AMZNMKTPLACE AMAZON.CO,MISCELLANEOUS AND SPECIALTY RETAIL STORES,42.22
29/08/2023,11687,RESIDENTIAL - BROAD PARK HOUSE,5999,AMZNMKTPLACE AMAZON.CO,MISCELLANEOUS AND SPECIALTY RETAIL STORES,6.99
29/08/2023,11277,FLEET SERVICES,5999,AMZNMKTPLACE AMAZON.CO,MISCELLANEOUS AND SPECIALTY RETAIL STORES,13.99
29/08/2023,10448,RESIDENTIAL - GRAVEL HILL,5719,THE RANGE,MISCELLANEOUS HOUSE FURNISHING SPECIALTY SHOPS,57.96
30/08/2023,11745,SAFEGUARDING CHILDREN SERVICE,5999,AMZNBUSINESS 1M1NV5DS4,MISCELLANEOUS AND SPECIALTY RETAIL STORES,49.36
30/08/2023,11072,ADULT EDUCATION ? WORK PLACE LEARNING,9399,SECURITY INDUSTRY AUTH,GOVERNMENT SERVICES-NOT ELSEWHERE CLASSIFIED,184
30/08/2023,11507,CARE LEAVERS,4112,CROSS COUNTRY TRAINS,PASSENGER RAILWAYS,191
30/08/2023,11928,COMMUNITY SUPPORT GRANTS,5999,AMZNMKTPLACE AMAZON.CO,MISCELLANEOUS AND SPECIALTY RETAIL STORES,23.87
30/08/2023,11928,COMMUNITY SUPPORT GRANTS,5999,AMZNMKTPLACE,MISCELLANEOUS AND SPECIALTY RETAIL STORES,7.94
30/08/2023,11928,COMMUNITY SUPPORT GRANTS,5999,AMZNMKTPLACE,MISCELLANEOUS AND SPECIALTY RETAIL STORES,22
30/08/2023,11928,COMMUNITY SUPPORT GRANTS,5999,AMZNMKTPLACE,MISCELLANEOUS AND SPECIALTY RETAIL STORES,13.74
30/08/2023,11928,COMMUNITY SUPPORT GRANTS,5999,AMZNMKTPLACE,MISCELLANEOUS AND SPECIALTY RETAIL STORES,59.75
30/08/2023,11928,COMMUNITY SUPPORT GRANTS,5999,AMZNMKTPLACE,MISCELLANEOUS AND SPECIALTY RETAIL STORES,48.48
30/08/2023,11928,COMMUNITY SUPPORT GRANTS,5999,AMZNMKTPLACE,MISCELLANEOUS AND SPECIALTY RETAIL STORES,13.74
30/08/2023,11928,COMMUNITY SUPPORT GRANTS,5999,AMZNMKTPLACE,MISCELLANEOUS AND SPECIALTY RETAIL STORES,23.87
30/08/2023,11928,COMMUNITY SUPPORT GRANTS,5999,AMZNMKTPLACE,MISCELLANEOUS AND SPECIALTY RETAIL STORES,96.96
30/08/2023,10225,HOUSING - B&B ACCOMMODATION,5311,WWW.ARGOS.CO.UK,DEPARTMENT STORES,85
30/08/2023,10300,INTERNAL FOSTERING TEAM,5969,AMAZON.CO.UK 1M16R1D04,DIRECT MARKETING-OTHER DIRECT MARKETERS/NOT ELSEW.,17.98
30/08/2023,11803,MEMBERS PICK AND MIX,5999,AMZNBUSINESS 1M8BD46W4,MISCELLANEOUS AND SPECIALTY RETAIL STORES,10.49
30/08/2023,11928,COMMUNITY SUPPORT GRANTS,5999,AMZNMKTPLACE,MISCELLANEOUS AND SPECIALTY RETAIL STORES,39.99
30/08/2023,11507,CARE LEAVERS,9399,DVLA DRIVER ONLINE,GOVERNMENT SERVICES-NOT ELSEWHERE CLASSIFIED,34
30/08/2023,10962,OUTDOOR EDUCATION SERVICE,7011,COOMBE ABBEY HOTEL CAF,"LODGING-HOTELS,MOTELS,RESORTS-NOT CLASSIFIED",55
30/08/2023,11792,HOUSING AND HOMELESSNESS,5422,NASEER HALAL MEAT,"FREEZER, LOCKER MEAT PROVISIONERS",10.5
30/08/2023,11928,COMMUNITY SUPPORT GRANTS,5999,AMZNMKTPLACE AMAZON.CO,MISCELLANEOUS AND SPECIALTY RETAIL STORES,48.48
30/08/2023,11307,IPS MH THE POD,5411,WM MORRISONS STORE,"GROCERY STORES, SUPERMARKETS",4.35
30/08/2023,10300,INTERNAL FOSTERING TEAM,7399,EB  CHILDREN MOVING OV,BUSINESS SERVICES-NOT ELSEWHERE CLASSIFIED,13.55
30/08/2023,11766,CPR0462 QUEEN VICTORIA ROAD RETAIL MARK,5399,HOME BARGAINS COVENTRY,MISCELLANEOUS GENERAL MERCHANDISE,3.48
30/08/2023,10448,RESIDENTIAL - GRAVEL HILL,7032,HAVEN,RECREATIONAL AND SPORTING CAMPS,16
30/08/2023,10828,CITY OF CULTURE,5211,WWW.SCREWFIX.COM,"BUILDING MATERIALS, LUMBER STORES",8.23
30/08/2023,10448,RESIDENTIAL - GRAVEL HILL,7922,KIDS PASS LIMITED,"THEATRICAL PRODUCERS(EXCL MOTION PIX),TICKET AGNCY",63
30/08/2023,11507,CARE LEAVERS,7523,WALSGRAVE CAR PARK,AUTOMOBILE PARKING LOTS AND GARAGES,5
30/08/2023,11507,CARE LEAVERS,5994,MARKS&SPENCER PLC SF,NEWS DEALERS AND NEWSSTANDS,8.5
30/08/2023,11507,CARE LEAVERS,5814,SUBWAY 61942 GALLAGHER,FAST FOOD RESTAURANTS,10.49
30/08/2023,10448,RESIDENTIAL - GRAVEL HILL,7033,GOLDEN SANDS,CAMPGROUNDS AND TRAILER PARKS,17.84
30/08/2023,10448,RESIDENTIAL - GRAVEL HILL,5812,INDIA GATE,"EATING PLACES, RESTAURANTS",72.9
30/08/2023,10638,"SSGS PERFORMANCE, PROJECTS & TECHN",5399,ACOO/PROMOSCENTRAL,MISCELLANEOUS GENERAL MERCHANDISE,40.56
30/08/2023,10211,MIGRATION PROJECT B,5310,POUNDLAND LTD - 2017,DISCOUNT STORES,32
30/08/2023,11928,COMMUNITY SUPPORT GRANTS,5999,AMZNMKTPLACE AMAZON.CO,MISCELLANEOUS AND SPECIALTY RETAIL STORES,11
30/08/2023,12010,TEMPORARY ACCOMMODATION - FAMILIES,5999,TIMPSON LTD,MISCELLANEOUS AND SPECIALTY RETAIL STORES,31.5
30/08/2023,11507,CARE LEAVERS,4121,UBER    TRIP,LIMOUSINES AND TAXICABS,15.96
30/08/2023,11354,IPS DAY OPPS GILBERT RICHARDS CENTRE,5411,ONE STOP 1528,"GROCERY STORES, SUPERMARKETS",4.65
30/08/2023,10469,RESIDENTIAL - JOBS LANE,4131,WEST MIDLANDS TRAV,BUS LINES,231.35
30/08/2023,10103,SECTION17 PAYMENTS EAST,8699,ONTOPUP.COM,"ORGANIZATIONS, MEMBERSHIP-NOT ELSEWHERE CLASSIFIED",17.84
30/08/2023,11149,WAR MEMORIAL PARK,7999,CROMA LOCKSMITHS & SEC,RECREATION SERVICES (NOT ELSEWHERE CLASSIFIED),272.76
30/08/2023,10512,REGISTER OFFICE,9402,POST OFFICE COUNTER,POSTAL SERVICES-GOVERNMENT ONLY,165
30/08/2023,10291,SECTION17 PAYMENTS CENTRAL,5311,WWW.ARGOS.CO.UK,DEPARTMENT STORES,13.5
30/08/2023,11300,PEST CONTROL & ANIMAL WELFARE,5200,B & Q 1231,HOME SUPPLY WAREHOUSE STORES,99.5
30/08/2023,11984,IPS MAYMORN RESOURCE CENTRE,5411,BOOKER LTD - 38535674,"GROCERY STORES, SUPERMARKETS",9.23
30/08/2023,11984,IPS MAYMORN RESOURCE CENTRE,5411,BOOKER LTD - 38535674,"GROCERY STORES, SUPERMARKETS",52.65
30/08/2023,10103,SECTION17 PAYMENTS EAST,9399,DVLA DRIVER ONLINE,GOVERNMENT SERVICES-NOT ELSEWHERE CLASSIFIED,34
30/08/2023,11928,COMMUNITY SUPPORT GRANTS,5999,AMZNMKTPLACE,MISCELLANEOUS AND SPECIALTY RETAIL STORES,7.94
30/08/2023,11928,COMMUNITY SUPPORT GRANTS,5999,AMZNMKTPLACE AMAZON.CO,MISCELLANEOUS AND SPECIALTY RETAIL STORES,48.48
30/08/2023,11928,COMMUNITY SUPPORT GRANTS,5999,AMZNMKTPLACE,MISCELLANEOUS AND SPECIALTY RETAIL STORES,59.75
30/08/2023,11307,IPS MH THE POD,5411,COSTCUTTER,"GROCERY STORES, SUPERMARKETS",6.49
30/08/2023,11687,RESIDENTIAL - BROAD PARK HOUSE,5411,ALDI STORES ATHERSTONE,"GROCERY STORES, SUPERMARKETS",235.73
30/08/2023,11307,IPS MH THE POD,5411,SAINSBURYS S MKTS,"GROCERY STORES, SUPERMARKETS",3.71
30/08/2023,11307,IPS MH THE POD,5411,TESCO STORES 5779,"GROCERY STORES, SUPERMARKETS",1.95
30/08/2023,11307,IPS MH THE POD,5411,SAINSBURYS S MKTS,"GROCERY STORES, SUPERMARKETS",3.75
30/08/2023,11928,COMMUNITY SUPPORT GRANTS,5999,AMZNMKTPLACE,MISCELLANEOUS AND SPECIALTY RETAIL STORES,11
30/08/2023,11307,IPS MH THE POD,5411,SUMUP   BAIXING FOODS,"GROCERY STORES, SUPERMARKETS",5.67
30/08/2023,11928,COMMUNITY SUPPORT GRANTS,5999,AMZNMKTPLACE,MISCELLANEOUS AND SPECIALTY RETAIL STORES,31.82
30/08/2023,11103,RESIDENTIAL - BROAD LANE,5814,STARBUCKS,FAST FOOD RESTAURANTS,12.91
30/08/2023,10029,COOMBE,5211,WWW.SCREWFIX.COM,"BUILDING MATERIALS, LUMBER STORES",23.96
30/08/2023,11507,CARE LEAVERS,9399,COVENTRY CITY COUNCIL,GOVERNMENT SERVICES-NOT ELSEWHERE CLASSIFIED,11
30/08/2023,11507,CARE LEAVERS,7523,WALSGRAVE CAR PARK,AUTOMOBILE PARKING LOTS AND GARAGES,5
30/08/2023,11746,RESIDENTIAL - GRAYSWOOD,5310,ARGOS CANLEY,DISCOUNT STORES,23.5
30/08/2023,11248,IPS ERIC WILLIAMS HOUSE,5811,BRAKES (STORED CARDS),CATERERS,589.29
30/08/2023,11135,YOUTH OFFENDING SERVICE,5999,AMZNBUSINESS 1M0U70QO4,MISCELLANEOUS AND SPECIALTY RETAIL STORES,62.22
30/08/2023,10169,SECTION17 PAYMENTS SOUTH,5311,WWW.ARGOS.CO.UK,DEPARTMENT STORES,56
30/08/2023,11507,CARE LEAVERS,5994,MARKS&SPENCER PLC SF,NEWS DEALERS AND NEWSSTANDS,15.3
30/08/2023,11930,HIGHWAYS HOLDING - CONFIRM,1761,RIGHTON & BLACKBURNS,"ROOFING AND SIDING, SHEET METAL WORK CONTRACTORS","1,000.00"
30/08/2023,11930,HIGHWAYS HOLDING - CONFIRM,1761,RIGHTON & BLACKBURNS,"ROOFING AND SIDING, SHEET METAL WORK CONTRACTORS",964.4
30/08/2023,11746,RESIDENTIAL - GRAYSWOOD,7523,WWW.LOWERPRECINCT.,AUTOMOBILE PARKING LOTS AND GARAGES,1
30/08/2023,11149,WAR MEMORIAL PARK,5941,SP BISHOPSPORT.CO.UK,SPORTING GOODS STORES,219.3
30/08/2023,11746,RESIDENTIAL - GRAYSWOOD,5621,NEW LOOK 1856,WOMEN'S READY TO WEAR STORES,47.78
30/08/2023,11507,CARE LEAVERS,8398,ALLPAY  CITIZEN HOUSIN,"ORGANIZATIONS, CHARITABLE AND SOCIAL SERVICES",432.24
30/08/2023,10951,IPS HWC SHORT TERM TENANCIES,4900,OVO ENERGY LTD,"UTLTS-ELCTRC, GAS, HEATING OIL, SANITARY, WATER",26.34
30/08/2023,11197,WEST FAMILY HUB,5411,WM MORRISONS STORE,"GROCERY STORES, SUPERMARKETS",15.2
30/08/2023,11507,CARE LEAVERS,5411,ASDA  STORES 4523,"GROCERY STORES, SUPERMARKETS",237.12
30/08/2023,10951,IPS HWC SHORT TERM TENANCIES,4900,E.ON NEXT,"UTLTS-ELCTRC, GAS, HEATING OIL, SANITARY, WATER",51.2
30/08/2023,11687,RESIDENTIAL - BROAD PARK HOUSE,5411,TESCO STORES 2323,"GROCERY STORES, SUPERMARKETS",68.79
30/08/2023,10497,HOSPITAL SOCIAL CARE SERVICE,5999,AMZNMKTPLACE,MISCELLANEOUS AND SPECIALTY RETAIL STORES,42.52
30/08/2023,11197,WEST FAMILY HUB,5200,B & Q 1231,HOME SUPPLY WAREHOUSE STORES,49
30/08/2023,10383,IPS HWC KNIGHTLOW,5811,BRAKES (STORED CARDS),CATERERS,151.54
30/08/2023,10951,IPS HWC SHORT TERM TENANCIES,4900,E.ON NEXT,"UTLTS-ELCTRC, GAS, HEATING OIL, SANITARY, WATER",35.35
30/08/2023,10962,OUTDOOR EDUCATION SERVICE,5411,TESCO STORES 5168,"GROCERY STORES, SUPERMARKETS",7.25
30/08/2023,11874,OPR0077 EARL STREET COUNCIL HOUSE,5211,WWW.SCREWFIX.COM,"BUILDING MATERIALS, LUMBER STORES",79.96
30/08/2023,11928,COMMUNITY SUPPORT GRANTS,5999,AMZNMKTPLACE AMAZON.CO,MISCELLANEOUS AND SPECIALTY RETAIL STORES,7.94
30/08/2023,11865,PUBLIC HEALTH - MIGRATION,5411,TESCO STORES 5168,"GROCERY STORES, SUPERMARKETS",109.9
30/08/2023,10225,HOUSING - B&B ACCOMMODATION,5311,WWW.ARGOS.CO.UK,DEPARTMENT STORES,5
30/08/2023,11307,IPS MH THE POD,5411,SAINSBURYS S MKTS,"GROCERY STORES, SUPERMARKETS",11
30/08/2023,11928,COMMUNITY SUPPORT GRANTS,5999,AMZNMKTPLACE,MISCELLANEOUS AND SPECIALTY RETAIL STORES,39.99
30/08/2023,10251,IPS LD PILS OPERATIONAL,4812,AMAZON  205-3803981-12,TELECOMMUNICATION EQUIPMENT INCL TELEPHONE SALES,58.48
30/08/2023,11792,HOUSING AND HOMELESSNESS,4900,WWW.OVOENERGY.COM,"UTLTS-ELCTRC, GAS, HEATING OIL, SANITARY, WATER",40
30/08/2023,11307,IPS MH THE POD,5200,B & Q 1231,HOME SUPPLY WAREHOUSE STORES,22.3
30/08/2023,11307,IPS MH THE POD,5691,MGP VINTED 68435288,MEN'S AND WOMEN'S CLOTHING STORES,41.44
30/08/2023,10411,IPS HWC QUINTON LODGE,5811,BRAKES (STORED CARDS),CATERERS,135.71
30/08/2023,10291,SECTION17 PAYMENTS CENTRAL,5411,ASDA GEORGE COM LEEDS,"GROCERY STORES, SUPERMARKETS",60.3
30/08/2023,10103,SECTION17 PAYMENTS EAST,9399,HM PASSPORT OFFICE,GOVERNMENT SERVICES-NOT ELSEWHERE CLASSIFIED,82.5
30/08/2023,11771,STREETPRIDE SOUTH,8911,KEBRELL NUTS & BOLTS L,"ARCHITECTURAL, ENGINEERING, AND SURVEYING SERVICES",18
30/08/2023,10145,IPS LD BRANDON WOOD FARM,5411,TESCO STORES 5168,"GROCERY STORES, SUPERMARKETS",8.2
30/08/2023,10368,PARKS ? EVENTS & ACTIVITIES,5044,SHOPSTUFF UK LTD,OFFICE PHOTOGRAPHIC PHOTOCOPY & MICROFILM EQUIPMT.,60
30/08/2023,10291,SECTION17 PAYMENTS CENTRAL,4112,TRAINLINE,PASSENGER RAILWAYS,70.1
31/08/2023,10416,LAC PERMANENCY,9399,HM PASSPORT OFFICE,GOVERNMENT SERVICES-NOT ELSEWHERE CLASSIFIED,58.5
31/08/2023,12010,TEMPORARY ACCOMMODATION - FAMILIES,5651,PRIMARK - COVENTRY,FAMILY CLOTHING STORES,36
31/08/2023,11507,CARE LEAVERS,5411,ASDA SUPERSTORE,"GROCERY STORES, SUPERMARKETS",64.69
31/08/2023,11381,PUBLIC HEALTH,5411,MARKS&SPENCER PLC,"GROCERY STORES, SUPERMARKETS",1.45
31/08/2023,10084,SECTION17 PAYMENTS WEST,5999,AMZNMKTPLACE,MISCELLANEOUS AND SPECIALTY RETAIL STORES,7.99
31/08/2023,11381,PUBLIC HEALTH,4131,WEST MIDLANDS TRAV,BUS LINES,30
31/08/2023,11381,PUBLIC HEALTH,4131,WEST MIDLANDS TRAV,BUS LINES,60
31/08/2023,11507,CARE LEAVERS,5814,FIVE GUYS COVENTRY,FAST FOOD RESTAURANTS,37.9
31/08/2023,11248,IPS ERIC WILLIAMS HOUSE,5422,WWW.MIDLANDFOODS.CO.UK,"FREEZER, LOCKER MEAT PROVISIONERS",159.23
31/08/2023,11248,IPS ERIC WILLIAMS HOUSE,5422,WWW.MIDLANDFOODS.CO.UK,"FREEZER, LOCKER MEAT PROVISIONERS",23.27
31/08/2023,11687,RESIDENTIAL - BROAD PARK HOUSE,5999,AMZNBUSINESS 1M1EX6KK4,MISCELLANEOUS AND SPECIALTY RETAIL STORES,34.99
31/08/2023,11687,RESIDENTIAL - BROAD PARK HOUSE,5411,MALCOLMS STORES LIMITE,"GROCERY STORES, SUPERMARKETS",13.96
31/08/2023,11248,IPS ERIC WILLIAMS HOUSE,5422,WWW.MIDLANDFOODS.CO.UK,"FREEZER, LOCKER MEAT PROVISIONERS",128.13
31/08/2023,11687,RESIDENTIAL - BROAD PARK HOUSE,5814,JUST EAT,FAST FOOD RESTAURANTS,8.77
31/08/2023,11507,CARE LEAVERS,5732,CURRYS ONLINE,ELECTRONIC SALES,169
31/08/2023,11928,COMMUNITY SUPPORT GRANTS,5999,AMZNMKTPLACE AMAZON.CO,MISCELLANEOUS AND SPECIALTY RETAIL STORES,-49.99
31/08/2023,10565,ROUGH SLEEPER AND RAPID HOUSING PATH,5310,ARGOS CANLEY,DISCOUNT STORES,23.5
31/08/2023,11057,SFPC-FAMILY GROUP CONFERENCING,5814,MCDONALDS,FAST FOOD RESTAURANTS,14.07
31/08/2023,10565,ROUGH SLEEPER AND RAPID HOUSING PATH,5411,ALDI 108 772,"GROCERY STORES, SUPERMARKETS",5.49
31/08/2023,10565,ROUGH SLEEPER AND RAPID HOUSING PATH,5411,SAINSBURY'S S/MKT,"GROCERY STORES, SUPERMARKETS",9.5
31/08/2023,10469,RESIDENTIAL - JOBS LANE,7523,"BULLRING CAR PARK, BIR",AUTOMOBILE PARKING LOTS AND GARAGES,3.5
31/08/2023,11381,PUBLIC HEALTH,9399,DISCLOSURE AND BARRING,GOVERNMENT SERVICES-NOT ELSEWHERE CLASSIFIED,18
31/08/2023,11381,PUBLIC HEALTH,9399,DISCLOSURE AND BARRING,GOVERNMENT SERVICES-NOT ELSEWHERE CLASSIFIED,18
31/08/2023,11507,CARE LEAVERS,5422,HALAL MEAT CENTRE,"FREEZER, LOCKER MEAT PROVISIONERS",3.7
31/08/2023,11507,CARE LEAVERS,9399,WWW.WMCA.CO.UK,GOVERNMENT SERVICES-NOT ELSEWHERE CLASSIFIED,30
31/08/2023,11792,HOUSING AND HOMELESSNESS,5999,AMZNMKTPLACE AMAZON.CO,MISCELLANEOUS AND SPECIALTY RETAIL STORES,28.99
31/08/2023,10469,RESIDENTIAL - JOBS LANE,5311,SELFRIDGES,DEPARTMENT STORES,33
31/08/2023,11870,IPS LD WILFRED SPENCER CENTRE,5411,WM MORRISONS STORE,"GROCERY STORES, SUPERMARKETS",138.54
31/08/2023,11870,IPS LD WILFRED SPENCER CENTRE,5411,WM MORRISONS STORE,"GROCERY STORES, SUPERMARKETS",15.84
31/08/2023,11507,CARE LEAVERS,1731,PJ ELECTRICAL MIDLANDS,ELECTRICAL CONTRACTORS,60
31/08/2023,11507,CARE LEAVERS,9399,WWW.WMCA.CO.UK,GOVERNMENT SERVICES-NOT ELSEWHERE CLASSIFIED,30
31/08/2023,10211,MIGRATION PROJECT B,4131,WEST MIDLANDS TRAV,BUS LINES,808.45
31/08/2023,11381,PUBLIC HEALTH,4131,WEST MIDLANDS TRAV,BUS LINES,60
31/08/2023,11507,CARE LEAVERS,9399,WWW.WMCA.CO.UK,GOVERNMENT SERVICES-NOT ELSEWHERE CLASSIFIED,30
31/08/2023,10962,OUTDOOR EDUCATION SERVICE,7011,COOMBE ABBEY HOTEL CAF,"LODGING-HOTELS,MOTELS,RESORTS-NOT CLASSIFIED",65
31/08/2023,11154,HIGHWAYS: OVERHEAD,5999,AMZNMKTPLACE,MISCELLANEOUS AND SPECIALTY RETAIL STORES,24.65
31/08/2023,11107,CENTRAL FAMILY HUB,9402,POST OFFICE COUNTER,POSTAL SERVICES-GOVERNMENT ONLY,10.4
31/08/2023,11842,"OCCUPATIONAL HEALTH, COUNSELLING & SUPPO",5399,WILKO RETAIL LIMITED,MISCELLANEOUS GENERAL MERCHANDISE,3.15
31/08/2023,11848,COMMERCIAL PROPERTY MANAGEMENT (STAF,8220,PROCONFERENCES.COM,"COLLEGES, UNIV, PRO SCHOOLS, JUNIOR COLLEGES",285.6
31/08/2023,10900,LOCAL WELFARE PROVISION COVID-19,5999,AMZNMKTPLACE,MISCELLANEOUS AND SPECIALTY RETAIL STORES,41.64
31/08/2023,11928,COMMUNITY SUPPORT GRANTS,5999,AMZNMKTPLACE,MISCELLANEOUS AND SPECIALTY RETAIL STORES,48.48
31/08/2023,11928,COMMUNITY SUPPORT GRANTS,5999,AMZNMKTPLACE,MISCELLANEOUS AND SPECIALTY RETAIL STORES,169.99
31/08/2023,11928,COMMUNITY SUPPORT GRANTS,5999,AMZ WILSON BEDS LTD,MISCELLANEOUS AND SPECIALTY RETAIL STORES,-48.48
31/08/2023,11928,COMMUNITY SUPPORT GRANTS,5999,AMZNMKTPLACE,MISCELLANEOUS AND SPECIALTY RETAIL STORES,7.94
31/08/2023,11928,COMMUNITY SUPPORT GRANTS,5999,AMZNMKTPLACE,MISCELLANEOUS AND SPECIALTY RETAIL STORES,41.83
31/08/2023,10900,LOCAL WELFARE PROVISION COVID-19,5999,AMZNMKTPLACE AMAZON.CO,MISCELLANEOUS AND SPECIALTY RETAIL STORES,113.98
31/08/2023,10900,LOCAL WELFARE PROVISION COVID-19,7399,CS  TESCO STORES GC,BUSINESS SERVICES-NOT ELSEWHERE CLASSIFIED,"1,345.00"
31/08/2023,11507,CARE LEAVERS,5411,SEA VIEW FISH AND CHIP,"GROCERY STORES, SUPERMARKETS",4.5
31/08/2023,11307,IPS MH THE POD,5411,TESCO STORES 5779,"GROCERY STORES, SUPERMARKETS",3.6
31/08/2023,10900,LOCAL WELFARE PROVISION COVID-19,7399,CS  TESCO STORES GC,BUSINESS SERVICES-NOT ELSEWHERE CLASSIFIED,"1,895.00"
31/08/2023,11307,IPS MH THE POD,5411,SAINSBURYS S MKTS,"GROCERY STORES, SUPERMARKETS",0.96
31/08/2023,10900,LOCAL WELFARE PROVISION COVID-19,5999,AMZNMKTPLACE,MISCELLANEOUS AND SPECIALTY RETAIL STORES,61.62
31/08/2023,11928,COMMUNITY SUPPORT GRANTS,5999,AMZNMKTPLACE,MISCELLANEOUS AND SPECIALTY RETAIL STORES,48.48
31/08/2023,11928,COMMUNITY SUPPORT GRANTS,5999,AMZNMKTPLACE,MISCELLANEOUS AND SPECIALTY RETAIL STORES,41.83
31/08/2023,11928,COMMUNITY SUPPORT GRANTS,5999,AMZNMKTPLACE,MISCELLANEOUS AND SPECIALTY RETAIL STORES,23.87
31/08/2023,11928,COMMUNITY SUPPORT GRANTS,5999,AMZNMKTPLACE,MISCELLANEOUS AND SPECIALTY RETAIL STORES,11
31/08/2023,11928,COMMUNITY SUPPORT GRANTS,5999,AMZNMKTPLACE,MISCELLANEOUS AND SPECIALTY RETAIL STORES,7.96
31/08/2023,11507,CARE LEAVERS,5411,TESCO STORES 5553,"GROCERY STORES, SUPERMARKETS",12.25
31/08/2023,10900,LOCAL WELFARE PROVISION COVID-19,7399,CS  TESCO STORES GC,BUSINESS SERVICES-NOT ELSEWHERE CLASSIFIED,"1,970.00"
31/08/2023,11507,CARE LEAVERS,5812,WETHERBY WH SMITHS,"EATING PLACES, RESTAURANTS",6.7
31/08/2023,11507,CARE LEAVERS,5814,MCDONALDS,FAST FOOD RESTAURANTS,6.97
31/08/2023,10828,CITY OF CULTURE,5211,WWW.SCREWFIX.COM,"BUILDING MATERIALS, LUMBER STORES",70.94
31/08/2023,10040,IPS HWC COPTHORNE,5422,WWW.MIDLANDFOODS.CO.UK,"FREEZER, LOCKER MEAT PROVISIONERS",173.35
31/08/2023,10029,COOMBE,2741,WWW.THEENGRAVINGWORKSH,MISCELLANEOUS PUBLISHING AND PRINTING,37.7
31/08/2023,10040,IPS HWC COPTHORNE,5499,WWW.JOHALDAIRIES.CO.UK,"MISC FOOD STORE-CONVENIENCE,MRKT,SPLTY,VENDNG MACS",12.26
31/08/2023,11507,CARE LEAVERS,5812,GREGGS PLC,"EATING PLACES, RESTAURANTS",18.45
31/08/2023,11507,CARE LEAVERS,9399,HM PASSPORT OFFICE,GOVERNMENT SERVICES-NOT ELSEWHERE CLASSIFIED,82.5
31/08/2023,11870,IPS LD WILFRED SPENCER CENTRE,5499,WWW.JOHALDAIRIES.CO.UK,"MISC FOOD STORE-CONVENIENCE,MRKT,SPLTY,VENDNG MACS",36.11
31/08/2023,11870,IPS LD WILFRED SPENCER CENTRE,5999,AMZNMKTPLACE,MISCELLANEOUS AND SPECIALTY RETAIL STORES,3.72
31/08/2023,11103,RESIDENTIAL - BROAD LANE,7278,COSTCO WHOLESALE #122,"BUYING/SHOPPING CLUBS, SERVICES",49.32
31/08/2023,11870,IPS LD WILFRED SPENCER CENTRE,5999,AMZNMKTPLACE,MISCELLANEOUS AND SPECIALTY RETAIL STORES,26.97
31/08/2023,11932,LAC THROUGHCARE TEAM,5311,WWW.ARGOS.CO.UK,DEPARTMENT STORES,155.94
31/08/2023,11103,RESIDENTIAL - BROAD LANE,7997,TENPIN LTD - 124,"CLUBS-CNTRY,MBRSHIP(ATHLET,REC,SPRTS,PRIVATE GOLF",17.1
31/08/2023,10951,IPS HWC SHORT TERM TENANCIES,4900,E.ON NEXT,"UTLTS-ELCTRC, GAS, HEATING OIL, SANITARY, WATER",42.26
31/08/2023,11157,IPS HWC ELSIE JONES,5422,WWW.MIDLANDFOODS.CO.UK,"FREEZER, LOCKER MEAT PROVISIONERS",88.91
31/08/2023,11922,ICT USER SUPPORT,5999,AMZNMKTPLACE,MISCELLANEOUS AND SPECIALTY RETAIL STORES,52.45
31/08/2023,11842,"OCCUPATIONAL HEALTH, COUNSELLING & SUPPO",5999,TIMPSON LTD,MISCELLANEOUS AND SPECIALTY RETAIL STORES,31.5
31/08/2023,10397,"AD - PLANNING, TRANSPORT & HIGHWAYS",5310,DEFENDAPACK,DISCOUNT STORES,670.45
31/08/2023,11922,ICT USER SUPPORT,5969,AMAZON.CO.UK 1M9JN5734,DIRECT MARKETING-OTHER DIRECT MARKETERS/NOT ELSEW.,10.8
31/08/2023,11879,IPS LD MAURICE EDELMAN HOUSE,5422,WWW.MIDLANDFOODS.CO.UK,"FREEZER, LOCKER MEAT PROVISIONERS",12.3
31/08/2023,11879,IPS LD MAURICE EDELMAN HOUSE,5422,WWW.MIDLANDFOODS.CO.UK,"FREEZER, LOCKER MEAT PROVISIONERS",25.06
31/08/2023,11984,IPS MAYMORN RESOURCE CENTRE,5411,TESCO STORES 2328,"GROCERY STORES, SUPERMARKETS",13.6
31/08/2023,10232,CHILDREN?S DISABILITY,5399,B&M 470 - HS COVENTRY,MISCELLANEOUS GENERAL MERCHANDISE,2
31/08/2023,11995,IPS HWC HARRY CAPLAN,5422,WWW.MIDLANDFOODS.CO.UK,"FREEZER, LOCKER MEAT PROVISIONERS",58.29
31/08/2023,11879,IPS LD MAURICE EDELMAN HOUSE,5422,WWW.MIDLANDFOODS.CO.UK,"FREEZER, LOCKER MEAT PROVISIONERS",79.88
31/08/2023,11879,IPS LD MAURICE EDELMAN HOUSE,5499,WWW.JOHALDAIRIES.CO.UK,"MISC FOOD STORE-CONVENIENCE,MRKT,SPLTY,VENDNG MACS",214.45
31/08/2023,11687,RESIDENTIAL - BROAD PARK HOUSE,5411,ASDA STORES 4602,"GROCERY STORES, SUPERMARKETS",189.36
31/08/2023,11354,IPS DAY OPPS GILBERT RICHARDS CENTRE,5499,WWW.JOHALDAIRIES.CO.UK,"MISC FOOD STORE-CONVENIENCE,MRKT,SPLTY,VENDNG MACS",21.75
31/08/2023,11197,WEST FAMILY HUB,5499,WWW.JOHALDAIRIES.CO.UK,"MISC FOOD STORE-CONVENIENCE,MRKT,SPLTY,VENDNG MACS",6.23
31/08/2023,11995,IPS HWC HARRY CAPLAN,5422,WWW.MIDLANDFOODS.CO.UK,"FREEZER, LOCKER MEAT PROVISIONERS",63.88
31/08/2023,11507,CARE LEAVERS,4784,M6 TOLL,"BRIDGE AND ROAD FEES, TOLLS",8.6
31/08/2023,11879,IPS LD MAURICE EDELMAN HOUSE,5422,WWW.MIDLANDFOODS.CO.UK,"FREEZER, LOCKER MEAT PROVISIONERS",46.8
31/08/2023,11879,IPS LD MAURICE EDELMAN HOUSE,5422,WWW.MIDLANDFOODS.CO.UK,"FREEZER, LOCKER MEAT PROVISIONERS",72.66
31/08/2023,10541,COVENTRY EXTENDED LEARNING CENTRE,5411,ASDA GROCERIES ONLINE,"GROCERY STORES, SUPERMARKETS",71.74
31/08/2023,11894,ICT SYSTEMS,5734,BOOKWHEN- SOFTWARE SUB,COMPUTER SOFTWARE STORES,468
31/08/2023,10989,NOISE ENFORCEMENT,9402,POST OFFICE COUNTER,POSTAL SERVICES-GOVERNMENT ONLY,185
31/08/2023,11149,WAR MEMORIAL PARK,5995,COVENTRY SEEDS,PET SHOPS - PET FOODS AND SUPPLIES,101
31/08/2023,11879,IPS LD MAURICE EDELMAN HOUSE,5422,WWW.MIDLANDFOODS.CO.UK,"FREEZER, LOCKER MEAT PROVISIONERS",57.37
31/08/2023,11879,IPS LD MAURICE EDELMAN HOUSE,5422,WWW.MIDLANDFOODS.CO.UK,"FREEZER, LOCKER MEAT PROVISIONERS",106.7
31/08/2023,11766,CPR0462 QUEEN VICTORIA ROAD RETAIL MARK,5211,WWW.SCREWFIX.COM,"BUILDING MATERIALS, LUMBER STORES",29.47
31/08/2023,11001,BUSINESS INVESTMENT ? INWARD INVESTME,4112,TRAINLINE,PASSENGER RAILWAYS,7.03
31/08/2023,11764,HOSPITAL EDUCATION & OUTREACH SERVICE,5999,AMZNMKTPLACE,MISCELLANEOUS AND SPECIALTY RETAIL STORES,58.64
31/08/2023,10448,RESIDENTIAL - GRAVEL HILL,7392,TVLICENSING.CO.UK,"CONSULTING, MANAGEMENT, AND PUBLIC RELATIONS SVCS",159
31/08/2023,10360,JOB SHOP,9399,DVLA DRIVER ONLINE,GOVERNMENT SERVICES-NOT ELSEWHERE CLASSIFIED,34
31/08/2023,10232,CHILDREN?S DISABILITY,4112,TRAINLINE,PASSENGER RAILWAYS,4.78
31/08/2023,11381,PUBLIC HEALTH,4131,WEST MIDLANDS TRAV,BUS LINES,30
31/08/2023,11995,IPS HWC HARRY CAPLAN,5499,WWW.JOHALDAIRIES.CO.UK,"MISC FOOD STORE-CONVENIENCE,MRKT,SPLTY,VENDNG MACS",8.47
31/08/2023,11024,DOMESTIC REFUSE,5999,AMZNMKTPLACE,MISCELLANEOUS AND SPECIALTY RETAIL STORES,15.51
31/08/2023,10448,RESIDENTIAL - GRAVEL HILL,5814,MRS M S TRADITIONAL FI,FAST FOOD RESTAURANTS,35.69
31/08/2023,11507,CARE LEAVERS,4784,M6 TOLL,"BRIDGE AND ROAD FEES, TOLLS",5.8
31/08/2023,10448,RESIDENTIAL - GRAVEL HILL,7996,FANTASY ISLAND,"AMUSEMENT PARKS,CARNIVALS,CIRCUS,FORTUNE TELLERS",88.5
31/08/2023,11507,CARE LEAVERS,5814,MC'S CHIP SHOP,FAST FOOD RESTAURANTS,5
31/08/2023,11865,PUBLIC HEALTH - MIGRATION,5411,AR EXPRESS,"GROCERY STORES, SUPERMARKETS",5.54
31/08/2023,10169,SECTION17 PAYMENTS SOUTH,5311,WWW.ARGOS.CO.UK,DEPARTMENT STORES,14.49
31/08/2023,11507,CARE LEAVERS,4112,TRAINLINE,PASSENGER RAILWAYS,117.99
31/08/2023,10448,RESIDENTIAL - GRAVEL HILL,7032,HAVEN,RECREATIONAL AND SPORTING CAMPS,8
31/08/2023,11874,OPR0077 EARL STREET COUNCIL HOUSE,5999,AMZNMKTPLACE,MISCELLANEOUS AND SPECIALTY RETAIL STORES,13.98
31/08/2023,11746,RESIDENTIAL - GRAYSWOOD,4215,TSB RETURNS LTD,"COURIER SVC-AIR & GROUND, FREIGHT FORWARDERS",1.79
31/08/2023,11507,CARE LEAVERS,5462,ROYAL BAKERY,BAKERIES,11.9
31/08/2023,11507,CARE LEAVERS,5814,KFC-WEST ORCHARDS,FAST FOOD RESTAURANTS,13.17
31/08/2023,10448,RESIDENTIAL - GRAVEL HILL,7523,SMART PARKING FANTASY,AUTOMOBILE PARKING LOTS AND GARAGES,8
31/08/2023,11403,IPS HWC COTTAGE FARM,5422,WWW.MIDLANDFOODS.CO.UK,"FREEZER, LOCKER MEAT PROVISIONERS",74.01
31/08/2023,11746,RESIDENTIAL - GRAYSWOOD,5411,TESCO STORES 2328,"GROCERY STORES, SUPERMARKETS",224.99
31/08/2023,10145,IPS LD BRANDON WOOD FARM,5499,WWW.JOHALDAIRIES.CO.UK,"MISC FOOD STORE-CONVENIENCE,MRKT,SPLTY,VENDNG MACS",7.8
31/08/2023,11995,IPS HWC HARRY CAPLAN,5422,WWW.MIDLANDFOODS.CO.UK,"FREEZER, LOCKER MEAT PROVISIONERS",68.43
31/08/2023,11766,CPR0462 QUEEN VICTORIA ROAD RETAIL MARK,5999,AMZNMKTPLACE,MISCELLANEOUS AND SPECIALTY RETAIL STORES,14.97
31/08/2023,11932,LAC THROUGHCARE TEAM,9399,COVENTRY CITY COUNCIL,GOVERNMENT SERVICES-NOT ELSEWHERE CLASSIFIED,-11
31/08/2023,11995,IPS HWC HARRY CAPLAN,5422,WWW.MIDLANDFOODS.CO.UK,"FREEZER, LOCKER MEAT PROVISIONERS",43.62
31/08/2023,11928,COMMUNITY SUPPORT GRANTS,5999,AMZNMKTPLACE AMAZON.CO,MISCELLANEOUS AND SPECIALTY RETAIL STORES,-48.49
31/08/2023,11057,SFPC-FAMILY GROUP CONFERENCING,5411,TESCO STORES 5828,"GROCERY STORES, SUPERMARKETS",2.55
31/08/2023,11746,RESIDENTIAL - GRAYSWOOD,5691,PRETTYLITTLETHING.COM,MEN'S AND WOMEN'S CLOTHING STORES,79.75
31/08/2023,11771,STREETPRIDE SOUTH,5999,AMZNBUSINESS 1M2VA7DT4,MISCELLANEOUS AND SPECIALTY RETAIL STORES,4.55
31/08/2023,11995,IPS HWC HARRY CAPLAN,5422,WWW.MIDLANDFOODS.CO.UK,"FREEZER, LOCKER MEAT PROVISIONERS",11.78
31/08/2023,11248,IPS ERIC WILLIAMS HOUSE,5422,WWW.MIDLANDFOODS.CO.UK,"FREEZER, LOCKER MEAT PROVISIONERS",112.96
31/08/2023,11248,IPS ERIC WILLIAMS HOUSE,5422,WWW.MIDLANDFOODS.CO.UK,"FREEZER, LOCKER MEAT PROVISIONERS",122.44
31/08/2023,11248,IPS ERIC WILLIAMS HOUSE,5499,WWW.JOHALDAIRIES.CO.UK,"MISC FOOD STORE-CONVENIENCE,MRKT,SPLTY,VENDNG MACS",365.27
31/08/2023,11248,IPS ERIC WILLIAMS HOUSE,5422,WWW.MIDLANDFOODS.CO.UK,"FREEZER, LOCKER MEAT PROVISIONERS",83.35
01/09/2023,10900,LOCAL WELFARE PROVISION COVID-19,7399,CS  TESCO STORES GC,BUSINESS SERVICES-NOT ELSEWHERE CLASSIFIED,"1,160.00"
01/09/2023,10900,LOCAL WELFARE PROVISION COVID-19,5999,AMZNMKTPLACE,MISCELLANEOUS AND SPECIALTY RETAIL STORES,56.99
01/09/2023,10900,LOCAL WELFARE PROVISION COVID-19,5999,AMZNMKTPLACE,MISCELLANEOUS AND SPECIALTY RETAIL STORES,84.99
01/09/2023,10900,LOCAL WELFARE PROVISION COVID-19,5999,AMZNMKTPLACE,MISCELLANEOUS AND SPECIALTY RETAIL STORES,84.99
01/09/2023,10900,LOCAL WELFARE PROVISION COVID-19,5999,AMZNMKTPLACE,MISCELLANEOUS AND SPECIALTY RETAIL STORES,41.64
01/09/2023,11135,YOUTH OFFENDING SERVICE,5310,THE WORKS,DISCOUNT STORES,11
01/09/2023,11154,HIGHWAYS: OVERHEAD,5999,AMZNMKTPLACE,MISCELLANEOUS AND SPECIALTY RETAIL STORES,14.99
01/09/2023,10951,IPS HWC SHORT TERM TENANCIES,4900,WWW.OVOENERGY.COM,"UTLTS-ELCTRC, GAS, HEATING OIL, SANITARY, WATER",37.21
01/09/2023,10951,IPS HWC SHORT TERM TENANCIES,4900,WWW.OVOENERGY.COM,"UTLTS-ELCTRC, GAS, HEATING OIL, SANITARY, WATER",49.44
01/09/2023,10951,IPS HWC SHORT TERM TENANCIES,4900,WWW.OVOENERGY.COM,"UTLTS-ELCTRC, GAS, HEATING OIL, SANITARY, WATER",45.32
01/09/2023,10951,IPS HWC SHORT TERM TENANCIES,4900,WWW.OVOENERGY.COM,"UTLTS-ELCTRC, GAS, HEATING OIL, SANITARY, WATER",44.18
01/09/2023,10951,IPS HWC SHORT TERM TENANCIES,4900,WWW.OVOENERGY.COM,"UTLTS-ELCTRC, GAS, HEATING OIL, SANITARY, WATER",47.63
01/09/2023,10951,IPS HWC SHORT TERM TENANCIES,4900,WWW.OVOENERGY.COM,"UTLTS-ELCTRC, GAS, HEATING OIL, SANITARY, WATER",16.5
01/09/2023,11764,HOSPITAL EDUCATION & OUTREACH SERVICE,5411,ONE STOP 1272,"GROCERY STORES, SUPERMARKETS",9.85
01/09/2023,10951,IPS HWC SHORT TERM TENANCIES,4900,WWW.OVOENERGY.COM,"UTLTS-ELCTRC, GAS, HEATING OIL, SANITARY, WATER",35.57
01/09/2023,10951,IPS HWC SHORT TERM TENANCIES,4900,WWW.OVOENERGY.COM,"UTLTS-ELCTRC, GAS, HEATING OIL, SANITARY, WATER",15.74
01/09/2023,10274,EDUCATION STANDARDS,8211,PAYPAL  SHAPWORKING,"SCHOOLS, ELEMENTARY AND SECONDARY",4
01/09/2023,10900,LOCAL WELFARE PROVISION COVID-19,5999,AMZNMKTPLACE,MISCELLANEOUS AND SPECIALTY RETAIL STORES,54.49
01/09/2023,10900,LOCAL WELFARE PROVISION COVID-19,5999,AMZNMKTPLACE,MISCELLANEOUS AND SPECIALTY RETAIL STORES,54.49
01/09/2023,10900,LOCAL WELFARE PROVISION COVID-19,5999,AMZNMKTPLACE,MISCELLANEOUS AND SPECIALTY RETAIL STORES,56.99
01/09/2023,11248,IPS ERIC WILLIAMS HOUSE,5411,ASDA GROCERIES ONLINE,"GROCERY STORES, SUPERMARKETS",107.99
01/09/2023,10951,IPS HWC SHORT TERM TENANCIES,4900,WWW.OVOENERGY.COM,"UTLTS-ELCTRC, GAS, HEATING OIL, SANITARY, WATER",30.99
01/09/2023,11248,IPS ERIC WILLIAMS HOUSE,5411,ASDA GROCERIES ONLINE,"GROCERY STORES, SUPERMARKETS",-5.25
01/09/2023,10900,LOCAL WELFARE PROVISION COVID-19,5999,AMZNMKTPLACE,MISCELLANEOUS AND SPECIALTY RETAIL STORES,96.2
01/09/2023,11826,REPAIR & MAINTENANCE,5099,PAYPAL  SCREWFIX,"DURABLE GOODS, NOT ELSEWHERE CLASSIFIED",35.98
01/09/2023,11746,RESIDENTIAL - GRAYSWOOD,7278,COSTCO WHOLESALE #122,"BUYING/SHOPPING CLUBS, SERVICES",71.18
01/09/2023,10758,INDIVIDUAL ELECTORAL REGISTRATION,9399,WWW.ICO.ORG.UK,GOVERNMENT SERVICES-NOT ELSEWHERE CLASSIFIED,60
01/09/2023,11507,CARE LEAVERS,5411,MARKS&SPENCER PLC,"GROCERY STORES, SUPERMARKETS",5.75
01/09/2023,11135,YOUTH OFFENDING SERVICE,7922,ALTON TOWERS,"THEATRICAL PRODUCERS(EXCL MOTION PIX),TICKET AGNCY",151
01/09/2023,10951,IPS HWC SHORT TERM TENANCIES,4900,WWW.OVOENERGY.COM,"UTLTS-ELCTRC, GAS, HEATING OIL, SANITARY, WATER",32.35
01/09/2023,10900,LOCAL WELFARE PROVISION COVID-19,5999,AMZNMKTPLACE,MISCELLANEOUS AND SPECIALTY RETAIL STORES,56.99
01/09/2023,11364,MULTI AGENCY SAFEGUARDING HUB (MASH),5999,AMZNMKTPLACE,MISCELLANEOUS AND SPECIALTY RETAIL STORES,46.99
01/09/2023,11135,YOUTH OFFENDING SERVICE,7999,HTTPS://WWW.REDKANGARO,RECREATION SERVICES (NOT ELSEWHERE CLASSIFIED),29.8
01/09/2023,10962,OUTDOOR EDUCATION SERVICE,9399,COVENTRY CITY COUNCIL,GOVERNMENT SERVICES-NOT ELSEWHERE CLASSIFIED,75
01/09/2023,11940,FAMILY GROUP CONFERENCE,5814,MCDONALDS,FAST FOOD RESTAURANTS,4.91
01/09/2023,11136,EAST FAMILY HUB,5411,TESCO STORES 5168,"GROCERY STORES, SUPERMARKETS",69.83
01/09/2023,10647,E & TS ICES ? MEDICAL & PAEDIATRIC EQ,5999,SP SOUTHPAW,MISCELLANEOUS AND SPECIALTY RETAIL STORES,134.4
01/09/2023,11687,RESIDENTIAL - BROAD PARK HOUSE,5732,SP BELFANS,ELECTRONIC SALES,43.2
01/09/2023,11136,EAST FAMILY HUB,5399,HOME BARGAINS,MISCELLANEOUS GENERAL MERCHANDISE,82.63
01/09/2023,11539,CENTRALISED PROMOTIONS BUDGET,5968,TELEGRAPH SUBSCRIPTION,DIRECT MARKETING-CONTINUITY/SUBSCRIPTION MERCHANTS,25
01/09/2023,11859,BUILDING CONTROL,8220,CHARTERED ASSOCIATION,"COLLEGES, UNIV, PRO SCHOOLS, JUNIOR COLLEGES",330
01/09/2023,11136,EAST FAMILY HUB,5399,B&M 526 - ANSTY ROAD,MISCELLANEOUS GENERAL MERCHANDISE,8.32
01/09/2023,10225,HOUSING - B&B ACCOMMODATION,3811,PREMIER INN,PREMIER INN,512
01/09/2023,10225,HOUSING - B&B ACCOMMODATION,3811,PREMIER INN,PREMIER INN,574.5
01/09/2023,10232,CHILDREN?S DISABILITY,5411,ALDI 113 772,"GROCERY STORES, SUPERMARKETS",2.15
01/09/2023,10962,OUTDOOR EDUCATION SERVICE,5999,AMZNMKTPLACE,MISCELLANEOUS AND SPECIALTY RETAIL STORES,54.34
01/09/2023,10962,OUTDOOR EDUCATION SERVICE,5999,AMZNMKTPLACE,MISCELLANEOUS AND SPECIALTY RETAIL STORES,31.16
01/09/2023,11932,LAC THROUGHCARE TEAM,9399,MILTON KEYNES COUNCIL,GOVERNMENT SERVICES-NOT ELSEWHERE CLASSIFIED,43.5
01/09/2023,11932,LAC THROUGHCARE TEAM,7523,COVENTRY CITY COUNCIL,AUTOMOBILE PARKING LOTS AND GARAGES,9
01/09/2023,10663,BUSINESS SUSTAIN EXTERNAL CONSULTANCY ,3811,PREMIER INN,PREMIER INN,114.99
01/09/2023,11984,IPS MAYMORN RESOURCE CENTRE,4111,WWW.WMCA.ORG.UK,"TRANSPRTN-SUBRBN & LOCAL COMTR PSNGR, INCL FERRIES",10
01/09/2023,11507,CARE LEAVERS,5814,JUST EAT,FAST FOOD RESTAURANTS,70.4
01/09/2023,11984,IPS MAYMORN RESOURCE CENTRE,4111,WWW.WMCA.ORG.UK,"TRANSPRTN-SUBRBN & LOCAL COMTR PSNGR, INCL FERRIES",10
01/09/2023,11507,CARE LEAVERS,5812,GREGGS PLC,"EATING PLACES, RESTAURANTS",9.45
01/09/2023,10962,OUTDOOR EDUCATION SERVICE,5411,TESCO STORES 5168,"GROCERY STORES, SUPERMARKETS",20.58
01/09/2023,10962,OUTDOOR EDUCATION SERVICE,5999,AMZNMKTPLACE,MISCELLANEOUS AND SPECIALTY RETAIL STORES,39.8
01/09/2023,11792,HOUSING AND HOMELESSNESS,5999,AMZNMKTPLACE AMAZON.CO,MISCELLANEOUS AND SPECIALTY RETAIL STORES,33.95
01/09/2023,10900,LOCAL WELFARE PROVISION COVID-19,5999,AMZNMKTPLACE,MISCELLANEOUS AND SPECIALTY RETAIL STORES,54.49
01/09/2023,10962,OUTDOOR EDUCATION SERVICE,5999,AMZNMKTPLACE,MISCELLANEOUS AND SPECIALTY RETAIL STORES,77.9
01/09/2023,11932,LAC THROUGHCARE TEAM,5399,MOONPIG,MISCELLANEOUS GENERAL MERCHANDISE,7.98
01/09/2023,11507,CARE LEAVERS,5661,DEICHMANN SHOES,SHOE STORES,23.19
01/09/2023,11507,CARE LEAVERS,5814,STARBUCKS,FAST FOOD RESTAURANTS,13.54
01/09/2023,11507,CARE LEAVERS,5651,PRIMARK 477,FAMILY CLOTHING STORES,44.6
01/09/2023,10225,HOUSING - B&B ACCOMMODATION,3615,TRAVELODG TRAVELODGE G,TRAVELODGE,"1,906.20"
01/09/2023,11507,CARE LEAVERS,3504,SHEFFIELD PARK HOTEL L,HILTON,115.42
01/09/2023,10900,LOCAL WELFARE PROVISION COVID-19,7399,CS  TESCO STORES GC,BUSINESS SERVICES-NOT ELSEWHERE CLASSIFIED,"1,975.00"
01/09/2023,10900,LOCAL WELFARE PROVISION COVID-19,5999,AMZNMKTPLACE AMAZON.CO,MISCELLANEOUS AND SPECIALTY RETAIL STORES,48.59
01/09/2023,10900,LOCAL WELFARE PROVISION COVID-19,5999,AMZNMKTPLACE AMAZON.CO,MISCELLANEOUS AND SPECIALTY RETAIL STORES,61.62
01/09/2023,10900,LOCAL WELFARE PROVISION COVID-19,5999,AMZNMKTPLACE,MISCELLANEOUS AND SPECIALTY RETAIL STORES,41.64
01/09/2023,10900,LOCAL WELFARE PROVISION COVID-19,7399,CS  TESCO STORES GC,BUSINESS SERVICES-NOT ELSEWHERE CLASSIFIED,"1,200.00"
01/09/2023,10900,LOCAL WELFARE PROVISION COVID-19,5999,AMZNMKTPLACE,MISCELLANEOUS AND SPECIALTY RETAIL STORES,41.79
01/09/2023,10900,LOCAL WELFARE PROVISION COVID-19,5999,AMZNMKTPLACE,MISCELLANEOUS AND SPECIALTY RETAIL STORES,41.64
01/09/2023,10900,LOCAL WELFARE PROVISION COVID-19,5999,AMZNMKTPLACE,MISCELLANEOUS AND SPECIALTY RETAIL STORES,124.92
01/09/2023,10900,LOCAL WELFARE PROVISION COVID-19,5999,AMZNMKTPLACE,MISCELLANEOUS AND SPECIALTY RETAIL STORES,48.59
01/09/2023,10900,LOCAL WELFARE PROVISION COVID-19,5999,AMZNMKTPLACE,MISCELLANEOUS AND SPECIALTY RETAIL STORES,48.59
01/09/2023,10900,LOCAL WELFARE PROVISION COVID-19,5999,AMZNMKTPLACE,MISCELLANEOUS AND SPECIALTY RETAIL STORES,41.64
01/09/2023,10900,LOCAL WELFARE PROVISION COVID-19,5999,AMZNMKTPLACE,MISCELLANEOUS AND SPECIALTY RETAIL STORES,41.64
01/09/2023,10900,LOCAL WELFARE PROVISION COVID-19,5999,AMZNMKTPLACE,MISCELLANEOUS AND SPECIALTY RETAIL STORES,54.49
01/09/2023,10900,LOCAL WELFARE PROVISION COVID-19,5999,AMZNMKTPLACE,MISCELLANEOUS AND SPECIALTY RETAIL STORES,54.49
01/09/2023,10900,LOCAL WELFARE PROVISION COVID-19,5999,AMZNMKTPLACE,MISCELLANEOUS AND SPECIALTY RETAIL STORES,41.64
01/09/2023,10900,LOCAL WELFARE PROVISION COVID-19,5999,AMZNMKTPLACE,MISCELLANEOUS AND SPECIALTY RETAIL STORES,163.47
01/09/2023,10900,LOCAL WELFARE PROVISION COVID-19,5999,AMZNMKTPLACE,MISCELLANEOUS AND SPECIALTY RETAIL STORES,108.98
01/09/2023,10900,LOCAL WELFARE PROVISION COVID-19,5999,AMZNMKTPLACE,MISCELLANEOUS AND SPECIALTY RETAIL STORES,48.59
01/09/2023,10900,LOCAL WELFARE PROVISION COVID-19,5999,AMZNMKTPLACE,MISCELLANEOUS AND SPECIALTY RETAIL STORES,54.49
01/09/2023,10900,LOCAL WELFARE PROVISION COVID-19,5999,AMZNMKTPLACE,MISCELLANEOUS AND SPECIALTY RETAIL STORES,100.99
01/09/2023,10900,LOCAL WELFARE PROVISION COVID-19,5999,AMZNMKTPLACE,MISCELLANEOUS AND SPECIALTY RETAIL STORES,164.97
01/09/2023,10900,LOCAL WELFARE PROVISION COVID-19,5999,AMZNMKTPLACE,MISCELLANEOUS AND SPECIALTY RETAIL STORES,83.28
01/09/2023,10900,LOCAL WELFARE PROVISION COVID-19,5999,AMZNMKTPLACE,MISCELLANEOUS AND SPECIALTY RETAIL STORES,61.62
01/09/2023,10900,LOCAL WELFARE PROVISION COVID-19,5999,AMZNMKTPLACE,MISCELLANEOUS AND SPECIALTY RETAIL STORES,54.99
01/09/2023,10900,LOCAL WELFARE PROVISION COVID-19,5999,AMZNMKTPLACE,MISCELLANEOUS AND SPECIALTY RETAIL STORES,84.99
01/09/2023,10900,LOCAL WELFARE PROVISION COVID-19,5999,AMZNMKTPLACE,MISCELLANEOUS AND SPECIALTY RETAIL STORES,54.49
01/09/2023,10900,LOCAL WELFARE PROVISION COVID-19,5999,AMZNMKTPLACE,MISCELLANEOUS AND SPECIALTY RETAIL STORES,61.62
01/09/2023,10900,LOCAL WELFARE PROVISION COVID-19,5999,AMZNMKTPLACE,MISCELLANEOUS AND SPECIALTY RETAIL STORES,54.99
01/09/2023,10900,LOCAL WELFARE PROVISION COVID-19,5999,AMZNMKTPLACE,MISCELLANEOUS AND SPECIALTY RETAIL STORES,54.49
01/09/2023,10900,LOCAL WELFARE PROVISION COVID-19,5999,AMZNMKTPLACE,MISCELLANEOUS AND SPECIALTY RETAIL STORES,41.64
01/09/2023,11507,CARE LEAVERS,5812,GREGGS PLC,"EATING PLACES, RESTAURANTS",2.7
01/09/2023,11507,CARE LEAVERS,5999,AMZNBUSINESS 1M3MO6RM4,MISCELLANEOUS AND SPECIALTY RETAIL STORES,169.99
01/09/2023,10251,IPS LD PILS OPERATIONAL,9399,C2E859302133U UKVI,GOVERNMENT SERVICES-NOT ELSEWHERE CLASSIFIED,"-2,000.00"
01/09/2023,10565,ROUGH SLEEPER AND RAPID HOUSING PATH,5411,QUEENS ROAD CONVENIENC,"GROCERY STORES, SUPERMARKETS",10
01/09/2023,10469,RESIDENTIAL - JOBS LANE,5411,FARMFOODS 641,"GROCERY STORES, SUPERMARKETS",16
01/09/2023,10565,ROUGH SLEEPER AND RAPID HOUSING PATH,5999,TIMPSON LTD,MISCELLANEOUS AND SPECIALTY RETAIL STORES,12
01/09/2023,11507,CARE LEAVERS,5999,AMZNBUSINESS 1M99B4RQ4,MISCELLANEOUS AND SPECIALTY RETAIL STORES,169.99
01/09/2023,10469,RESIDENTIAL - JOBS LANE,5411,NISA,"GROCERY STORES, SUPERMARKETS",2.27
01/09/2023,11307,IPS MH THE POD,5499,AL HALAL SUPERMARKET,"MISC FOOD STORE-CONVENIENCE,MRKT,SPLTY,VENDNG MACS",0.89
01/09/2023,11507,CARE LEAVERS,5999,AMZNBUSINESS 1M7HO9714,MISCELLANEOUS AND SPECIALTY RETAIL STORES,1.99
01/09/2023,10900,LOCAL WELFARE PROVISION COVID-19,5999,AMZNMKTPLACE,MISCELLANEOUS AND SPECIALTY RETAIL STORES,41.64
01/09/2023,10900,LOCAL WELFARE PROVISION COVID-19,5999,AMZNMKTPLACE,MISCELLANEOUS AND SPECIALTY RETAIL STORES,41.64
01/09/2023,10900,LOCAL WELFARE PROVISION COVID-19,5999,AMZNMKTPLACE,MISCELLANEOUS AND SPECIALTY RETAIL STORES,61.62
01/09/2023,11662,HOUSING AND HOMELESSNESS,5399,WILKO RETAIL LIMITED,MISCELLANEOUS GENERAL MERCHANDISE,36
01/09/2023,11507,CARE LEAVERS,5812,MCDONALDS,"EATING PLACES, RESTAURANTS",13.78
01/09/2023,10900,LOCAL WELFARE PROVISION COVID-19,5999,AMZNMKTPLACE,MISCELLANEOUS AND SPECIALTY RETAIL STORES,41.64
01/09/2023,10900,LOCAL WELFARE PROVISION COVID-19,5999,AMZNMKTPLACE,MISCELLANEOUS AND SPECIALTY RETAIL STORES,87.98
01/09/2023,10788,NRPF - NO RECOURSE TO PUBLIC FUNDS,7392,TVLICENSING.CO.UK,"CONSULTING, MANAGEMENT, AND PUBLIC RELATIONS SVCS",159
01/09/2023,10488,IPS LD JENNER8,4111,WWW.WMCA.ORG.UK,"TRANSPRTN-SUBRBN & LOCAL COMTR PSNGR, INCL FERRIES",10
01/09/2023,10900,LOCAL WELFARE PROVISION COVID-19,5999,AMZNMKTPLACE,MISCELLANEOUS AND SPECIALTY RETAIL STORES,48.59
01/09/2023,10900,LOCAL WELFARE PROVISION COVID-19,5999,AMZNMKTPLACE,MISCELLANEOUS AND SPECIALTY RETAIL STORES,61.62
01/09/2023,11507,CARE LEAVERS,5814,CHOPSTIX TRADING LTD -,FAST FOOD RESTAURANTS,8.9
01/09/2023,10900,LOCAL WELFARE PROVISION COVID-19,5999,AMZNMKTPLACE,MISCELLANEOUS AND SPECIALTY RETAIL STORES,41.64
01/09/2023,10900,LOCAL WELFARE PROVISION COVID-19,5999,AMZNMKTPLACE,MISCELLANEOUS AND SPECIALTY RETAIL STORES,83.28
01/09/2023,10900,LOCAL WELFARE PROVISION COVID-19,5999,AMZNMKTPLACE,MISCELLANEOUS AND SPECIALTY RETAIL STORES,61.62
01/09/2023,10360,JOB SHOP,5994,WH SMITH COVENTRY,NEWS DEALERS AND NEWSSTANDS,8.8
01/09/2023,10900,LOCAL WELFARE PROVISION COVID-19,5999,AMZNMKTPLACE,MISCELLANEOUS AND SPECIALTY RETAIL STORES,100.99
01/09/2023,10900,LOCAL WELFARE PROVISION COVID-19,5999,AMZNMKTPLACE,MISCELLANEOUS AND SPECIALTY RETAIL STORES,84.99
01/09/2023,10900,LOCAL WELFARE PROVISION COVID-19,5999,AMZNMKTPLACE,MISCELLANEOUS AND SPECIALTY RETAIL STORES,56.99
01/09/2023,10900,LOCAL WELFARE PROVISION COVID-19,5999,AMZNMKTPLACE,MISCELLANEOUS AND SPECIALTY RETAIL STORES,84.99
01/09/2023,10900,LOCAL WELFARE PROVISION COVID-19,5999,AMZNMKTPLACE,MISCELLANEOUS AND SPECIALTY RETAIL STORES,100.99
01/09/2023,10900,LOCAL WELFARE PROVISION COVID-19,5999,AMZNMKTPLACE,MISCELLANEOUS AND SPECIALTY RETAIL STORES,56.99
01/09/2023,10900,LOCAL WELFARE PROVISION COVID-19,5999,AMZNMKTPLACE,MISCELLANEOUS AND SPECIALTY RETAIL STORES,56.99
01/09/2023,10900,LOCAL WELFARE PROVISION COVID-19,5999,AMZNMKTPLACE,MISCELLANEOUS AND SPECIALTY RETAIL STORES,54.49
01/09/2023,10900,LOCAL WELFARE PROVISION COVID-19,5999,AMZNMKTPLACE,MISCELLANEOUS AND SPECIALTY RETAIL STORES,108.98
01/09/2023,10900,LOCAL WELFARE PROVISION COVID-19,5999,AMZNMKTPLACE AMAZON.CO,MISCELLANEOUS AND SPECIALTY RETAIL STORES,100.99
01/09/2023,10900,LOCAL WELFARE PROVISION COVID-19,5999,AMZNMKTPLACE AMAZON.CO,MISCELLANEOUS AND SPECIALTY RETAIL STORES,76.79
01/09/2023,10900,LOCAL WELFARE PROVISION COVID-19,5999,AMZNMKTPLACE,MISCELLANEOUS AND SPECIALTY RETAIL STORES,61.62
01/09/2023,10900,LOCAL WELFARE PROVISION COVID-19,5999,AMZNMKTPLACE,MISCELLANEOUS AND SPECIALTY RETAIL STORES,100.99
01/09/2023,10900,LOCAL WELFARE PROVISION COVID-19,5999,AMZNMKTPLACE,MISCELLANEOUS AND SPECIALTY RETAIL STORES,54.99
01/09/2023,10900,LOCAL WELFARE PROVISION COVID-19,5999,AMZNMKTPLACE,MISCELLANEOUS AND SPECIALTY RETAIL STORES,84.99
01/09/2023,10900,LOCAL WELFARE PROVISION COVID-19,5999,AMZNMKTPLACE,MISCELLANEOUS AND SPECIALTY RETAIL STORES,54.99
01/09/2023,10900,LOCAL WELFARE PROVISION COVID-19,5999,AMZNMKTPLACE,MISCELLANEOUS AND SPECIALTY RETAIL STORES,54.49
01/09/2023,10900,LOCAL WELFARE PROVISION COVID-19,5999,AMZNMKTPLACE,MISCELLANEOUS AND SPECIALTY RETAIL STORES,84.99
01/09/2023,10900,LOCAL WELFARE PROVISION COVID-19,5999,AMZNMKTPLACE,MISCELLANEOUS AND SPECIALTY RETAIL STORES,56.99
01/09/2023,10900,LOCAL WELFARE PROVISION COVID-19,5999,AMZNMKTPLACE,MISCELLANEOUS AND SPECIALTY RETAIL STORES,84.99
01/09/2023,10900,LOCAL WELFARE PROVISION COVID-19,5999,AMZNMKTPLACE,MISCELLANEOUS AND SPECIALTY RETAIL STORES,84.99
01/09/2023,10900,LOCAL WELFARE PROVISION COVID-19,5999,AMZNMKTPLACE,MISCELLANEOUS AND SPECIALTY RETAIL STORES,113.98
01/09/2023,10900,LOCAL WELFARE PROVISION COVID-19,5999,AMZNMKTPLACE,MISCELLANEOUS AND SPECIALTY RETAIL STORES,113.98
01/09/2023,10900,LOCAL WELFARE PROVISION COVID-19,5999,AMZNMKTPLACE,MISCELLANEOUS AND SPECIALTY RETAIL STORES,41.64
01/09/2023,10900,LOCAL WELFARE PROVISION COVID-19,5999,AMZNMKTPLACE,MISCELLANEOUS AND SPECIALTY RETAIL STORES,56.99
01/09/2023,10900,LOCAL WELFARE PROVISION COVID-19,5999,AMZNMKTPLACE,MISCELLANEOUS AND SPECIALTY RETAIL STORES,56.99
01/09/2023,10900,LOCAL WELFARE PROVISION COVID-19,5999,AMZNMKTPLACE,MISCELLANEOUS AND SPECIALTY RETAIL STORES,41.64
01/09/2023,10900,LOCAL WELFARE PROVISION COVID-19,5999,AMZNMKTPLACE,MISCELLANEOUS AND SPECIALTY RETAIL STORES,56.99
01/09/2023,10900,LOCAL WELFARE PROVISION COVID-19,5999,AMZNMKTPLACE,MISCELLANEOUS AND SPECIALTY RETAIL STORES,41.64
01/09/2023,10900,LOCAL WELFARE PROVISION COVID-19,5999,AMZNMKTPLACE AMAZON.CO,MISCELLANEOUS AND SPECIALTY RETAIL STORES,61.62
01/09/2023,10900,LOCAL WELFARE PROVISION COVID-19,5999,AMZNMKTPLACE,MISCELLANEOUS AND SPECIALTY RETAIL STORES,41.64
01/09/2023,10900,LOCAL WELFARE PROVISION COVID-19,5999,AMZNMKTPLACE,MISCELLANEOUS AND SPECIALTY RETAIL STORES,36.99
01/09/2023,10900,LOCAL WELFARE PROVISION COVID-19,5999,AMZNMKTPLACE AMAZON.CO,MISCELLANEOUS AND SPECIALTY RETAIL STORES,61.62
01/09/2023,10900,LOCAL WELFARE PROVISION COVID-19,5999,AMZNMKTPLACE,MISCELLANEOUS AND SPECIALTY RETAIL STORES,48.59
01/09/2023,10900,LOCAL WELFARE PROVISION COVID-19,5999,AMZNMKTPLACE,MISCELLANEOUS AND SPECIALTY RETAIL STORES,56.99
01/09/2023,10900,LOCAL WELFARE PROVISION COVID-19,5999,AMZNMKTPLACE,MISCELLANEOUS AND SPECIALTY RETAIL STORES,96.2
01/09/2023,10900,LOCAL WELFARE PROVISION COVID-19,5999,AMZNMKTPLACE,MISCELLANEOUS AND SPECIALTY RETAIL STORES,56.99
01/09/2023,10900,LOCAL WELFARE PROVISION COVID-19,5999,AMZNMKTPLACE,MISCELLANEOUS AND SPECIALTY RETAIL STORES,124.92
01/09/2023,10900,LOCAL WELFARE PROVISION COVID-19,5999,AMZNMKTPLACE AMAZON.CO,MISCELLANEOUS AND SPECIALTY RETAIL STORES,72.38
01/09/2023,10900,LOCAL WELFARE PROVISION COVID-19,5999,AMZNMKTPLACE,MISCELLANEOUS AND SPECIALTY RETAIL STORES,56.99
01/09/2023,10900,LOCAL WELFARE PROVISION COVID-19,5999,AMZNMKTPLACE,MISCELLANEOUS AND SPECIALTY RETAIL STORES,54.49
01/09/2023,10900,LOCAL WELFARE PROVISION COVID-19,5999,AMZNMKTPLACE,MISCELLANEOUS AND SPECIALTY RETAIL STORES,163.47
01/09/2023,10900,LOCAL WELFARE PROVISION COVID-19,5999,AMZNMKTPLACE,MISCELLANEOUS AND SPECIALTY RETAIL STORES,108.98
01/09/2023,10900,LOCAL WELFARE PROVISION COVID-19,5999,AMZNMKTPLACE,MISCELLANEOUS AND SPECIALTY RETAIL STORES,48.59
01/09/2023,10900,LOCAL WELFARE PROVISION COVID-19,5999,AMZNMKTPLACE,MISCELLANEOUS AND SPECIALTY RETAIL STORES,84.99
01/09/2023,10900,LOCAL WELFARE PROVISION COVID-19,5999,AMZNMKTPLACE,MISCELLANEOUS AND SPECIALTY RETAIL STORES,56.99
01/09/2023,10900,LOCAL WELFARE PROVISION COVID-19,5999,AMZNMKTPLACE,MISCELLANEOUS AND SPECIALTY RETAIL STORES,56.99
01/09/2023,10900,LOCAL WELFARE PROVISION COVID-19,5999,AMZNMKTPLACE,MISCELLANEOUS AND SPECIALTY RETAIL STORES,54.49
01/09/2023,10900,LOCAL WELFARE PROVISION COVID-19,5999,AMZNMKTPLACE,MISCELLANEOUS AND SPECIALTY RETAIL STORES,84.99
01/09/2023,10900,LOCAL WELFARE PROVISION COVID-19,5999,AMZNMKTPLACE AMAZON.CO,MISCELLANEOUS AND SPECIALTY RETAIL STORES,41.64
01/09/2023,10900,LOCAL WELFARE PROVISION COVID-19,5999,AMZNMKTPLACE AMAZON.CO,MISCELLANEOUS AND SPECIALTY RETAIL STORES,113.98
01/09/2023,10900,LOCAL WELFARE PROVISION COVID-19,5999,AMZNMKTPLACE AMAZON.CO,MISCELLANEOUS AND SPECIALTY RETAIL STORES,87.98
01/09/2023,10900,LOCAL WELFARE PROVISION COVID-19,5999,AMZNMKTPLACE AMAZON.CO,MISCELLANEOUS AND SPECIALTY RETAIL STORES,41.64
01/09/2023,10900,LOCAL WELFARE PROVISION COVID-19,5999,AMZNMKTPLACE AMAZON.CO,MISCELLANEOUS AND SPECIALTY RETAIL STORES,82.99
01/09/2023,10900,LOCAL WELFARE PROVISION COVID-19,5999,AMZNMKTPLACE AMAZON.CO,MISCELLANEOUS AND SPECIALTY RETAIL STORES,84.98
01/09/2023,10448,RESIDENTIAL - GRAVEL HILL,5411,ADSA STORES LTD 4231,"GROCERY STORES, SUPERMARKETS",31.45
01/09/2023,10704,LEGAL SERVICES,8099,UNITED KINGDOM HEALTH,"HEALTH PRACTITIONERS, MEDICAL SRVCS-NOT ELSEWHERE",11.7
01/09/2023,10448,RESIDENTIAL - GRAVEL HILL,5999,SASS - BARKER BUTTS,MISCELLANEOUS AND SPECIALTY RETAIL STORES,117.44
01/09/2023,10507,PARK RANGERS,5940,HALFORDS 0425,BICYCLE SHOPS-SALES AND SERVICE,10
01/09/2023,10291,SECTION17 PAYMENTS CENTRAL,5999,AMZNMKTPLACE AMAZON.CO,MISCELLANEOUS AND SPECIALTY RETAIL STORES,34.43
01/09/2023,10448,RESIDENTIAL - GRAVEL HILL,4899,NETFLIX,"CABLE, SATELLITE, OTHER PAY TELEVISION, RADIO SVCS",10.99
01/09/2023,11507,CARE LEAVERS,5310,THE WORKS,DISCOUNT STORES,2
01/09/2023,10448,RESIDENTIAL - GRAVEL HILL,5691,MATALAN,MEN'S AND WOMEN'S CLOTHING STORES,44
01/09/2023,11879,IPS LD MAURICE EDELMAN HOUSE,5811,BRAKES (STORED CARDS),CATERERS,542.61
01/09/2023,10448,RESIDENTIAL - GRAVEL HILL,7032,HAVEN,RECREATIONAL AND SPORTING CAMPS,18
01/09/2023,10900,LOCAL WELFARE PROVISION COVID-19,5999,AMZNMKTPLACE,MISCELLANEOUS AND SPECIALTY RETAIL STORES,55.46
01/09/2023,10900,LOCAL WELFARE PROVISION COVID-19,5999,AMZNMKTPLACE,MISCELLANEOUS AND SPECIALTY RETAIL STORES,72.38
01/09/2023,10900,LOCAL WELFARE PROVISION COVID-19,5999,AMZNMKTPLACE AMAZON.CO,MISCELLANEOUS AND SPECIALTY RETAIL STORES,124.92
01/09/2023,10900,LOCAL WELFARE PROVISION COVID-19,5999,AMZNMKTPLACE,MISCELLANEOUS AND SPECIALTY RETAIL STORES,61.62
01/09/2023,10900,LOCAL WELFARE PROVISION COVID-19,5999,AMZNMKTPLACE,MISCELLANEOUS AND SPECIALTY RETAIL STORES,61.62
01/09/2023,10900,LOCAL WELFARE PROVISION COVID-19,5999,AMZNMKTPLACE AMAZON.CO,MISCELLANEOUS AND SPECIALTY RETAIL STORES,113.98
01/09/2023,10900,LOCAL WELFARE PROVISION COVID-19,5999,AMZNMKTPLACE,MISCELLANEOUS AND SPECIALTY RETAIL STORES,61.62
01/09/2023,10900,LOCAL WELFARE PROVISION COVID-19,5999,AMZNMKTPLACE AMAZON.CO,MISCELLANEOUS AND SPECIALTY RETAIL STORES,113.98
04/09/2023,10900,LOCAL WELFARE PROVISION COVID-19,5999,AMZNMKTPLACE,MISCELLANEOUS AND SPECIALTY RETAIL STORES,56.99
04/09/2023,10900,LOCAL WELFARE PROVISION COVID-19,5999,AMZNMKTPLACE,MISCELLANEOUS AND SPECIALTY RETAIL STORES,62
04/09/2023,10096,SPORTS DEVELOPMENT,8220,CUE TECHNO CARPARK,"COLLEGES, UNIV, PRO SCHOOLS, JUNIOR COLLEGES",6
04/09/2023,11381,PUBLIC HEALTH,9399,DISCLOSURE AND BARRING,GOVERNMENT SERVICES-NOT ELSEWHERE CLASSIFIED,18
04/09/2023,11507,CARE LEAVERS,5399,HOME BARGAINS,MISCELLANEOUS GENERAL MERCHANDISE,7.65
04/09/2023,11507,CARE LEAVERS,5311,WWW.ARGOS.CO.UK,DEPARTMENT STORES,628.95
04/09/2023,10565,ROUGH SLEEPER AND RAPID HOUSING PATH,9399,HM PASSPORT OFFICE,GOVERNMENT SERVICES-NOT ELSEWHERE CLASSIFIED,82.5
04/09/2023,10900,LOCAL WELFARE PROVISION COVID-19,5999,AMZNMKTPLACE,MISCELLANEOUS AND SPECIALTY RETAIL STORES,84.98
04/09/2023,10225,HOUSING - B&B ACCOMMODATION,3533,IBIS COVENTRY SOUTH,HOTEL IBIS,"2,745.00"
04/09/2023,10900,LOCAL WELFARE PROVISION COVID-19,5999,AMZNMKTPLACE AMAZON.CO,MISCELLANEOUS AND SPECIALTY RETAIL STORES,87.98
04/09/2023,10900,LOCAL WELFARE PROVISION COVID-19,5999,AMZNMKTPLACE AMAZON.CO,MISCELLANEOUS AND SPECIALTY RETAIL STORES,83.83
04/09/2023,10676,HOUSING AND HOMELESSNESS,5411,WM MORRISONS STORE,"GROCERY STORES, SUPERMARKETS",1.8
04/09/2023,11932,LAC THROUGHCARE TEAM,5310,POUNDLAND LTD - 1282,DISCOUNT STORES,4.5
04/09/2023,10900,LOCAL WELFARE PROVISION COVID-19,5999,AMZNMKTPLACE,MISCELLANEOUS AND SPECIALTY RETAIL STORES,56.99
04/09/2023,10900,LOCAL WELFARE PROVISION COVID-19,5999,AMZNMKTPLACE,MISCELLANEOUS AND SPECIALTY RETAIL STORES,68.59
04/09/2023,10096,SPORTS DEVELOPMENT,5812,KUDOS COVENTRY,"EATING PLACES, RESTAURANTS",11.05
04/09/2023,11928,COMMUNITY SUPPORT GRANTS,5999,AMZNMKTPLACE,MISCELLANEOUS AND SPECIALTY RETAIL STORES,41.83
04/09/2023,10565,ROUGH SLEEPER AND RAPID HOUSING PATH,5310,ARGOS CANLEY,DISCOUNT STORES,23
04/09/2023,10469,RESIDENTIAL - JOBS LANE,5411,SAINSBURYS S/MKTS,"GROCERY STORES, SUPERMARKETS",12
04/09/2023,10900,LOCAL WELFARE PROVISION COVID-19,5999,AMZNMKTPLACE AMAZON.CO,MISCELLANEOUS AND SPECIALTY RETAIL STORES,83.28
04/09/2023,11687,RESIDENTIAL - BROAD PARK HOUSE,5651,FOOTASYLUM LIMITED,FAMILY CLOTHING STORES,71.98
04/09/2023,10225,HOUSING - B&B ACCOMMODATION,3533,IBIS COVENTRY SOUTH,HOTEL IBIS,"2,745.00"
04/09/2023,10900,LOCAL WELFARE PROVISION COVID-19,5999,AMZNMKTPLACE,MISCELLANEOUS AND SPECIALTY RETAIL STORES,68.59
04/09/2023,10900,LOCAL WELFARE PROVISION COVID-19,5999,AMZNMKTPLACE,MISCELLANEOUS AND SPECIALTY RETAIL STORES,82.99
04/09/2023,10333,14-16 ALTERNATIVE CURRICULUM,8999,PAYPAL  JOE_MASSEY,PROFESSIONAL SERVICES-NOT ELSEWHERE CLASSIFIED,290
04/09/2023,11307,IPS MH THE POD,5411,WM MORRISONS STORE,"GROCERY STORES, SUPERMARKETS",4.65
04/09/2023,10565,ROUGH SLEEPER AND RAPID HOUSING PATH,5411,SAINSBURYS S/MKTS,"GROCERY STORES, SUPERMARKETS",5.98
04/09/2023,10469,RESIDENTIAL - JOBS LANE,5999,SASS - BARKER BUTTS,MISCELLANEOUS AND SPECIALTY RETAIL STORES,91.96
04/09/2023,10900,LOCAL WELFARE PROVISION COVID-19,5999,AMZNMKTPLACE AMAZON.CO,MISCELLANEOUS AND SPECIALTY RETAIL STORES,82.99
04/09/2023,10900,LOCAL WELFARE PROVISION COVID-19,5999,AMZNMKTPLACE AMAZON.CO,MISCELLANEOUS AND SPECIALTY RETAIL STORES,56.99
04/09/2023,11381,PUBLIC HEALTH,9399,DISCLOSURE AND BARRING,GOVERNMENT SERVICES-NOT ELSEWHERE CLASSIFIED,18
04/09/2023,11865,PUBLIC HEALTH - MIGRATION,4131,NX BUS CONTACTLESS,BUS LINES,8
04/09/2023,10900,LOCAL WELFARE PROVISION COVID-19,5999,AMZNMKTPLACE AMAZON.CO,MISCELLANEOUS AND SPECIALTY RETAIL STORES,82.99
04/09/2023,10900,LOCAL WELFARE PROVISION COVID-19,5999,AMZNMKTPLACE AMAZON.CO,MISCELLANEOUS AND SPECIALTY RETAIL STORES,61.62
04/09/2023,10900,LOCAL WELFARE PROVISION COVID-19,5999,AMZNMKTPLACE,MISCELLANEOUS AND SPECIALTY RETAIL STORES,87.98
04/09/2023,10900,LOCAL WELFARE PROVISION COVID-19,5999,AMZNMKTPLACE,MISCELLANEOUS AND SPECIALTY RETAIL STORES,83.83
04/09/2023,10900,LOCAL WELFARE PROVISION COVID-19,5999,AMZNMKTPLACE,MISCELLANEOUS AND SPECIALTY RETAIL STORES,56.99
04/09/2023,10900,LOCAL WELFARE PROVISION COVID-19,5999,AMZNMKTPLACE,MISCELLANEOUS AND SPECIALTY RETAIL STORES,62
04/09/2023,10900,LOCAL WELFARE PROVISION COVID-19,5999,AMZNMKTPLACE,MISCELLANEOUS AND SPECIALTY RETAIL STORES,82.99
04/09/2023,10096,SPORTS DEVELOPMENT,8220,CUE TECHNO CARPARK,"COLLEGES, UNIV, PRO SCHOOLS, JUNIOR COLLEGES",6
04/09/2023,11507,CARE LEAVERS,5977,BODYCARE,COSMETIC STORES,61.05
04/09/2023,10900,LOCAL WELFARE PROVISION COVID-19,5999,AMZNMKTPLACE AMAZON.CO,MISCELLANEOUS AND SPECIALTY RETAIL STORES,84.99
04/09/2023,10900,LOCAL WELFARE PROVISION COVID-19,5999,AMZNMKTPLACE AMAZON.CO,MISCELLANEOUS AND SPECIALTY RETAIL STORES,82.99
04/09/2023,10900,LOCAL WELFARE PROVISION COVID-19,5999,AMZNMKTPLACE,MISCELLANEOUS AND SPECIALTY RETAIL STORES,36.99
04/09/2023,10900,LOCAL WELFARE PROVISION COVID-19,5999,AMZNMKTPLACE,MISCELLANEOUS AND SPECIALTY RETAIL STORES,82.99
04/09/2023,10900,LOCAL WELFARE PROVISION COVID-19,5999,AMZNMKTPLACE AMAZON.CO,MISCELLANEOUS AND SPECIALTY RETAIL STORES,62
04/09/2023,10900,LOCAL WELFARE PROVISION COVID-19,5999,AMZNMKTPLACE AMAZON.CO,MISCELLANEOUS AND SPECIALTY RETAIL STORES,56.99
04/09/2023,10900,LOCAL WELFARE PROVISION COVID-19,5999,AMZNMKTPLACE AMAZON.CO,MISCELLANEOUS AND SPECIALTY RETAIL STORES,87.98
04/09/2023,10900,LOCAL WELFARE PROVISION COVID-19,5999,AMZNMKTPLACE AMAZON.CO,MISCELLANEOUS AND SPECIALTY RETAIL STORES,54.49
04/09/2023,10900,LOCAL WELFARE PROVISION COVID-19,5999,AMZNMKTPLACE AMAZON.CO,MISCELLANEOUS AND SPECIALTY RETAIL STORES,82.99
04/09/2023,10900,LOCAL WELFARE PROVISION COVID-19,5999,AMZNMKTPLACE AMAZON.CO,MISCELLANEOUS AND SPECIALTY RETAIL STORES,54.49
04/09/2023,11507,CARE LEAVERS,5311,WWW.ARGOS.CO.UK,DEPARTMENT STORES,203.94
04/09/2023,10900,LOCAL WELFARE PROVISION COVID-19,5999,AMZNMKTPLACE AMAZON.CO,MISCELLANEOUS AND SPECIALTY RETAIL STORES,109.99
04/09/2023,10900,LOCAL WELFARE PROVISION COVID-19,5999,AMZNMKTPLACE AMAZON.CO,MISCELLANEOUS AND SPECIALTY RETAIL STORES,108.98
04/09/2023,10900,LOCAL WELFARE PROVISION COVID-19,5999,AMZNMKTPLACE AMAZON.CO,MISCELLANEOUS AND SPECIALTY RETAIL STORES,54.49
04/09/2023,10900,LOCAL WELFARE PROVISION COVID-19,5999,AMZNMKTPLACE AMAZON.CO,MISCELLANEOUS AND SPECIALTY RETAIL STORES,61.62
04/09/2023,11507,CARE LEAVERS,5411,ASDA SUPERSTORE,"GROCERY STORES, SUPERMARKETS",27.9
04/09/2023,10900,LOCAL WELFARE PROVISION COVID-19,5999,AMZNMKTPLACE AMAZON.CO,MISCELLANEOUS AND SPECIALTY RETAIL STORES,61.62
04/09/2023,10900,LOCAL WELFARE PROVISION COVID-19,5999,AMZNMKTPLACE AMAZON.CO,MISCELLANEOUS AND SPECIALTY RETAIL STORES,54.49
04/09/2023,10900,LOCAL WELFARE PROVISION COVID-19,5999,AMZNMKTPLACE AMAZON.CO,MISCELLANEOUS AND SPECIALTY RETAIL STORES,48.59
04/09/2023,10900,LOCAL WELFARE PROVISION COVID-19,5999,AMZNMKTPLACE AMAZON.CO,MISCELLANEOUS AND SPECIALTY RETAIL STORES,56.99
04/09/2023,11984,IPS MAYMORN RESOURCE CENTRE,4111,WWW.WMCA.ORG.UK,"TRANSPRTN-SUBRBN & LOCAL COMTR PSNGR, INCL FERRIES",10
04/09/2023,11507,CARE LEAVERS,5814,SUBWAY 20191 BIRMINGHA,FAST FOOD RESTAURANTS,27.76
04/09/2023,10900,LOCAL WELFARE PROVISION COVID-19,5999,AMZNMKTPLACE AMAZON.CO,MISCELLANEOUS AND SPECIALTY RETAIL STORES,61.62
04/09/2023,10900,LOCAL WELFARE PROVISION COVID-19,5999,AMZNMKTPLACE,MISCELLANEOUS AND SPECIALTY RETAIL STORES,87.98
04/09/2023,10900,LOCAL WELFARE PROVISION COVID-19,5999,AMZNMKTPLACE,MISCELLANEOUS AND SPECIALTY RETAIL STORES,87.98
04/09/2023,10900,LOCAL WELFARE PROVISION COVID-19,5999,AMZNMKTPLACE,MISCELLANEOUS AND SPECIALTY RETAIL STORES,56.99
04/09/2023,10900,LOCAL WELFARE PROVISION COVID-19,5999,AMZNMKTPLACE,MISCELLANEOUS AND SPECIALTY RETAIL STORES,56.99
04/09/2023,10900,LOCAL WELFARE PROVISION COVID-19,5999,AMZNMKTPLACE,MISCELLANEOUS AND SPECIALTY RETAIL STORES,82.99
04/09/2023,11057,SFPC-FAMILY GROUP CONFERENCING,5411,TESCO STORES 2323,"GROCERY STORES, SUPERMARKETS",9.8
04/09/2023,11507,CARE LEAVERS,4112,CROSS COUNTRY RAIL,PASSENGER RAILWAYS,75.7
04/09/2023,10676,HOUSING AND HOMELESSNESS,5999,AMZNMKTPLACE,MISCELLANEOUS AND SPECIALTY RETAIL STORES,26.99
04/09/2023,10676,HOUSING AND HOMELESSNESS,5999,AMZNMKTPLACE,MISCELLANEOUS AND SPECIALTY RETAIL STORES,37.96
04/09/2023,10900,LOCAL WELFARE PROVISION COVID-19,5999,AMZNMKTPLACE AMAZON.CO,MISCELLANEOUS AND SPECIALTY RETAIL STORES,84.99
04/09/2023,10900,LOCAL WELFARE PROVISION COVID-19,5999,AMZNMKTPLACE AMAZON.CO,MISCELLANEOUS AND SPECIALTY RETAIL STORES,48.59
04/09/2023,10900,LOCAL WELFARE PROVISION COVID-19,5999,AMZNMKTPLACE AMAZON.CO,MISCELLANEOUS AND SPECIALTY RETAIL STORES,108.98
04/09/2023,10900,LOCAL WELFARE PROVISION COVID-19,5999,AMZNMKTPLACE AMAZON.CO,MISCELLANEOUS AND SPECIALTY RETAIL STORES,41.64
04/09/2023,10900,LOCAL WELFARE PROVISION COVID-19,5999,AMZNMKTPLACE AMAZON.CO,MISCELLANEOUS AND SPECIALTY RETAIL STORES,100.99
04/09/2023,10900,LOCAL WELFARE PROVISION COVID-19,5999,AMZNMKTPLACE AMAZON.CO,MISCELLANEOUS AND SPECIALTY RETAIL STORES,54.99
04/09/2023,10900,LOCAL WELFARE PROVISION COVID-19,5999,AMZNMKTPLACE AMAZON.CO,MISCELLANEOUS AND SPECIALTY RETAIL STORES,54.49
04/09/2023,10900,LOCAL WELFARE PROVISION COVID-19,5999,AMZNMKTPLACE AMAZON.CO,MISCELLANEOUS AND SPECIALTY RETAIL STORES,84.99
04/09/2023,10676,HOUSING AND HOMELESSNESS,5999,AMZNMKTPLACE,MISCELLANEOUS AND SPECIALTY RETAIL STORES,25.98
04/09/2023,10900,LOCAL WELFARE PROVISION COVID-19,5999,AMZNMKTPLACE,MISCELLANEOUS AND SPECIALTY RETAIL STORES,113.98
04/09/2023,10676,HOUSING AND HOMELESSNESS,5411,WM MORRISONS STORE,"GROCERY STORES, SUPERMARKETS",10.8
04/09/2023,10900,LOCAL WELFARE PROVISION COVID-19,5999,AMZNMKTPLACE AMAZON.CO,MISCELLANEOUS AND SPECIALTY RETAIL STORES,61.62
04/09/2023,10900,LOCAL WELFARE PROVISION COVID-19,5999,AMZNMKTPLACE AMAZON.CO,MISCELLANEOUS AND SPECIALTY RETAIL STORES,48.59
04/09/2023,11687,RESIDENTIAL - BROAD PARK HOUSE,5399,WILKO RETAIL LIMITED,MISCELLANEOUS GENERAL MERCHANDISE,6
04/09/2023,10900,LOCAL WELFARE PROVISION COVID-19,5999,AMZNMKTPLACE,MISCELLANEOUS AND SPECIALTY RETAIL STORES,41.64
04/09/2023,10900,LOCAL WELFARE PROVISION COVID-19,5999,AMZNMKTPLACE,MISCELLANEOUS AND SPECIALTY RETAIL STORES,87.98
04/09/2023,11687,RESIDENTIAL - BROAD PARK HOUSE,5999,AMZNMKTPLACE,MISCELLANEOUS AND SPECIALTY RETAIL STORES,18.98
04/09/2023,11507,CARE LEAVERS,5651,PRIMARK - COVENTRY,FAMILY CLOTHING STORES,6
04/09/2023,10225,HOUSING - B&B ACCOMMODATION,3533,IBIS COVENTRY SOUTH,HOTEL IBIS,"2,250.00"
04/09/2023,11687,RESIDENTIAL - BROAD PARK HOUSE,7011,VILLAGE HOTELS VCO_SB,"LODGING-HOTELS,MOTELS,RESORTS-NOT CLASSIFIED",10.4
04/09/2023,10900,LOCAL WELFARE PROVISION COVID-19,5999,AMZNMKTPLACE,MISCELLANEOUS AND SPECIALTY RETAIL STORES,61.62
04/09/2023,10900,LOCAL WELFARE PROVISION COVID-19,5999,AMZNMKTPLACE,MISCELLANEOUS AND SPECIALTY RETAIL STORES,82.99
04/09/2023,10900,LOCAL WELFARE PROVISION COVID-19,5999,AMZNMKTPLACE,MISCELLANEOUS AND SPECIALTY RETAIL STORES,56.99
04/09/2023,10900,LOCAL WELFARE PROVISION COVID-19,5999,AMZNMKTPLACE,MISCELLANEOUS AND SPECIALTY RETAIL STORES,165.98
04/09/2023,10900,LOCAL WELFARE PROVISION COVID-19,5999,AMZNMKTPLACE,MISCELLANEOUS AND SPECIALTY RETAIL STORES,113.98
04/09/2023,11507,CARE LEAVERS,5814,MCDONALDS,FAST FOOD RESTAURANTS,17.71
04/09/2023,11507,CARE LEAVERS,5310,ARGOS CANLEY,DISCOUNT STORES,36.99
04/09/2023,11248,IPS ERIC WILLIAMS HOUSE,5964,NISBETS LTD,DIRECT MARKETING-CATALOG MERCHANTS,"1,199.98"
04/09/2023,11687,RESIDENTIAL - BROAD PARK HOUSE,5812,GREGGS PLC,"EATING PLACES, RESTAURANTS",14.5
04/09/2023,10900,LOCAL WELFARE PROVISION COVID-19,5999,AMZNMKTPLACE,MISCELLANEOUS AND SPECIALTY RETAIL STORES,61.62
04/09/2023,11507,CARE LEAVERS,4111,WWW.WMCA.ORG.UK,"TRANSPRTN-SUBRBN & LOCAL COMTR PSNGR, INCL FERRIES",310
04/09/2023,11507,CARE LEAVERS,5311,WWW.ARGOS.CO.UK,DEPARTMENT STORES,193.94
04/09/2023,11374,PARTNERSHIPS & SOCIAL CARE OPERATIONAL,4111,WWW.WMCA.ORG.UK,"TRANSPRTN-SUBRBN & LOCAL COMTR PSNGR, INCL FERRIES",660
04/09/2023,10074,ADULT ED FAMILY LEARNING,5999,AMZNBUSINESS AMAZON.CO,MISCELLANEOUS AND SPECIALTY RETAIL STORES,-15.92
04/09/2023,11086,OUTDOOR EDUCATION CENTRE,4784,THE M6 TOLL,"BRIDGE AND ROAD FEES, TOLLS",48
04/09/2023,11932,LAC THROUGHCARE TEAM,5411,MARKS&SPENCER PLC,"GROCERY STORES, SUPERMARKETS",15.9
04/09/2023,10291,SECTION17 PAYMENTS CENTRAL,4131,WEST MIDLANDS TRAV,BUS LINES,30
04/09/2023,10448,RESIDENTIAL - GRAVEL HILL,5211,TOOLSTATION LTD,"BUILDING MATERIALS, LUMBER STORES",19.27
04/09/2023,11507,CARE LEAVERS,9402,POST OFFICE COUNTER,POSTAL SERVICES-GOVERNMENT ONLY,20.9
04/09/2023,11928,COMMUNITY SUPPORT GRANTS,5999,AMZNMKTPLACE,MISCELLANEOUS AND SPECIALTY RETAIL STORES,13.74
04/09/2023,11859,BUILDING CONTROL,9399,LAND REGISTRY ECOM CCC,GOVERNMENT SERVICES-NOT ELSEWHERE CLASSIFIED,3
04/09/2023,10497,HOSPITAL SOCIAL CARE SERVICE,5999,AMZ BRACKETSALES123,MISCELLANEOUS AND SPECIALTY RETAIL STORES,-42.52
04/09/2023,10291,SECTION17 PAYMENTS CENTRAL,5411,ASDA GEORGE COM LEEDS,"GROCERY STORES, SUPERMARKETS",36.45
04/09/2023,11103,RESIDENTIAL - BROAD LANE,5999,SHEIN.CO.UK,MISCELLANEOUS AND SPECIALTY RETAIL STORES,122.53
04/09/2023,11928,COMMUNITY SUPPORT GRANTS,5999,AMZNMKTPLACE,MISCELLANEOUS AND SPECIALTY RETAIL STORES,59.75
04/09/2023,11928,COMMUNITY SUPPORT GRANTS,5999,AMZNMKTPLACE,MISCELLANEOUS AND SPECIALTY RETAIL STORES,39.99
04/09/2023,11928,COMMUNITY SUPPORT GRANTS,5999,AMZNMKTPLACE,MISCELLANEOUS AND SPECIALTY RETAIL STORES,23.87
04/09/2023,10448,RESIDENTIAL - GRAVEL HILL,5999,AMZNBUSINESS 1U1Z54C64,MISCELLANEOUS AND SPECIALTY RETAIL STORES,4.41
04/09/2023,10579,ENVIRONMENTAL HEALTH,8398,CHARTERED INSTITUTE OF,"ORGANIZATIONS, CHARITABLE AND SOCIAL SERVICES",132
04/09/2023,11267,ICT NETWORK SERVICES,5021,PAYPAL  CLAREMONTOF,OFFICE AND COMMERCIAL FURNITURE,246
04/09/2023,11928,COMMUNITY SUPPORT GRANTS,5999,AMZNMKTPLACE,MISCELLANEOUS AND SPECIALTY RETAIL STORES,13.74
04/09/2023,10469,RESIDENTIAL - JOBS LANE,5411,SAINSBURYS S/MKTS,"GROCERY STORES, SUPERMARKETS",37.89
04/09/2023,11507,CARE LEAVERS,5732,CURRYS ONLINE,ELECTRONIC SALES,299
04/09/2023,11507,CARE LEAVERS,5999,AMZNMKTPLACE,MISCELLANEOUS AND SPECIALTY RETAIL STORES,7.31
04/09/2023,10416,LAC PERMANENCY,9222,COUNTY COURT,FINES,183
04/09/2023,11507,CARE LEAVERS,5814,MCDONALDS,FAST FOOD RESTAURANTS,13
04/09/2023,11234,HR & OD TECHNOLOGIES AND RECRUITMENT,5732,CURRYS ONLINE,ELECTRONIC SALES,99
04/09/2023,10962,OUTDOOR EDUCATION SERVICE,8299,FOREST SCHOOL ASSOC,SCHOOLS & EDUCATIONAL SVC-NOT ELSEWHERE CLASSIFIED,173.95
04/09/2023,10469,RESIDENTIAL - JOBS LANE,5661,DEICHMANN SHOES,SHOE STORES,20.19
04/09/2023,10962,OUTDOOR EDUCATION SERVICE,7011,COOMBE ABBEY HOTEL CAF,"LODGING-HOTELS,MOTELS,RESORTS-NOT CLASSIFIED",45
04/09/2023,11932,LAC THROUGHCARE TEAM,9399,COVENTRY CITY COUNCIL,GOVERNMENT SERVICES-NOT ELSEWHERE CLASSIFIED,35
04/09/2023,11507,CARE LEAVERS,5411,TESCO STORES 6135,"GROCERY STORES, SUPERMARKETS",32.9
04/09/2023,11507,CARE LEAVERS,5814,COSTA COFFEE 43011236,FAST FOOD RESTAURANTS,20.4
04/09/2023,10416,LAC PERMANENCY,9222,COUNTY COURT,FINES,183
04/09/2023,11086,OUTDOOR EDUCATION CENTRE,5411,CO-OP GROUP 190390,"GROCERY STORES, SUPERMARKETS",41.24
04/09/2023,11507,CARE LEAVERS,4121,UBER    TRIP,LIMOUSINES AND TAXICABS,5.9
04/09/2023,11507,CARE LEAVERS,5812,MCDONALDS   931,"EATING PLACES, RESTAURANTS",5.59
04/09/2023,11879,IPS LD MAURICE EDELMAN HOUSE,5411,TESCO STORES 2328,"GROCERY STORES, SUPERMARKETS",177.1
04/09/2023,10416,LAC PERMANENCY,9222,COUNTY COURT,FINES,183
04/09/2023,10416,LAC PERMANENCY,4112,TRAINLINE,PASSENGER RAILWAYS,60.52
04/09/2023,11984,IPS MAYMORN RESOURCE CENTRE,5411,WM MORRISONS STORE,"GROCERY STORES, SUPERMARKETS",4.74
04/09/2023,10704,LEGAL SERVICES,4215,WWW.DHL INTERNATIONAL,"COURIER SVC-AIR & GROUND, FREIGHT FORWARDERS",36.14
04/09/2023,11507,CARE LEAVERS,4121,UBER    TRIP,LIMOUSINES AND TAXICABS,8.93
04/09/2023,10416,LAC PERMANENCY,9222,COUNTY COURT,FINES,183
04/09/2023,10300,INTERNAL FOSTERING TEAM,5411,SPAR HAY LANE,"GROCERY STORES, SUPERMARKETS",5.08
04/09/2023,10448,RESIDENTIAL - GRAVEL HILL,5411,CO-OP GROUP 171451,"GROCERY STORES, SUPERMARKETS",8.75
04/09/2023,10448,RESIDENTIAL - GRAVEL HILL,5999,SUMUP   NEMOS,MISCELLANEOUS AND SPECIALTY RETAIL STORES,11.1
04/09/2023,10488,IPS LD JENNER8,4111,WWW.WMCA.ORG.UK,"TRANSPRTN-SUBRBN & LOCAL COMTR PSNGR, INCL FERRIES",10
04/09/2023,10900,LOCAL WELFARE PROVISION COVID-19,5999,AMZNMKTPLACE,MISCELLANEOUS AND SPECIALTY RETAIL STORES,82.99
04/09/2023,10900,LOCAL WELFARE PROVISION COVID-19,5999,AMZNMKTPLACE AMAZON.CO,MISCELLANEOUS AND SPECIALTY RETAIL STORES,56.99
04/09/2023,10900,LOCAL WELFARE PROVISION COVID-19,5999,AMZNMKTPLACE AMAZON.CO,MISCELLANEOUS AND SPECIALTY RETAIL STORES,54.99
04/09/2023,10900,LOCAL WELFARE PROVISION COVID-19,5999,AMZNMKTPLACE,MISCELLANEOUS AND SPECIALTY RETAIL STORES,165.98
04/09/2023,10900,LOCAL WELFARE PROVISION COVID-19,5999,AMZNMKTPLACE AMAZON.CO,MISCELLANEOUS AND SPECIALTY RETAIL STORES,41.64
04/09/2023,10900,LOCAL WELFARE PROVISION COVID-19,5999,AMZNMKTPLACE,MISCELLANEOUS AND SPECIALTY RETAIL STORES,36.99
04/09/2023,10900,LOCAL WELFARE PROVISION COVID-19,5999,AMZNMKTPLACE,MISCELLANEOUS AND SPECIALTY RETAIL STORES,104.99
04/09/2023,10900,LOCAL WELFARE PROVISION COVID-19,5999,AMZNMKTPLACE AMAZON.CO,MISCELLANEOUS AND SPECIALTY RETAIL STORES,68.59
04/09/2023,10900,LOCAL WELFARE PROVISION COVID-19,5999,AMZNMKTPLACE,MISCELLANEOUS AND SPECIALTY RETAIL STORES,68.59
04/09/2023,10900,LOCAL WELFARE PROVISION COVID-19,5999,AMZNMKTPLACE,MISCELLANEOUS AND SPECIALTY RETAIL STORES,36.99
04/09/2023,10900,LOCAL WELFARE PROVISION COVID-19,5999,AMZNMKTPLACE,MISCELLANEOUS AND SPECIALTY RETAIL STORES,73.98
04/09/2023,10900,LOCAL WELFARE PROVISION COVID-19,5999,AMZNMKTPLACE,MISCELLANEOUS AND SPECIALTY RETAIL STORES,129.99
04/09/2023,10900,LOCAL WELFARE PROVISION COVID-19,5999,AMZNMKTPLACE AMAZON.CO,MISCELLANEOUS AND SPECIALTY RETAIL STORES,113.98
04/09/2023,10900,LOCAL WELFARE PROVISION COVID-19,5999,AMZNMKTPLACE,MISCELLANEOUS AND SPECIALTY RETAIL STORES,129.99
04/09/2023,10900,LOCAL WELFARE PROVISION COVID-19,5999,AMZNMKTPLACE,MISCELLANEOUS AND SPECIALTY RETAIL STORES,129.99
04/09/2023,10900,LOCAL WELFARE PROVISION COVID-19,5999,AMZNMKTPLACE,MISCELLANEOUS AND SPECIALTY RETAIL STORES,155.99
04/09/2023,10900,LOCAL WELFARE PROVISION COVID-19,5999,AMZNMKTPLACE,MISCELLANEOUS AND SPECIALTY RETAIL STORES,129.99
04/09/2023,10900,LOCAL WELFARE PROVISION COVID-19,5999,AMZNMKTPLACE,MISCELLANEOUS AND SPECIALTY RETAIL STORES,155.99
04/09/2023,10900,LOCAL WELFARE PROVISION COVID-19,5999,AMZNMKTPLACE AMAZON.CO,MISCELLANEOUS AND SPECIALTY RETAIL STORES,129.99
04/09/2023,10541,COVENTRY EXTENDED LEARNING CENTRE,5999,AMZNMKTPLACE,MISCELLANEOUS AND SPECIALTY RETAIL STORES,35.97
04/09/2023,11135,YOUTH OFFENDING SERVICE,5411,TESCO-STORES 6473,"GROCERY STORES, SUPERMARKETS",10.5
04/09/2023,10448,RESIDENTIAL - GRAVEL HILL,7033,GOLDEN SANDS,CAMPGROUNDS AND TRAILER PARKS,14.16
04/09/2023,10448,RESIDENTIAL - GRAVEL HILL,5813,BUSTERS,"BAR,LOUNGE,DISCO,NIGHTCLUB,TAVERN-ALCOHOLIC DRINKS",50.7
04/09/2023,11874,OPR0077 EARL STREET COUNCIL HOUSE,5211,WWW.SCREWFIX.COM,"BUILDING MATERIALS, LUMBER STORES",51.96
04/09/2023,11746,RESIDENTIAL - GRAYSWOOD,5812,GREGGS,"EATING PLACES, RESTAURANTS",6.8
04/09/2023,11746,RESIDENTIAL - GRAYSWOOD,5999,AMZNMKTPLACE,MISCELLANEOUS AND SPECIALTY RETAIL STORES,25.46
04/09/2023,11746,RESIDENTIAL - GRAYSWOOD,5999,AMZNMKTPLACE,MISCELLANEOUS AND SPECIALTY RETAIL STORES,12.74
04/09/2023,10090,LIBRARIES - OPERATIONS,8398,CILIP,"ORGANIZATIONS, CHARITABLE AND SOCIAL SERVICES",360
04/09/2023,11197,WEST FAMILY HUB,5411,WM MORRISONS STORE,"GROCERY STORES, SUPERMARKETS",7
04/09/2023,10448,RESIDENTIAL - GRAVEL HILL,5411,TESCO STORES 2328,"GROCERY STORES, SUPERMARKETS",204.02
04/09/2023,11764,HOSPITAL EDUCATION & OUTREACH SERVICE,4814,BT BUSINESS BILL,TELECOM INCL PREPAID/RECURRING PHONE SVCS,87.8
04/09/2023,10579,ENVIRONMENTAL HEALTH,5999,AMZNMKTPLACE,MISCELLANEOUS AND SPECIALTY RETAIL STORES,27.3
04/09/2023,10448,RESIDENTIAL - GRAVEL HILL,7033,GOLDEN SANDS,CAMPGROUNDS AND TRAILER PARKS,28.99
04/09/2023,10448,RESIDENTIAL - GRAVEL HILL,5814,PLEASURE BEACH,FAST FOOD RESTAURANTS,20
04/09/2023,11928,COMMUNITY SUPPORT GRANTS,5999,AMZNMKTPLACE,MISCELLANEOUS AND SPECIALTY RETAIL STORES,79.98
04/09/2023,11928,COMMUNITY SUPPORT GRANTS,5999,AMZNMKTPLACE,MISCELLANEOUS AND SPECIALTY RETAIL STORES,41.83
04/09/2023,11928,COMMUNITY SUPPORT GRANTS,5999,AMZNMKTPLACE,MISCELLANEOUS AND SPECIALTY RETAIL STORES,119.97
04/09/2023,10900,LOCAL WELFARE PROVISION COVID-19,5999,AMZNMKTPLACE AMAZON.CO,MISCELLANEOUS AND SPECIALTY RETAIL STORES,129.99
04/09/2023,10900,LOCAL WELFARE PROVISION COVID-19,5999,AMZNMKTPLACE AMAZON.CO,MISCELLANEOUS AND SPECIALTY RETAIL STORES,129.99
04/09/2023,11129,INTERNAL FOSTERING FEES,5411,SPAR HAY LANE,"GROCERY STORES, SUPERMARKETS",3.85
04/09/2023,11746,RESIDENTIAL - GRAYSWOOD,5651,CAT BALLOU ORIGINALS,FAMILY CLOTHING STORES,139.04
04/09/2023,11746,RESIDENTIAL - GRAYSWOOD,5651,PRIMARK - COVENTRY,FAMILY CLOTHING STORES,32
04/09/2023,11753,LIBRARIES - SERVICE DEVELOPMENT,8398,CILIP,"ORGANIZATIONS, CHARITABLE AND SOCIAL SERVICES",300
04/09/2023,10448,RESIDENTIAL - GRAVEL HILL,5999,AMZNBUSINESS 1U0Z20CG4,MISCELLANEOUS AND SPECIALTY RETAIL STORES,22.98
04/09/2023,11403,IPS HWC COTTAGE FARM,5811,BRAKES (STORED CARDS),CATERERS,468.65
04/09/2023,11928,COMMUNITY SUPPORT GRANTS,5999,AMZNMKTPLACE,MISCELLANEOUS AND SPECIALTY RETAIL STORES,11.99
04/09/2023,11928,COMMUNITY SUPPORT GRANTS,5999,AMZNMKTPLACE AMAZON.CO,MISCELLANEOUS AND SPECIALTY RETAIL STORES,-48.49
04/09/2023,11307,IPS MH THE POD,5411,SAINSBURYS S MKTS,"GROCERY STORES, SUPERMARKETS",5.1
04/09/2023,11539,CENTRALISED PROMOTIONS BUDGET,7311,GOOGLE ADS8599866235,ADVERTISING SERVICES,171.61
04/09/2023,11746,RESIDENTIAL - GRAYSWOOD,7523,COVENTRY CITY COUNCIL,AUTOMOBILE PARKING LOTS AND GARAGES,2
04/09/2023,11746,RESIDENTIAL - GRAYSWOOD,5999,AMZNMKTPLACE,MISCELLANEOUS AND SPECIALTY RETAIL STORES,9.9
04/09/2023,11764,HOSPITAL EDUCATION & OUTREACH SERVICE,4814,BT BUSINESS BILL,TELECOM INCL PREPAID/RECURRING PHONE SVCS,67.07
04/09/2023,11928,COMMUNITY SUPPORT GRANTS,5999,AMZNMKTPLACE AMAZON.CO,MISCELLANEOUS AND SPECIALTY RETAIL STORES,-96.98
04/09/2023,10448,RESIDENTIAL - GRAVEL HILL,7999,BIG KIDZ KARTING,RECREATION SERVICES (NOT ELSEWHERE CLASSIFIED),18
04/09/2023,10448,RESIDENTIAL - GRAVEL HILL,7033,GOLDEN SANDS,CAMPGROUNDS AND TRAILER PARKS,-4
04/09/2023,10900,LOCAL WELFARE PROVISION COVID-19,5999,AMZNMKTPLACE AMAZON.CO,MISCELLANEOUS AND SPECIALTY RETAIL STORES,129.99
04/09/2023,10900,LOCAL WELFARE PROVISION COVID-19,5999,AMZNMKTPLACE AMAZON.CO,MISCELLANEOUS AND SPECIALTY RETAIL STORES,129.99
04/09/2023,11307,IPS MH THE POD,5411,SAINSBURYS S MKTS,"GROCERY STORES, SUPERMARKETS",12.65
04/09/2023,11307,IPS MH THE POD,5411,SAINSBURYS S MKTS,"GROCERY STORES, SUPERMARKETS",3.59
04/09/2023,11687,RESIDENTIAL - BROAD PARK HOUSE,5411,WM MORRISONS STORE,"GROCERY STORES, SUPERMARKETS",57.64
04/09/2023,11922,ICT USER SUPPORT,5999,AMZNMKTPLACE AMAZON.CO,MISCELLANEOUS AND SPECIALTY RETAIL STORES,13.15
04/09/2023,11049,CREMATORIUM,5999,AMZNMKTPLACE AMAZON.CO,MISCELLANEOUS AND SPECIALTY RETAIL STORES,7.31
04/09/2023,10900,LOCAL WELFARE PROVISION COVID-19,5999,AMZNMKTPLACE AMAZON.CO,MISCELLANEOUS AND SPECIALTY RETAIL STORES,129.99
04/09/2023,10900,LOCAL WELFARE PROVISION COVID-19,5999,AMZNMKTPLACE,MISCELLANEOUS AND SPECIALTY RETAIL STORES,76.99
04/09/2023,10469,RESIDENTIAL - JOBS LANE,7523,WWW.LOWERPRECINCT.,AUTOMOBILE PARKING LOTS AND GARAGES,1.5
04/09/2023,11792,HOUSING AND HOMELESSNESS,5999,AMZNMKTPLACE,MISCELLANEOUS AND SPECIALTY RETAIL STORES,24.97
04/09/2023,11865,PUBLIC HEALTH - MIGRATION,4131,NX BUS CONTACTLESS,BUS LINES,2
04/09/2023,11746,RESIDENTIAL - GRAYSWOOD,5812,GREGGS PLC,"EATING PLACES, RESTAURANTS",5.4
04/09/2023,11746,RESIDENTIAL - GRAYSWOOD,5999,AMZNMKTPLACE,MISCELLANEOUS AND SPECIALTY RETAIL STORES,17.15
04/09/2023,10090,LIBRARIES - OPERATIONS,5411,ADSA STORES LTD 4231,"GROCERY STORES, SUPERMARKETS",14.38
04/09/2023,11894,ICT SYSTEMS,4816,CLOUD BWR596,COMPUTER NETWORK/INFORMATION SERVICES,261.32
04/09/2023,10225,HOUSING - B&B ACCOMMODATION,3811,PREMIER INN,PREMIER INN,408
04/09/2023,10291,SECTION17 PAYMENTS CENTRAL,5999,AMZNMKTPLACE AMAZON.CO,MISCELLANEOUS AND SPECIALTY RETAIL STORES,145
04/09/2023,10541,COVENTRY EXTENDED LEARNING CENTRE,5999,AMZNMKTPLACE,MISCELLANEOUS AND SPECIALTY RETAIL STORES,39.95
04/09/2023,10469,RESIDENTIAL - JOBS LANE,5411,ALDI STORES ATHERSTONE,"GROCERY STORES, SUPERMARKETS",265.65
04/09/2023,10378,CHILDREN?S SERVICES MANAGEMENT TEAM,7311,GOOGLE ADS5863587466,ADVERTISING SERVICES,496.13
04/09/2023,10291,SECTION17 PAYMENTS CENTRAL,4131,WEST MIDLANDS TRAV,BUS LINES,99
04/09/2023,11307,IPS MH THE POD,5691,MGP VINTED 68760859,MEN'S AND WOMEN'S CLOTHING STORES,4.64
04/09/2023,11746,RESIDENTIAL - GRAYSWOOD,5999,AMZNMKTPLACE,MISCELLANEOUS AND SPECIALTY RETAIL STORES,22.98
05/09/2023,11951,EXTERNAL FUNDING AND BUSINESS DEVELOP,4112,TRAINLINE,PASSENGER RAILWAYS,18.94
05/09/2023,11307,IPS MH THE POD,5199,CHAPPLE AND JENKINS LI,NONDURABLE GOODS (NOT ELSEWHERE CLASSIFIED),238.14
05/09/2023,11704,COVENTRY MUSIC,5733,MUSICNOTES.COM,"MUSIC STORES-INSTRUMENTS, PIANOS, SHEET MUSIC",4.74
05/09/2023,10718,LAC EDUCATION SERVICE,9399,COVENTRY CITY COUNCIL,GOVERNMENT SERVICES-NOT ELSEWHERE CLASSIFIED,110
05/09/2023,10448,RESIDENTIAL - GRAVEL HILL,5411,MARKS&SPENCER PLC,"GROCERY STORES, SUPERMARKETS",22
05/09/2023,11984,IPS MAYMORN RESOURCE CENTRE,5411,BOOKER LTD - 38535674,"GROCERY STORES, SUPERMARKETS",95.73
05/09/2023,11951,EXTERNAL FUNDING AND BUSINESS DEVELOP,4112,WWW.AVANTIWESTCOAST.CO,PASSENGER RAILWAYS,79.7
05/09/2023,10512,REGISTER OFFICE,5399,WILKO RETAIL LIMITED,MISCELLANEOUS GENERAL MERCHANDISE,12.23
05/09/2023,11954,OCCUPIER SUPPORT,7392,KEY OSTAS LTD,"CONSULTING, MANAGEMENT, AND PUBLIC RELATIONS SVCS","1,296.00"
05/09/2023,11507,CARE LEAVERS,7399,EB  CHILDREN MOVING OV,BUSINESS SERVICES-NOT ELSEWHERE CLASSIFIED,13.55
05/09/2023,11507,CARE LEAVERS,7399,EB  CHILDREN MOVING OV,BUSINESS SERVICES-NOT ELSEWHERE CLASSIFIED,13.55
05/09/2023,10718,LAC EDUCATION SERVICE,9399,COVENTRY CITY COUNCIL,GOVERNMENT SERVICES-NOT ELSEWHERE CLASSIFIED,110
05/09/2023,11932,LAC THROUGHCARE TEAM,9402,POST OFFICE COUNTER,POSTAL SERVICES-GOVERNMENT ONLY,10
05/09/2023,10723,CHILDREN & ADOLESCENTS MENTAL HEA,4112,WWW.AVANTIWESTCOAST.CO,PASSENGER RAILWAYS,96
05/09/2023,11507,CARE LEAVERS,7399,EB  OVERSEAS CONVENTIO,BUSINESS SERVICES-NOT ELSEWHERE CLASSIFIED,13.55
05/09/2023,11507,CARE LEAVERS,3504,HILTON,HILTON,242.88
05/09/2023,10416,LAC PERMANENCY,4111,WWW.WMCA.ORG.UK,"TRANSPRTN-SUBRBN & LOCAL COMTR PSNGR, INCL FERRIES",60
05/09/2023,10541,COVENTRY EXTENDED LEARNING CENTRE,5999,AMZNMKTPLACE,MISCELLANEOUS AND SPECIALTY RETAIL STORES,51.56
05/09/2023,11300,PEST CONTROL & ANIMAL WELFARE,5200,B & Q 1231,HOME SUPPLY WAREHOUSE STORES,52.53
05/09/2023,10507,PARK RANGERS,5261,TUDOR ENVIRONMENTAL,LAWN AND GARDEN SUPPLY STORES,10.42
05/09/2023,10225,HOUSING - B&B ACCOMMODATION,3811,PREMIER INN,PREMIER INN,760
05/09/2023,11507,CARE LEAVERS,4112,TRAINLINE,PASSENGER RAILWAYS,2.24
05/09/2023,11746,RESIDENTIAL - GRAYSWOOD,5999,AMZNMKTPLACE,MISCELLANEOUS AND SPECIALTY RETAIL STORES,6.64
05/09/2023,10382,CHILDREN?S SENSORY SUPPORT SERVICE,7399,EB  2ND REHABILITATION,BUSINESS SERVICES-NOT ELSEWHERE CLASSIFIED,225
05/09/2023,11764,HOSPITAL EDUCATION & OUTREACH SERVICE,5969,AMAZON.CO.UK 1U1XT5EP4,DIRECT MARKETING-OTHER DIRECT MARKETERS/NOT ELSEW.,549
05/09/2023,11870,IPS LD WILFRED SPENCER CENTRE,5999,AMZNMKTPLACE,MISCELLANEOUS AND SPECIALTY RETAIL STORES,9.99
05/09/2023,10416,LAC PERMANENCY,4111,WWW.WMCA.ORG.UK,"TRANSPRTN-SUBRBN & LOCAL COMTR PSNGR, INCL FERRIES",60
05/09/2023,11687,RESIDENTIAL - BROAD PARK HOUSE,5411,WM MORRISONS STORE,"GROCERY STORES, SUPERMARKETS",61.57
05/09/2023,11928,COMMUNITY SUPPORT GRANTS,5999,AMZNMKTPLACE AMAZON.CO,MISCELLANEOUS AND SPECIALTY RETAIL STORES,7.94
05/09/2023,11381,PUBLIC HEALTH,4121,UBER    TRIP,LIMOUSINES AND TAXICABS,10.92
05/09/2023,11057,SFPC-FAMILY GROUP CONFERENCING,7523,PAYBYPHONE RE COVENTRY,AUTOMOBILE PARKING LOTS AND GARAGES,2.15
05/09/2023,10541,COVENTRY EXTENDED LEARNING CENTRE,5411,ASDA GROCERIES ONLINE,"GROCERY STORES, SUPERMARKETS",149.58
05/09/2023,10169,SECTION17 PAYMENTS SOUTH,4131,WEST MIDLANDS TRAV,BUS LINES,30
05/09/2023,10090,LIBRARIES - OPERATIONS,5411,ADSA STORES LTD 4231,"GROCERY STORES, SUPERMARKETS",5.99
05/09/2023,11928,COMMUNITY SUPPORT GRANTS,5999,AMZNMKTPLACE,MISCELLANEOUS AND SPECIALTY RETAIL STORES,7.94
05/09/2023,11307,IPS MH THE POD,5411,WM MORRISONS STORE,"GROCERY STORES, SUPERMARKETS",12.31
05/09/2023,11057,SFPC-FAMILY GROUP CONFERENCING,5411,CO-OP LATE SHOP,"GROCERY STORES, SUPERMARKETS",13.1
05/09/2023,11507,CARE LEAVERS,4112,TRAINLINE,PASSENGER RAILWAYS,6.57
05/09/2023,11746,RESIDENTIAL - GRAYSWOOD,5999,AMZNMKTPLACE,MISCELLANEOUS AND SPECIALTY RETAIL STORES,23.49
05/09/2023,10670,ADULT ED STAFF DEVELOPMENT,8699,NATECLA,"ORGANIZATIONS, MEMBERSHIP-NOT ELSEWHERE CLASSIFIED",150
05/09/2023,11928,COMMUNITY SUPPORT GRANTS,5999,AMZNMKTPLACE,MISCELLANEOUS AND SPECIALTY RETAIL STORES,6.5
05/09/2023,11381,PUBLIC HEALTH,4121,UBER    TRIP,LIMOUSINES AND TAXICABS,10.98
05/09/2023,11746,RESIDENTIAL - GRAYSWOOD,5411,SAINSBURY'S S/MKT,"GROCERY STORES, SUPERMARKETS",74.65
05/09/2023,10900,LOCAL WELFARE PROVISION COVID-19,5999,AMZNBUSINESS 1U7N703D4,MISCELLANEOUS AND SPECIALTY RETAIL STORES,86.99
05/09/2023,11928,COMMUNITY SUPPORT GRANTS,5999,AMZNMKTPLACE,MISCELLANEOUS AND SPECIALTY RETAIL STORES,145.44
05/09/2023,11928,COMMUNITY SUPPORT GRANTS,5999,AMZNMKTPLACE,MISCELLANEOUS AND SPECIALTY RETAIL STORES,22
05/09/2023,11928,COMMUNITY SUPPORT GRANTS,5999,AMZNMKTPLACE,MISCELLANEOUS AND SPECIALTY RETAIL STORES,96.96
05/09/2023,11507,CARE LEAVERS,5999,AMZNMKTPLACE AMAZON.CO,MISCELLANEOUS AND SPECIALTY RETAIL STORES,14.98
05/09/2023,11826,REPAIR & MAINTENANCE,5732,PAYPAL  BUYABATTERY,ELECTRONIC SALES,294.12
05/09/2023,11194,SPECIALIST TRAINING AND EMPLOYMENT PR,5814,PAPA JOHN PIZZA,FAST FOOD RESTAURANTS,64.17
05/09/2023,11928,COMMUNITY SUPPORT GRANTS,5999,AMZNMKTPLACE,MISCELLANEOUS AND SPECIALTY RETAIL STORES,31.82
05/09/2023,11928,COMMUNITY SUPPORT GRANTS,5999,AMZNMKTPLACE,MISCELLANEOUS AND SPECIALTY RETAIL STORES,48.48
05/09/2023,11928,COMMUNITY SUPPORT GRANTS,5999,AMZNMKTPLACE,MISCELLANEOUS AND SPECIALTY RETAIL STORES,7.94
05/09/2023,11194,SPECIALIST TRAINING AND EMPLOYMENT PR,5310,POUNDLAND LTD - 2017,DISCOUNT STORES,46.35
05/09/2023,11870,IPS LD WILFRED SPENCER CENTRE,5999,AMZNMKTPLACE,MISCELLANEOUS AND SPECIALTY RETAIL STORES,12.95
05/09/2023,11507,CARE LEAVERS,4121,UBER    TRIP,LIMOUSINES AND TAXICABS,7.95
05/09/2023,11507,CARE LEAVERS,5812,EARL OF MERCIA,"EATING PLACES, RESTAURANTS",18.52
05/09/2023,11057,SFPC-FAMILY GROUP CONFERENCING,5411,ADSA STORES LTD 4231,"GROCERY STORES, SUPERMARKETS",5.75
05/09/2023,11107,CENTRAL FAMILY HUB,5411,ALDI 12 772,"GROCERY STORES, SUPERMARKETS",16.07
05/09/2023,10541,COVENTRY EXTENDED LEARNING CENTRE,5999,AMZNMKTPLACE,MISCELLANEOUS AND SPECIALTY RETAIL STORES,11.4
05/09/2023,11870,IPS LD WILFRED SPENCER CENTRE,5999,AMZNMKTPLACE,MISCELLANEOUS AND SPECIALTY RETAIL STORES,46.98
05/09/2023,11928,COMMUNITY SUPPORT GRANTS,5999,AMZNMKTPLACE AMAZON.CO,MISCELLANEOUS AND SPECIALTY RETAIL STORES,11
05/09/2023,11381,PUBLIC HEALTH,4121,UBER    TRIP,LIMOUSINES AND TAXICABS,9.99
05/09/2023,11687,RESIDENTIAL - BROAD PARK HOUSE,5999,AMZNMKTPLACE,MISCELLANEOUS AND SPECIALTY RETAIL STORES,8.79
05/09/2023,11928,COMMUNITY SUPPORT GRANTS,5999,AMZNMKTPLACE,MISCELLANEOUS AND SPECIALTY RETAIL STORES,169.99
05/09/2023,11928,COMMUNITY SUPPORT GRANTS,5999,AMZNMKTPLACE,MISCELLANEOUS AND SPECIALTY RETAIL STORES,11
05/09/2023,10663,BUSINESS SUSTAIN EXTERNAL CONSULTANCY ,8299,WWW.NQA.COM,SCHOOLS & EDUCATIONAL SVC-NOT ELSEWHERE CLASSIFIED,588
05/09/2023,10541,COVENTRY EXTENDED LEARNING CENTRE,5411,ASDA GROCERIES ONLINE,"GROCERY STORES, SUPERMARKETS",-24
05/09/2023,11507,CARE LEAVERS,4121,UBER    TRIP,LIMOUSINES AND TAXICABS,6.98
05/09/2023,10084,SECTION17 PAYMENTS WEST,4131,WEST MIDLANDS TRAV,BUS LINES,17
05/09/2023,10225,HOUSING - B&B ACCOMMODATION,3811,PREMIER INN,PREMIER INN,88.4
05/09/2023,11507,CARE LEAVERS,5311,WWW.ARGOS.CO.UK,DEPARTMENT STORES,192.95
05/09/2023,11107,CENTRAL FAMILY HUB,5411,TESCO STORES 5828,"GROCERY STORES, SUPERMARKETS",2.85
05/09/2023,10541,COVENTRY EXTENDED LEARNING CENTRE,5411,TESCO STORES 5168,"GROCERY STORES, SUPERMARKETS",69.42
05/09/2023,10902,BEHAVIOUR SUPPORT - PRIMARY SERVICE,8299,PRAXIS CPD LTD,SCHOOLS & EDUCATIONAL SVC-NOT ELSEWHERE CLASSIFIED,55
05/09/2023,10169,SECTION17 PAYMENTS SOUTH,4131,WEST MIDLANDS TRAV,BUS LINES,60
05/09/2023,10225,HOUSING - B&B ACCOMMODATION,3811,PREMIER INN,PREMIER INN,709
05/09/2023,10300,INTERNAL FOSTERING TEAM,5411,SAINSBURYS S/MKTS,"GROCERY STORES, SUPERMARKETS",7.32
05/09/2023,10169,SECTION17 PAYMENTS SOUTH,4131,WEST MIDLANDS TRAV,BUS LINES,30
05/09/2023,11107,CENTRAL FAMILY HUB,5411,LIDL GB COVENTRY,"GROCERY STORES, SUPERMARKETS",7.16
05/09/2023,11951,EXTERNAL FUNDING AND BUSINESS DEVELOP,4112,WWW.AVANTIWESTCOAST.CO,PASSENGER RAILWAYS,9
05/09/2023,10448,RESIDENTIAL - GRAVEL HILL,7523,WWW.LOWERPRECINCT.,AUTOMOBILE PARKING LOTS AND GARAGES,2
05/09/2023,11255,ADULT ED ADMIN & MANAGEMENT,5999,AMZNMKTPLACE,MISCELLANEOUS AND SPECIALTY RETAIL STORES,18.98
05/09/2023,11248,IPS ERIC WILLIAMS HOUSE,5999,AMZNMKTPLACE AMAZON.CO,MISCELLANEOUS AND SPECIALTY RETAIL STORES,14.99
06/09/2023,11248,IPS ERIC WILLIAMS HOUSE,5499,WWW.JOHALDAIRIES.CO.UK,"MISC FOOD STORE-CONVENIENCE,MRKT,SPLTY,VENDNG MACS",349.37
06/09/2023,11507,CARE LEAVERS,5732,CURRYS ONLINE,ELECTRONIC SALES,339
06/09/2023,11687,RESIDENTIAL - BROAD PARK HOUSE,5411,CO-OP LATE SHOP,"GROCERY STORES, SUPERMARKETS",0.75
06/09/2023,11135,YOUTH OFFENDING SERVICE,4112,TRAINLINE,PASSENGER RAILWAYS,30.15
06/09/2023,11248,IPS ERIC WILLIAMS HOUSE,5411,ASDA GROCERIES ONLINE,"GROCERY STORES, SUPERMARKETS",97.57
06/09/2023,11687,RESIDENTIAL - BROAD PARK HOUSE,5499,VITABIOTICS.COM,"MISC FOOD STORE-CONVENIENCE,MRKT,SPLTY,VENDNG MACS",12.93
06/09/2023,11687,RESIDENTIAL - BROAD PARK HOUSE,5411,MALCOLMS STORES LIMITE,"GROCERY STORES, SUPERMARKETS",14.05
06/09/2023,11513,PROFESSIONAL SUPPORT SERVICE,5311,WWW.ARGOS.CO.UK,DEPARTMENT STORES,89.95
06/09/2023,11662,HOUSING AND HOMELESSNESS,5999,AMZNBUSINESS 1U5E09084,MISCELLANEOUS AND SPECIALTY RETAIL STORES,22.33
06/09/2023,11507,CARE LEAVERS,5311,WWW.ARGOS.CO.UK,DEPARTMENT STORES,103
06/09/2023,11687,RESIDENTIAL - BROAD PARK HOUSE,5499,VITABIOTICS.COM,"MISC FOOD STORE-CONVENIENCE,MRKT,SPLTY,VENDNG MACS",-12.93
06/09/2023,11248,IPS ERIC WILLIAMS HOUSE,5411,ASDA GROCERIES ONLINE,"GROCERY STORES, SUPERMARKETS",-6.6
06/09/2023,11687,RESIDENTIAL - BROAD PARK HOUSE,5411,ALDI STORES ATHERSTONE,"GROCERY STORES, SUPERMARKETS",244.3
06/09/2023,11507,CARE LEAVERS,5311,WWW.ARGOS.CO.UK,DEPARTMENT STORES,-3.95
06/09/2023,11507,CARE LEAVERS,4112,WWW.AVANTIWESTCOAST.CO,PASSENGER RAILWAYS,99.2
06/09/2023,11507,CARE LEAVERS,5712,IKEA LTD SHOP ONLINE,"EQUIP, FURNITURE, HOME FURNSHNGS STRS (EXCPT APPL)",849
06/09/2023,11687,RESIDENTIAL - BROAD PARK HOUSE,5655,ARSENAL DIRECT,"SPORTS APPAREL, RIDING APPAREL STORES",50
06/09/2023,11932,LAC THROUGHCARE TEAM,5812,TORTILLA COVENTRY,"EATING PLACES, RESTAURANTS",8
06/09/2023,11057,SFPC-FAMILY GROUP CONFERENCING,5411,SAINSBURYS S/MKTS,"GROCERY STORES, SUPERMARKETS",10.4
06/09/2023,10565,ROUGH SLEEPER AND RAPID HOUSING PATH,5311,WWW.ARGOS.CO.UK,DEPARTMENT STORES,205
06/09/2023,10900,LOCAL WELFARE PROVISION COVID-19,7399,CS  TESCO STORES GC,BUSINESS SERVICES-NOT ELSEWHERE CLASSIFIED,"1,805.00"
06/09/2023,10416,LAC PERMANENCY,4131,WEST MIDLANDS TRAV,BUS LINES,60
06/09/2023,11870,IPS LD WILFRED SPENCER CENTRE,5499,WWW.JOHALDAIRIES.CO.UK,"MISC FOOD STORE-CONVENIENCE,MRKT,SPLTY,VENDNG MACS",7.8
06/09/2023,11922,ICT USER SUPPORT,5999,AMZNMKTPLACE AMAZON.CO,MISCELLANEOUS AND SPECIALTY RETAIL STORES,12.35
06/09/2023,10541,COVENTRY EXTENDED LEARNING CENTRE,5411,ASDA GROCERIES ONLINE,"GROCERY STORES, SUPERMARKETS",80.56
06/09/2023,11687,RESIDENTIAL - BROAD PARK HOUSE,5411,MALCOLMS STORES LIMITE,"GROCERY STORES, SUPERMARKETS",2.19
06/09/2023,10676,HOUSING AND HOMELESSNESS,7399,BORG LOCKS UK LTD,BUSINESS SERVICES-NOT ELSEWHERE CLASSIFIED,476.4
06/09/2023,11248,IPS ERIC WILLIAMS HOUSE,5999,AMZNMKTPLACE,MISCELLANEOUS AND SPECIALTY RETAIL STORES,13.49
06/09/2023,11407,CHIEF EXECUTIVE,4112,WWW.AVANTIWESTCOAST.CO,PASSENGER RAILWAYS,46
06/09/2023,11507,CARE LEAVERS,7523,PAYBYPHONE RE HINCKLEY,AUTOMOBILE PARKING LOTS AND GARAGES,0.65
06/09/2023,11507,CARE LEAVERS,9399,HM PASSPORT OFFICE,GOVERNMENT SERVICES-NOT ELSEWHERE CLASSIFIED,64
06/09/2023,10225,HOUSING - B&B ACCOMMODATION,3533,IBIS COVENTRY SOUTH,HOTEL IBIS,553
06/09/2023,10541,COVENTRY EXTENDED LEARNING CENTRE,5411,ASDA GROCERIES ONLINE,"GROCERY STORES, SUPERMARKETS",-4.5
06/09/2023,11507,CARE LEAVERS,5719,LUFF SLEEP,MISCELLANEOUS HOUSE FURNISHING SPECIALTY SHOPS,62
06/09/2023,11662,HOUSING AND HOMELESSNESS,5999,AMZNBUSINESS 1U0E820M4,MISCELLANEOUS AND SPECIALTY RETAIL STORES,22.33
06/09/2023,11507,CARE LEAVERS,5814,SUBWAY 30093 COVENTRY,FAST FOOD RESTAURANTS,17.38
06/09/2023,11932,LAC THROUGHCARE TEAM,5994,LADY GODIVA NEWS L,NEWS DEALERS AND NEWSSTANDS,2.75
06/09/2023,11057,SFPC-FAMILY GROUP CONFERENCING,5411,SAINSBURYS S/MKTS,"GROCERY STORES, SUPERMARKETS",12.4
06/09/2023,11307,IPS MH THE POD,5411,TESCO STORES 2328,"GROCERY STORES, SUPERMARKETS",12.75
06/09/2023,10900,LOCAL WELFARE PROVISION COVID-19,7399,CS  TESCO STORES GC,BUSINESS SERVICES-NOT ELSEWHERE CLASSIFIED,"1,810.00"
06/09/2023,11381,PUBLIC HEALTH,4121,UBER    TRIP,LIMOUSINES AND TAXICABS,10.91
06/09/2023,11507,CARE LEAVERS,4121,UBER    TRIP,LIMOUSINES AND TAXICABS,11.93
06/09/2023,11746,RESIDENTIAL - GRAYSWOOD,5655,JD SPORTS FASHION PLC,"SPORTS APPAREL, RIDING APPAREL STORES",-115
06/09/2023,11248,IPS ERIC WILLIAMS HOUSE,5300,GOMPELS HEALTHCARE,WHOLESALE CLUBS,119.76
06/09/2023,10900,LOCAL WELFARE PROVISION COVID-19,7399,CS  TESCO STORES GC,BUSINESS SERVICES-NOT ELSEWHERE CLASSIFIED,"1,975.00"
06/09/2023,11381,PUBLIC HEALTH,4121,UBER    TRIP,LIMOUSINES AND TAXICABS,7.93
06/09/2023,10096,SPORTS DEVELOPMENT,5699,CLR WWW.SOCKSVILLAGE.,ACCESSORY AND APPAREL STORES-MISCELLANEOUS,33.6
06/09/2023,10416,LAC PERMANENCY,4112,TRAINLINE,PASSENGER RAILWAYS,77.13
06/09/2023,10416,LAC PERMANENCY,4131,WEST MIDLANDS TRAV,BUS LINES,60
06/09/2023,11057,SFPC-FAMILY GROUP CONFERENCING,5411,SKM CONVENIENCE STORE,"GROCERY STORES, SUPERMARKETS",5.13
06/09/2023,10962,OUTDOOR EDUCATION SERVICE,7999,GO APE,RECREATION SERVICES (NOT ELSEWHERE CLASSIFIED),378
06/09/2023,10653,STRATEGIC TRANSPORTATION,5211,WWW.SCREWFIX.COM,"BUILDING MATERIALS, LUMBER STORES",83.9
06/09/2023,10951,IPS HWC SHORT TERM TENANCIES,4900,E.ON NEXT,"UTLTS-ELCTRC, GAS, HEATING OIL, SANITARY, WATER",48.62
06/09/2023,11847,ICT & DIGITAL,7523,APCOA PARKING (UK) LTD,AUTOMOBILE PARKING LOTS AND GARAGES,3
06/09/2023,11154,HIGHWAYS: OVERHEAD,5211,WWW.SCREWFIX.COM,"BUILDING MATERIALS, LUMBER STORES",249.99
06/09/2023,10379,CHILDREN?S CRISIS INTERVENTION TEAM,5399,WILKO RETAIL LIMITED,MISCELLANEOUS GENERAL MERCHANDISE,6.4
06/09/2023,11870,IPS LD WILFRED SPENCER CENTRE,5411,TESCO STORES 2325,"GROCERY STORES, SUPERMARKETS",2.2
06/09/2023,11507,CARE LEAVERS,5814,COSTA COFFEE 43010820,FAST FOOD RESTAURANTS,13.9
06/09/2023,10653,STRATEGIC TRANSPORTATION,5399,B&M 017 - BEDWORTH,MISCELLANEOUS GENERAL MERCHANDISE,5
06/09/2023,10951,IPS HWC SHORT TERM TENANCIES,4900,E.ON NEXT,"UTLTS-ELCTRC, GAS, HEATING OIL, SANITARY, WATER",26.07
06/09/2023,10900,LOCAL WELFARE PROVISION COVID-19,5999,AMZNMKTPLACE,MISCELLANEOUS AND SPECIALTY RETAIL STORES,76.99
06/09/2023,11381,PUBLIC HEALTH,4121,UBER    TRIP,LIMOUSINES AND TAXICABS,10.99
06/09/2023,10084,SECTION17 PAYMENTS WEST,4112,TRAINLINE,PASSENGER RAILWAYS,104.28
06/09/2023,11507,CARE LEAVERS,5719,LUFF SLEEP,MISCELLANEOUS HOUSE FURNISHING SPECIALTY SHOPS,80
06/09/2023,11507,CARE LEAVERS,5814,JUST EAT,FAST FOOD RESTAURANTS,22.5
06/09/2023,10951,IPS HWC SHORT TERM TENANCIES,4900,E.ON NEXT,"UTLTS-ELCTRC, GAS, HEATING OIL, SANITARY, WATER",37.3
06/09/2023,10541,COVENTRY EXTENDED LEARNING CENTRE,9402,POST OFFICE COUNTER,POSTAL SERVICES-GOVERNMENT ONLY,13.45
06/09/2023,11507,CARE LEAVERS,5814,PYD SWEET SPOT,FAST FOOD RESTAURANTS,14
06/09/2023,11870,IPS LD WILFRED SPENCER CENTRE,5411,TESCO STORES 2325,"GROCERY STORES, SUPERMARKETS",5.1
06/09/2023,11307,IPS MH THE POD,5411,SAINSBURYS S MKTS,"GROCERY STORES, SUPERMARKETS",2.3
06/09/2023,11764,HOSPITAL EDUCATION & OUTREACH SERVICE,5999,AMZNMKTPLACE AMAZON.CO,MISCELLANEOUS AND SPECIALTY RETAIL STORES,3.31
06/09/2023,11859,BUILDING CONTROL,9399,LAND REGISTRY ECOM CCC,GOVERNMENT SERVICES-NOT ELSEWHERE CLASSIFIED,3
06/09/2023,11764,HOSPITAL EDUCATION & OUTREACH SERVICE,5999,AMZNMKTPLACE AMAZON.CO,MISCELLANEOUS AND SPECIALTY RETAIL STORES,113.94
06/09/2023,10541,COVENTRY EXTENDED LEARNING CENTRE,5999,AMZNMKTPLACE AMAZON.CO,MISCELLANEOUS AND SPECIALTY RETAIL STORES,-34.99
06/09/2023,11354,IPS DAY OPPS GILBERT RICHARDS CENTRE,5411,ASDA GROCERIES ONLINE,"GROCERY STORES, SUPERMARKETS",89.15
06/09/2023,10448,RESIDENTIAL - GRAVEL HILL,5813,SQ  THE OLD HALL HOTEL,"BAR,LOUNGE,DISCO,NIGHTCLUB,TAVERN-ALCOHOLIC DRINKS",7.9
06/09/2023,11136,EAST FAMILY HUB,5411,ASDA STORES 4602,"GROCERY STORES, SUPERMARKETS",8
06/09/2023,11995,IPS HWC HARRY CAPLAN,5499,WWW.JOHALDAIRIES.CO.UK,"MISC FOOD STORE-CONVENIENCE,MRKT,SPLTY,VENDNG MACS",8.47
06/09/2023,10145,IPS LD BRANDON WOOD FARM,5655,TOWER FARM SADDLERS,"SPORTS APPAREL, RIDING APPAREL STORES",35.98
06/09/2023,11197,WEST FAMILY HUB,5499,WWW.JOHALDAIRIES.CO.UK,"MISC FOOD STORE-CONVENIENCE,MRKT,SPLTY,VENDNG MACS",6.23
06/09/2023,11879,IPS LD MAURICE EDELMAN HOUSE,5499,WWW.JOHALDAIRIES.CO.UK,"MISC FOOD STORE-CONVENIENCE,MRKT,SPLTY,VENDNG MACS",68.38
06/09/2023,11507,CARE LEAVERS,5999,AMZNMKTPLACE,MISCELLANEOUS AND SPECIALTY RETAIL STORES,346.49
06/09/2023,11197,WEST FAMILY HUB,5411,FARMFOODS 641,"GROCERY STORES, SUPERMARKETS",6.5
06/09/2023,11072,ADULT EDUCATION ? WORK PLACE LEARNING,5399,B&M 526 - ANSTY ROAD,MISCELLANEOUS GENERAL MERCHANDISE,24
06/09/2023,11859,BUILDING CONTROL,9399,LAND REGISTRY ECOM CCC,GOVERNMENT SERVICES-NOT ELSEWHERE CLASSIFIED,3
06/09/2023,11894,ICT SYSTEMS,5734,WORKSHARE LIMITED,COMPUTER SOFTWARE STORES,198
06/09/2023,11879,IPS LD MAURICE EDELMAN HOUSE,5411,TESCO STORES 2328,"GROCERY STORES, SUPERMARKETS",161.7
06/09/2023,11764,HOSPITAL EDUCATION & OUTREACH SERVICE,5999,AMZNMKTPLACE,MISCELLANEOUS AND SPECIALTY RETAIL STORES,195.99
06/09/2023,11764,HOSPITAL EDUCATION & OUTREACH SERVICE,5999,AMZNMKTPLACE AMAZON.CO,MISCELLANEOUS AND SPECIALTY RETAIL STORES,44.41
06/09/2023,10526,ADULT ED AOL1/13 - CCLD/STLS & HEALTH & ,5999,AMZNBUSINESS 1U3OR2V74,MISCELLANEOUS AND SPECIALTY RETAIL STORES,33.98
06/09/2023,11354,IPS DAY OPPS GILBERT RICHARDS CENTRE,5499,WWW.JOHALDAIRIES.CO.UK,"MISC FOOD STORE-CONVENIENCE,MRKT,SPLTY,VENDNG MACS",8.7
06/09/2023,11764,HOSPITAL EDUCATION & OUTREACH SERVICE,5999,AMZNMKTPLACE AMAZON.CO,MISCELLANEOUS AND SPECIALTY RETAIL STORES,3.59
06/09/2023,10287,HOUSING ENFORCEMENT AND MANDATORY LICE,4112,TRAINLINE,PASSENGER RAILWAYS,85.59
06/09/2023,11027,CCTV & COMMUNITY SAFETY,8699,WWW.OFCOM.ORG.UK,"ORGANIZATIONS, MEMBERSHIP-NOT ELSEWHERE CLASSIFIED",50
06/09/2023,11870,IPS LD WILFRED SPENCER CENTRE,5499,WWW.JOHALDAIRIES.CO.UK,"MISC FOOD STORE-CONVENIENCE,MRKT,SPLTY,VENDNG MACS",22.59
06/09/2023,11057,SFPC-FAMILY GROUP CONFERENCING,5712,IKEA LTD SHOP ONLINE,"EQUIP, FURNITURE, HOME FURNSHNGS STRS (EXCPT APPL)",305
06/09/2023,11300,PEST CONTROL & ANIMAL WELFARE,5995,PETS AT HOME LTD,PET SHOPS - PET FOODS AND SUPPLIES,43.86
06/09/2023,11829,PARKING ENFORCEMENT,5065,RS COMPONENTS,ELECTRICAL PARTS AND EQUIPMENT,14.71
06/09/2023,10291,SECTION17 PAYMENTS CENTRAL,9399,COVENTRY CITY COUNCIL,GOVERNMENT SERVICES-NOT ELSEWHERE CLASSIFIED,457.79
06/09/2023,11166,SOUTH FAMILY HUB,5499,WWW.JOHALDAIRIES.CO.UK,"MISC FOOD STORE-CONVENIENCE,MRKT,SPLTY,VENDNG MACS",25
06/09/2023,11267,ICT NETWORK SERVICES,5999,AMZNMKTPLACE,MISCELLANEOUS AND SPECIALTY RETAIL STORES,177
06/09/2023,11267,ICT NETWORK SERVICES,5999,AMZNMKTPLACE,MISCELLANEOUS AND SPECIALTY RETAIL STORES,163.96
06/09/2023,10541,COVENTRY EXTENDED LEARNING CENTRE,5999,AMZNMKTPLACE AMAZON.CO,MISCELLANEOUS AND SPECIALTY RETAIL STORES,83.94
06/09/2023,11381,PUBLIC HEALTH,9399,DISCLOSURE AND BARRING,GOVERNMENT SERVICES-NOT ELSEWHERE CLASSIFIED,18
06/09/2023,10084,SECTION17 PAYMENTS WEST,5999,SASS - WINSFORD,MISCELLANEOUS AND SPECIALTY RETAIL STORES,59.47
06/09/2023,11507,CARE LEAVERS,4121,UBER  TRIP,LIMOUSINES AND TAXICABS,12.97
06/09/2023,11507,CARE LEAVERS,5499,BEST ONE EXPRESS ST AN,"MISC FOOD STORE-CONVENIENCE,MRKT,SPLTY,VENDNG MACS",11.24
06/09/2023,10653,STRATEGIC TRANSPORTATION,5311,WWW.ARGOS.CO.UK,DEPARTMENT STORES,65
06/09/2023,10951,IPS HWC SHORT TERM TENANCIES,4900,E.ON NEXT,"UTLTS-ELCTRC, GAS, HEATING OIL, SANITARY, WATER",65.43
06/09/2023,10541,COVENTRY EXTENDED LEARNING CENTRE,5999,AMZNMKTPLACE,MISCELLANEOUS AND SPECIALTY RETAIL STORES,29.99
06/09/2023,11870,IPS LD WILFRED SPENCER CENTRE,7278,COSTCO WHOLESALE #122,"BUYING/SHOPPING CLUBS, SERVICES",17.96
06/09/2023,11870,IPS LD WILFRED SPENCER CENTRE,7278,COSTCO WHOLESALE #122,"BUYING/SHOPPING CLUBS, SERVICES",4.99
06/09/2023,11507,CARE LEAVERS,5814,COSTA COFFEE 43010820,FAST FOOD RESTAURANTS,7.6
06/09/2023,11507,CARE LEAVERS,5311,WWW.ARGOS.CO.UK,DEPARTMENT STORES,-189.99
06/09/2023,11826,REPAIR & MAINTENANCE,7394,SPEEDY ASSET SERVICES,"EQUIPMENT RENTAL&LEASING SVS, FURNTURE/TOOL RENTAL",690
06/09/2023,11513,PROFESSIONAL SUPPORT SERVICE,5311,WWW.ARGOS.CO.UK,DEPARTMENT STORES,186.95
06/09/2023,11662,HOUSING AND HOMELESSNESS,5999,AMZNBUSINESS 1U14K1014,MISCELLANEOUS AND SPECIALTY RETAIL STORES,22.33
06/09/2023,10040,IPS HWC COPTHORNE,5499,WWW.JOHALDAIRIES.CO.UK,"MISC FOOD STORE-CONVENIENCE,MRKT,SPLTY,VENDNG MACS",12.26
07/09/2023,11928,COMMUNITY SUPPORT GRANTS,5999,AMZNMKTPLACE,MISCELLANEOUS AND SPECIALTY RETAIL STORES,11.99
07/09/2023,11248,IPS ERIC WILLIAMS HOUSE,5422,WWW.MIDLANDFOODS.CO.UK,"FREEZER, LOCKER MEAT PROVISIONERS",186.49
07/09/2023,11103,RESIDENTIAL - BROAD LANE,5999,SASS - WINSFORD,MISCELLANEOUS AND SPECIALTY RETAIL STORES,49.46
07/09/2023,11103,RESIDENTIAL - BROAD LANE,5399,TIKTOK SHOP SELLER,MISCELLANEOUS GENERAL MERCHANDISE,64.56
07/09/2023,11103,RESIDENTIAL - BROAD LANE,5651,CAT BALLOU ORIGINALS,FAMILY CLOTHING STORES,82.06
07/09/2023,10040,IPS HWC COPTHORNE,5811,BRAKES (STORED CARDS),CATERERS,171.54
07/09/2023,11507,CARE LEAVERS,5812,GREGGS PLC,"EATING PLACES, RESTAURANTS",16.25
07/09/2023,11451,TRANSFORMATION PROGRAMME OFFICE,5999,AMZNMKTPLACE,MISCELLANEOUS AND SPECIALTY RETAIL STORES,48.43
07/09/2023,10718,LAC EDUCATION SERVICE,9402,POST OFFICE COUNTER,POSTAL SERVICES-GOVERNMENT ONLY,11.25
07/09/2023,11103,RESIDENTIAL - BROAD LANE,5399,TIKTOK SHOP SELLER,MISCELLANEOUS GENERAL MERCHANDISE,44.16
07/09/2023,11870,IPS LD WILFRED SPENCER CENTRE,5999,AMZNMKTPLACE,MISCELLANEOUS AND SPECIALTY RETAIL STORES,35
07/09/2023,10040,IPS HWC COPTHORNE,5422,WWW.MIDLANDFOODS.CO.UK,"FREEZER, LOCKER MEAT PROVISIONERS",170.98
07/09/2023,11248,IPS ERIC WILLIAMS HOUSE,5422,WWW.MIDLANDFOODS.CO.UK,"FREEZER, LOCKER MEAT PROVISIONERS",83.32
07/09/2023,11764,HOSPITAL EDUCATION & OUTREACH SERVICE,5999,AMZNMKTPLACE AMAZON.CO,MISCELLANEOUS AND SPECIALTY RETAIL STORES,125.13
07/09/2023,11764,HOSPITAL EDUCATION & OUTREACH SERVICE,5999,AMZNMKTPLACE,MISCELLANEOUS AND SPECIALTY RETAIL STORES,26.44
07/09/2023,11764,HOSPITAL EDUCATION & OUTREACH SERVICE,5411,ASDA SUPERSTORE,"GROCERY STORES, SUPERMARKETS",30.85
07/09/2023,11928,COMMUNITY SUPPORT GRANTS,5999,AMZNMKTPLACE,MISCELLANEOUS AND SPECIALTY RETAIL STORES,71.48
07/09/2023,11928,COMMUNITY SUPPORT GRANTS,5999,AMZNMKTPLACE,MISCELLANEOUS AND SPECIALTY RETAIL STORES,18.99
07/09/2023,11928,COMMUNITY SUPPORT GRANTS,5999,AMZNMKTPLACE,MISCELLANEOUS AND SPECIALTY RETAIL STORES,19.44
07/09/2023,11928,COMMUNITY SUPPORT GRANTS,5999,AMZNMKTPLACE,MISCELLANEOUS AND SPECIALTY RETAIL STORES,13.74
07/09/2023,11928,COMMUNITY SUPPORT GRANTS,5999,AMZNMKTPLACE,MISCELLANEOUS AND SPECIALTY RETAIL STORES,39.99
07/09/2023,11248,IPS ERIC WILLIAMS HOUSE,5999,AMZNMKTPLACE AMAZON.CO,MISCELLANEOUS AND SPECIALTY RETAIL STORES,9.99
07/09/2023,11746,RESIDENTIAL - GRAYSWOOD,5999,AMZNMKTPLACE AMAZON.CO,MISCELLANEOUS AND SPECIALTY RETAIL STORES,12.2
07/09/2023,11746,RESIDENTIAL - GRAYSWOOD,5411,WM MORRISONS STORE,"GROCERY STORES, SUPERMARKETS",15.32
07/09/2023,11086,OUTDOOR EDUCATION CENTRE,5999,AMZNMKTPLACE,MISCELLANEOUS AND SPECIALTY RETAIL STORES,46.45
07/09/2023,11928,COMMUNITY SUPPORT GRANTS,5999,AMZNMKTPLACE,MISCELLANEOUS AND SPECIALTY RETAIL STORES,84.99
07/09/2023,10225,HOUSING - B&B ACCOMMODATION,3811,PREMIER INN,PREMIER INN,317
07/09/2023,10232,CHILDREN?S DISABILITY,5310,ARGOS LTD,DISCOUNT STORES,30
07/09/2023,10565,ROUGH SLEEPER AND RAPID HOUSING PATH,5399,B&M 470 - HS COVENTRY,MISCELLANEOUS GENERAL MERCHANDISE,20.27
07/09/2023,11928,COMMUNITY SUPPORT GRANTS,5999,AMZNMKTPLACE,MISCELLANEOUS AND SPECIALTY RETAIL STORES,16.94
07/09/2023,11928,COMMUNITY SUPPORT GRANTS,5999,AMZNMKTPLACE,MISCELLANEOUS AND SPECIALTY RETAIL STORES,29.89
07/09/2023,11928,COMMUNITY SUPPORT GRANTS,5999,AMZNMKTPLACE AMAZON.CO,MISCELLANEOUS AND SPECIALTY RETAIL STORES,-14.6
07/09/2023,10211,MIGRATION PROJECT B,5411,TESCO STORES 5779,"GROCERY STORES, SUPERMARKETS",0.9
07/09/2023,10416,LAC PERMANENCY,3811,PREMIER INN,PREMIER INN,188.99
07/09/2023,11746,RESIDENTIAL - GRAYSWOOD,5200,B & Q 1231,HOME SUPPLY WAREHOUSE STORES,4
07/09/2023,11687,RESIDENTIAL - BROAD PARK HOUSE,5411,CROSS KEYS,"GROCERY STORES, SUPERMARKETS",8.9
07/09/2023,11274,PUBLIC HEALTH STAFFING & OVERHEADS,7399,GLOBAL INSIGHT CONFERE,BUSINESS SERVICES-NOT ELSEWHERE CLASSIFIED,633.7
07/09/2023,10211,MIGRATION PROJECT B,5999,AMZNMKTPLACE,MISCELLANEOUS AND SPECIALTY RETAIL STORES,9.4
07/09/2023,11507,CARE LEAVERS,4131,WEST MIDLAND CARD,BUS LINES,2
07/09/2023,11135,YOUTH OFFENDING SERVICE,5814,MCDONALDS,FAST FOOD RESTAURANTS,13.02
07/09/2023,10225,HOUSING - B&B ACCOMMODATION,3811,PREMIER INN,PREMIER INN,584
07/09/2023,10232,CHILDREN?S DISABILITY,5310,ARGOS LTD,DISCOUNT STORES,5
07/09/2023,10211,MIGRATION PROJECT B,5411,DELIKATESY SMACZEK - 4,"GROCERY STORES, SUPERMARKETS",3.13
07/09/2023,11870,IPS LD WILFRED SPENCER CENTRE,5411,WM MORRISONS STORE,"GROCERY STORES, SUPERMARKETS",9
07/09/2023,10581,ERDF - COVENTRY & WARWICKSHIRE LOW C,4112,TRAINLINE,PASSENGER RAILWAYS,12.32
07/09/2023,11746,RESIDENTIAL - GRAYSWOOD,5311,WWW.ARGOS.CO.UK,DEPARTMENT STORES,72.95
07/09/2023,11507,CARE LEAVERS,4814,THE PHONE ZONE,TELECOM INCL PREPAID/RECURRING PHONE SVCS,25
07/09/2023,11764,HOSPITAL EDUCATION & OUTREACH SERVICE,5999,AMZNMKTPLACE AMAZON.CO,MISCELLANEOUS AND SPECIALTY RETAIL STORES,99.12
07/09/2023,11764,HOSPITAL EDUCATION & OUTREACH SERVICE,5399,B&M 468 - HS NUNEATON,MISCELLANEOUS GENERAL MERCHANDISE,18.05
07/09/2023,11859,BUILDING CONTROL,9399,LAND REGISTRY ECOM CCC,GOVERNMENT SERVICES-NOT ELSEWHERE CLASSIFIED,3
07/09/2023,11507,CARE LEAVERS,5814,COVENTRY ARENA SHOPPIN,FAST FOOD RESTAURANTS,15.05
07/09/2023,11984,IPS MAYMORN RESOURCE CENTRE,5411,TESCO STORES 2328,"GROCERY STORES, SUPERMARKETS",41.84
07/09/2023,11507,CARE LEAVERS,5311,WWW.ARGOS.CO.UK,DEPARTMENT STORES,-189
07/09/2023,10676,HOUSING AND HOMELESSNESS,5200,B & Q 1231,HOME SUPPLY WAREHOUSE STORES,48
07/09/2023,11248,IPS ERIC WILLIAMS HOUSE,5999,AMZNMKTPLACE AMAZON.CO,MISCELLANEOUS AND SPECIALTY RETAIL STORES,27.99
07/09/2023,11746,RESIDENTIAL - GRAYSWOOD,5251,WARMMEAD ELECTRICAL,HARDWARE STORES,5.98
07/09/2023,11764,HOSPITAL EDUCATION & OUTREACH SERVICE,5999,AMZNMKTPLACE AMAZON.CO,MISCELLANEOUS AND SPECIALTY RETAIL STORES,15.9
07/09/2023,11764,HOSPITAL EDUCATION & OUTREACH SERVICE,5999,AMZNMKTPLACE,MISCELLANEOUS AND SPECIALTY RETAIL STORES,22.47
07/09/2023,11859,BUILDING CONTROL,9399,LAND REGISTRY ECOM CCC,GOVERNMENT SERVICES-NOT ELSEWHERE CLASSIFIED,3
07/09/2023,10342,EDUCATION PSYCHOLOGISTS,5999,AMZNBUSINESS 1U2HW1H64,MISCELLANEOUS AND SPECIALTY RETAIL STORES,24.95
07/09/2023,11879,IPS LD MAURICE EDELMAN HOUSE,5811,BRAKES (STORED CARDS),CATERERS,126.27
07/09/2023,10411,IPS HWC QUINTON LODGE,5811,BRAKES (STORED CARDS),CATERERS,174.13
07/09/2023,11932,LAC THROUGHCARE TEAM,5999,MAX SPIELMANN LTD,MISCELLANEOUS AND SPECIALTY RETAIL STORES,12.99
07/09/2023,10118,LOOKED AFTER CHILDREN EDUCATION SERVIC,5812,WAR MEMORIAL PARK,"EATING PLACES, RESTAURANTS",20.7
07/09/2023,11764,HOSPITAL EDUCATION & OUTREACH SERVICE,5999,AMZNMKTPLACE AMAZON.CO,MISCELLANEOUS AND SPECIALTY RETAIL STORES,10.99
07/09/2023,11764,HOSPITAL EDUCATION & OUTREACH SERVICE,5999,AMZNMKTPLACE AMAZON.CO,MISCELLANEOUS AND SPECIALTY RETAIL STORES,105
07/09/2023,10448,RESIDENTIAL - GRAVEL HILL,5999,AMZNMKTPLACE AMAZON.CO,MISCELLANEOUS AND SPECIALTY RETAIL STORES,22.22
07/09/2023,11879,IPS LD MAURICE EDELMAN HOUSE,5422,WWW.MIDLANDFOODS.CO.UK,"FREEZER, LOCKER MEAT PROVISIONERS",75.47
07/09/2023,11879,IPS LD MAURICE EDELMAN HOUSE,5811,BRAKES (STORED CARDS),CATERERS,-11.8
07/09/2023,11704,COVENTRY MUSIC,5818,APPLE.COM/BILL,DIGITAL GOODS MULTI CATEGORY,2.99
07/09/2023,10211,MIGRATION PROJECT B,5310,POUNDLAND LTD - 1282,DISCOUNT STORES,5.5
07/09/2023,11507,CARE LEAVERS,5999,AMZNMKTPLACE AMAZON.CO,MISCELLANEOUS AND SPECIALTY RETAIL STORES,29.98
07/09/2023,11834,MEMBERS ALLOWANCES,4112,TRAINLINE,PASSENGER RAILWAYS,63.78
07/09/2023,11932,LAC THROUGHCARE TEAM,9399,COVENTRY CITY COUNCIL,GOVERNMENT SERVICES-NOT ELSEWHERE CLASSIFIED,11
07/09/2023,11842,"OCCUPATIONAL HEALTH, COUNSELLING & SUPPO",5046,FIRSTAID4LESS,"COMMERCIAL EQUIPMENT, NOT ELSEWHERE CLASSIFIED",59.7
07/09/2023,11764,HOSPITAL EDUCATION & OUTREACH SERVICE,5999,AMZNMKTPLACE AMAZON.CO,MISCELLANEOUS AND SPECIALTY RETAIL STORES,2.79
07/09/2023,11764,HOSPITAL EDUCATION & OUTREACH SERVICE,5411,SKM CONVENIENCE STORE,"GROCERY STORES, SUPERMARKETS",5.98
07/09/2023,10291,SECTION17 PAYMENTS CENTRAL,5021,ONLINE ERGONOMICS LTD,OFFICE AND COMMERCIAL FURNITURE,-254.76
07/09/2023,10448,RESIDENTIAL - GRAVEL HILL,7999,THEWAVECOVENTRY.COM 87,RECREATION SERVICES (NOT ELSEWHERE CLASSIFIED),14
07/09/2023,11995,IPS HWC HARRY CAPLAN,5422,WWW.MIDLANDFOODS.CO.UK,"FREEZER, LOCKER MEAT PROVISIONERS",-2
07/09/2023,11507,CARE LEAVERS,7523,PAYBYPHONE RE HINCKLEY,AUTOMOBILE PARKING LOTS AND GARAGES,0.65
07/09/2023,10488,IPS LD JENNER8,4111,WWW.WMCA.ORG.UK,"TRANSPRTN-SUBRBN & LOCAL COMTR PSNGR, INCL FERRIES",10
07/09/2023,11921,COMMISSIONING & POLICY - CHILDREN?S,4112,WWW.AVANTIWESTCOAST.CO,PASSENGER RAILWAYS,91.8
07/09/2023,11932,LAC THROUGHCARE TEAM,9399,COVENTRY CITY COUNCIL,GOVERNMENT SERVICES-NOT ELSEWHERE CLASSIFIED,11
07/09/2023,10084,SECTION17 PAYMENTS WEST,4722,BKG HOTEL AT BOOKING.C,TRAVEL AGENCIES AND TOUR OPERATORS,136
07/09/2023,11764,HOSPITAL EDUCATION & OUTREACH SERVICE,5999,AMZNMKTPLACE AMAZON.CO,MISCELLANEOUS AND SPECIALTY RETAIL STORES,17.97
07/09/2023,11507,CARE LEAVERS,5812,GREGGS PLC,"EATING PLACES, RESTAURANTS",9.4
07/09/2023,11879,IPS LD MAURICE EDELMAN HOUSE,5422,WWW.MIDLANDFOODS.CO.UK,"FREEZER, LOCKER MEAT PROVISIONERS",53.91
07/09/2023,10507,PARK RANGERS,5200,B & Q 1231,HOME SUPPLY WAREHOUSE STORES,30
07/09/2023,11197,WEST FAMILY HUB,5968,AMAZON PRIME 1U0YR35M4,DIRECT MARKETING-CONTINUITY/SUBSCRIPTION MERCHANTS,8.99
07/09/2023,11381,PUBLIC HEALTH,9399,DISCLOSURE AND BARRING,GOVERNMENT SERVICES-NOT ELSEWHERE CLASSIFIED,18
07/09/2023,11277,FLEET SERVICES,5511,DRIVE NUNEATON,"AUTO & TRUCK DLRS-SALES,SVC, REPRS,PRTS, & LEASING",524.33
07/09/2023,10663,BUSINESS SUSTAIN EXTERNAL CONSULTANCY ,5499,WELCOME BREAK WHS,"MISC FOOD STORE-CONVENIENCE,MRKT,SPLTY,VENDNG MACS",7.15
07/09/2023,11507,CARE LEAVERS,5311,WWW.ARGOS.CO.UK,DEPARTMENT STORES,-3.95
07/09/2023,11507,CARE LEAVERS,5812,FRANZOS COVENTRY,"EATING PLACES, RESTAURANTS",26.4
07/09/2023,11507,CARE LEAVERS,7523,PAYBYPHONE RE COVENTRY,AUTOMOBILE PARKING LOTS AND GARAGES,2.15
07/09/2023,11197,WEST FAMILY HUB,5732,BUY IT DIRECT,ELECTRONIC SALES,611.96
07/09/2023,11879,IPS LD MAURICE EDELMAN HOUSE,5811,BRAKES (STORED CARDS),CATERERS,194.45
07/09/2023,10416,LAC PERMANENCY,5310,THE WORKS,DISCOUNT STORES,12
07/09/2023,11260,EQUALITIES & COMMUNITIES,4112,WWW.AVANTIWESTCOAST.CO,PASSENGER RAILWAYS,170.4
07/09/2023,11307,IPS MH THE POD,5411,SAINSBURYS S MKTS,"GROCERY STORES, SUPERMARKETS",2.35
07/09/2023,11803,MEMBERS PICK AND MIX,5999,AMZNMKTPLACE,MISCELLANEOUS AND SPECIALTY RETAIL STORES,3.25
07/09/2023,11932,LAC THROUGHCARE TEAM,5812,NANDOS.CO.UK,"EATING PLACES, RESTAURANTS",35.9
07/09/2023,11507,CARE LEAVERS,5651,PRIMARK 670 GATESHEAD,FAMILY CLOTHING STORES,58
07/09/2023,11826,REPAIR & MAINTENANCE,5099,PAYPAL  SCREWFIX,"DURABLE GOODS, NOT ELSEWHERE CLASSIFIED","1,023.97"
07/09/2023,10541,COVENTRY EXTENDED LEARNING CENTRE,5411,ASDA GROCERIES ONLINE,"GROCERY STORES, SUPERMARKETS",81.55
07/09/2023,11995,IPS HWC HARRY CAPLAN,5422,WWW.MIDLANDFOODS.CO.UK,"FREEZER, LOCKER MEAT PROVISIONERS",66.32
07/09/2023,10416,LAC PERMANENCY,4112,TRAINLINE,PASSENGER RAILWAYS,71.63
07/09/2023,11507,CARE LEAVERS,5999,AMZNMKTPLACE AMAZON.CO,MISCELLANEOUS AND SPECIALTY RETAIL STORES,27.53
07/09/2023,11834,MEMBERS ALLOWANCES,4112,TRAINLINE,PASSENGER RAILWAYS,119.01
07/09/2023,11507,CARE LEAVERS,5812,NANDOS (LOUGHBOROUGH),"EATING PLACES, RESTAURANTS",16.2
07/09/2023,11507,CARE LEAVERS,5411,MARKS&SPENCER PLC SF,"GROCERY STORES, SUPERMARKETS",18.35
07/09/2023,11826,REPAIR & MAINTENANCE,5331,PAYPAL  ARGOSDIRECT,VARIETY STORES,30
07/09/2023,11157,IPS HWC ELSIE JONES,5811,BRAKES (STORED CARDS),CATERERS,72.4
07/09/2023,10951,IPS HWC SHORT TERM TENANCIES,4900,WWW.OVOENERGY.COM,"UTLTS-ELCTRC, GAS, HEATING OIL, SANITARY, WATER",44.52
07/09/2023,11995,IPS HWC HARRY CAPLAN,5422,WWW.MIDLANDFOODS.CO.UK,"FREEZER, LOCKER MEAT PROVISIONERS",78.59
07/09/2023,11507,CARE LEAVERS,5311,WWW.ARGOS.CO.UK,DEPARTMENT STORES,295.95
07/09/2023,11507,CARE LEAVERS,4784,TFL BUSINESS BOPS WEB,"BRIDGE AND ROAD FEES, TOLLS",17.5
07/09/2023,11157,IPS HWC ELSIE JONES,5811,BRAKES (STORED CARDS),CATERERS,348.96
07/09/2023,11001,BUSINESS INVESTMENT ? INWARD INVESTME,5814,BRITISH EVENT CATERING,FAST FOOD RESTAURANTS,8
07/09/2023,11507,CARE LEAVERS,7399,WWW.WESTNORTHANTS.GOV.,BUSINESS SERVICES-NOT ELSEWHERE CLASSIFIED,46.86
07/09/2023,11507,CARE LEAVERS,3504,HILTON,HILTON,30
07/09/2023,11932,LAC THROUGHCARE TEAM,5812,MCDONALDS   931,"EATING PLACES, RESTAURANTS",2.48
07/09/2023,11129,INTERNAL FOSTERING FEES,5331,PAYPAL  ARGOSDIRECT,VARIETY STORES,280.2
07/09/2023,10653,STRATEGIC TRANSPORTATION,5999,AMZNMKTPLACE,MISCELLANEOUS AND SPECIALTY RETAIL STORES,235.25
07/09/2023,11248,IPS ERIC WILLIAMS HOUSE,5811,BRAKES (STORED CARDS),CATERERS,626.45
07/09/2023,10565,ROUGH SLEEPER AND RAPID HOUSING PATH,5310,POUNDLAND LTD - 2243,DISCOUNT STORES,37.6
07/09/2023,11928,COMMUNITY SUPPORT GRANTS,5999,AMZNMKTPLACE,MISCELLANEOUS AND SPECIALTY RETAIL STORES,48.48
07/09/2023,11507,CARE LEAVERS,5814,MCDONALDS,FAST FOOD RESTAURANTS,5.29
07/09/2023,11129,INTERNAL FOSTERING FEES,5999,AMZNMKTPLACE,MISCELLANEOUS AND SPECIALTY RETAIL STORES,28.89
07/09/2023,11129,INTERNAL FOSTERING FEES,5331,PAYPAL  ARGOSDIRECT,VARIETY STORES,150
07/09/2023,11001,BUSINESS INVESTMENT ? INWARD INVESTME,5814,TOMS COFFEE,FAST FOOD RESTAURANTS,3.5
07/09/2023,11928,COMMUNITY SUPPORT GRANTS,5999,AMZNMKTPLACE,MISCELLANEOUS AND SPECIALTY RETAIL STORES,23.87
07/09/2023,10565,ROUGH SLEEPER AND RAPID HOUSING PATH,5691,MATALAN,MEN'S AND WOMEN'S CLOTHING STORES,16.5
07/09/2023,11928,COMMUNITY SUPPORT GRANTS,5999,AMZNMKTPLACE,MISCELLANEOUS AND SPECIALTY RETAIL STORES,59.75
07/09/2023,11507,CARE LEAVERS,5999,AMZNMKTPLACE AMAZON.CO,MISCELLANEOUS AND SPECIALTY RETAIL STORES,28.89
07/09/2023,11826,REPAIR & MAINTENANCE,5200,PAYPAL  BQLIMITED,HOME SUPPLY WAREHOUSE STORES,72
07/09/2023,10951,IPS HWC SHORT TERM TENANCIES,4900,WWW.OVOENERGY.COM,"UTLTS-ELCTRC, GAS, HEATING OIL, SANITARY, WATER",44.45
07/09/2023,11928,COMMUNITY SUPPORT GRANTS,5999,AMZNMKTPLACE,MISCELLANEOUS AND SPECIALTY RETAIL STORES,48.48
07/09/2023,11928,COMMUNITY SUPPORT GRANTS,5999,AMZNMKTPLACE,MISCELLANEOUS AND SPECIALTY RETAIL STORES,39.99
07/09/2023,10565,ROUGH SLEEPER AND RAPID HOUSING PATH,5311,WWW.ARGOS.CO.UK,DEPARTMENT STORES,37.5
07/09/2023,10019,CUSTOMER & BUSINESS SERVICES,5999,AMZNMKTPLACE,MISCELLANEOUS AND SPECIALTY RETAIL STORES,26.99
08/09/2023,11995,IPS HWC HARRY CAPLAN,5811,ARTHURBRETT.CO.UK,CATERERS,36.16
08/09/2023,11507,CARE LEAVERS,9399,WOLVERHAMPTON CITY COU,GOVERNMENT SERVICES-NOT ELSEWHERE CLASSIFIED,53
08/09/2023,11157,IPS HWC ELSIE JONES,5811,ARTHURBRETT.CO.UK,CATERERS,68.6
08/09/2023,11928,COMMUNITY SUPPORT GRANTS,5999,AMZNMKTPLACE AMAZON.CO,MISCELLANEOUS AND SPECIALTY RETAIL STORES,48.48
08/09/2023,11282,POST AND FASTPRINT,5999,AMZNMKTPLACE,MISCELLANEOUS AND SPECIALTY RETAIL STORES,18.98
08/09/2023,11248,IPS ERIC WILLIAMS HOUSE,5300,GOMPELS HEALTHCARE,WHOLESALE CLUBS,180.55
08/09/2023,11928,COMMUNITY SUPPORT GRANTS,5999,AMZNMKTPLACE,MISCELLANEOUS AND SPECIALTY RETAIL STORES,6.95
08/09/2023,10225,HOUSING - B&B ACCOMMODATION,3615,TRAVELODG TRAVELODGE G,TRAVELODGE,624.16
08/09/2023,10718,LAC EDUCATION SERVICE,5812,MCDONALDS   539,"EATING PLACES, RESTAURANTS",8.69
08/09/2023,11027,CCTV & COMMUNITY SAFETY,5251,TOOLSTATION UK,HARDWARE STORES,102.9
08/09/2023,11307,IPS MH THE POD,5811,BRAKES (STORED CARDS),CATERERS,435.56
08/09/2023,11381,PUBLIC HEALTH,4121,UBER    TRIP,LIMOUSINES AND TAXICABS,6.97
08/09/2023,11507,CARE LEAVERS,9399,WWW.WMCA.CO.UK,GOVERNMENT SERVICES-NOT ELSEWHERE CLASSIFIED,30
08/09/2023,10989,NOISE ENFORCEMENT,7542,IMO CAR WASH COVENTRY,CAR WASHES,6.5
08/09/2023,11486,WASTE DISPOSAL,7523,APCOA PARKING (UK) LTD,AUTOMOBILE PARKING LOTS AND GARAGES,2
08/09/2023,11253,HEALTH & SAFETY,5085,WWW.ARCO.CO.UK,INDUSTRIAL SUPPLIES NOT ELSEWHERE CLASSIFIED,86.76
08/09/2023,11928,COMMUNITY SUPPORT GRANTS,5999,AMZNMKTPLACE,MISCELLANEOUS AND SPECIALTY RETAIL STORES,41.83
08/09/2023,11928,COMMUNITY SUPPORT GRANTS,5999,AMZNMKTPLACE,MISCELLANEOUS AND SPECIALTY RETAIL STORES,229.98
08/09/2023,10469,RESIDENTIAL - JOBS LANE,5211,WWW.SCREWFIX.COM,"BUILDING MATERIALS, LUMBER STORES",10.39
08/09/2023,11954,OCCUPIER SUPPORT,7392,KEY OSTAS LTD,"CONSULTING, MANAGEMENT, AND PUBLIC RELATIONS SVCS",-216
08/09/2023,10300,INTERNAL FOSTERING TEAM,3245,EASYJET00 000K623GR1,EASYJET,119.96
08/09/2023,11507,CARE LEAVERS,5814,MCDONALDS 1686,FAST FOOD RESTAURANTS,11.28
08/09/2023,10718,LAC EDUCATION SERVICE,5814,STARBUCKS,FAST FOOD RESTAURANTS,7.1
08/09/2023,11255,ADULT ED ADMIN & MANAGEMENT,5999,AMZNMKTPLACE,MISCELLANEOUS AND SPECIALTY RETAIL STORES,24.99
08/09/2023,11764,HOSPITAL EDUCATION & OUTREACH SERVICE,2741,CGP BOOKS,MISCELLANEOUS PUBLISHING AND PRINTING,51.83
08/09/2023,11507,CARE LEAVERS,5814,MCDONALDS,FAST FOOD RESTAURANTS,11.82
08/09/2023,11001,BUSINESS INVESTMENT ? INWARD INVESTME,4121,PLATINUM CARS,LIMOUSINES AND TAXICABS,550
08/09/2023,10876,"SEN - OUTREACH, CASEWORK & SUPPORTED",7011,THE GRESHAM APARTHOTEL,"LODGING-HOTELS,MOTELS,RESORTS-NOT CLASSIFIED",402
08/09/2023,11640,CPR5666 COMMERCIAL PROPERTY ,5999,AMZNMKTPLACE,MISCELLANEOUS AND SPECIALTY RETAIL STORES,24.95
08/09/2023,10670,ADULT ED STAFF DEVELOPMENT,8299,AELP.ORG.UK,SCHOOLS & EDUCATIONAL SVC-NOT ELSEWHERE CLASSIFIED,58.8
08/09/2023,11928,COMMUNITY SUPPORT GRANTS,5999,AMZNMKTPLACE AMAZON.CO,MISCELLANEOUS AND SPECIALTY RETAIL STORES,7.94
08/09/2023,10565,ROUGH SLEEPER AND RAPID HOUSING PATH,5411,TESCO STORES 4843,"GROCERY STORES, SUPERMARKETS",13.4
08/09/2023,10541,COVENTRY EXTENDED LEARNING CENTRE,8299,EVOLVE ADVICE LTD,SCHOOLS & EDUCATIONAL SVC-NOT ELSEWHERE CLASSIFIED,180
08/09/2023,10383,IPS HWC KNIGHTLOW,5811,ARTHURBRETT.CO.UK,CATERERS,46.02
08/09/2023,11486,WASTE DISPOSAL,7523,APCOA PARKING (UK) LTD,AUTOMOBILE PARKING LOTS AND GARAGES,2
08/09/2023,11248,IPS ERIC WILLIAMS HOUSE,5912,LLOYDS PHARMACY,"DRUG STORES, PHARMACIES",2.94
08/09/2023,11928,COMMUNITY SUPPORT GRANTS,5999,AMZNMKTPLACE,MISCELLANEOUS AND SPECIALTY RETAIL STORES,14.99
08/09/2023,11928,COMMUNITY SUPPORT GRANTS,5999,AMZNMKTPLACE AMAZON.CO,MISCELLANEOUS AND SPECIALTY RETAIL STORES,59.75
08/09/2023,11282,POST AND FASTPRINT,5044,DUPLO INTERNATIONAL LI,OFFICE PHOTOGRAPHIC PHOTOCOPY & MICROFILM EQUIPMT.,187.44
08/09/2023,10469,RESIDENTIAL - JOBS LANE,5411,SAINSBURYS S/MKTS,"GROCERY STORES, SUPERMARKETS",55.23
08/09/2023,11403,IPS HWC COTTAGE FARM,5811,ARTHURBRETT.CO.UK,CATERERS,47.44
08/09/2023,10040,IPS HWC COPTHORNE,5811,ARTHURBRETT.CO.UK,CATERERS,36.54
08/09/2023,11103,RESIDENTIAL - BROAD LANE,5941,JD SPORTS PLC,SPORTING GOODS STORES,40
08/09/2023,11870,IPS LD WILFRED SPENCER CENTRE,5300,GOMPELS HEALTHCARE,WHOLESALE CLUBS,188.74
08/09/2023,10378,CHILDREN?S SERVICES MANAGEMENT TEAM,7999,ZETTLE_ ESCAPE REALITY,RECREATION SERVICES (NOT ELSEWHERE CLASSIFIED),504
08/09/2023,10541,COVENTRY EXTENDED LEARNING CENTRE,5942,SP TALK FOR WRITING,BOOK STORES,32.99
08/09/2023,11248,IPS ERIC WILLIAMS HOUSE,5811,ARTHURBRETT.CO.UK,CATERERS,103
08/09/2023,11381,PUBLIC HEALTH,4121,UBER  TRIP,LIMOUSINES AND TAXICABS,6.94
08/09/2023,11865,PUBLIC HEALTH - MIGRATION,5411,ONE STOP STORES,"GROCERY STORES, SUPERMARKETS",6
08/09/2023,11928,COMMUNITY SUPPORT GRANTS,5999,AMZNMKTPLACE,MISCELLANEOUS AND SPECIALTY RETAIL STORES,18.99
08/09/2023,11928,COMMUNITY SUPPORT GRANTS,5999,AMZNMKTPLACE AMAZON.CO,MISCELLANEOUS AND SPECIALTY RETAIL STORES,13.74
08/09/2023,11928,COMMUNITY SUPPORT GRANTS,5999,AMZNMKTPLACE AMAZON.CO,MISCELLANEOUS AND SPECIALTY RETAIL STORES,11
08/09/2023,10469,RESIDENTIAL - JOBS LANE,5211,WWW.SCREWFIX.COM,"BUILDING MATERIALS, LUMBER STORES",11.99
08/09/2023,11984,IPS MAYMORN RESOURCE CENTRE,5411,BOOKER LTD - 38535674,"GROCERY STORES, SUPERMARKETS",92.79
08/09/2023,11103,RESIDENTIAL - BROAD LANE,5651,PRIMARK - COVENTRY,FAMILY CLOTHING STORES,14
08/09/2023,10378,CHILDREN?S SERVICES MANAGEMENT TEAM,7999,ZETTLE_ ESCAPE REALITY,RECREATION SERVICES (NOT ELSEWHERE CLASSIFIED),504
08/09/2023,11995,IPS HWC HARRY CAPLAN,5811,ARTHURBRETT.CO.UK,CATERERS,46.52
08/09/2023,11879,IPS LD MAURICE EDELMAN HOUSE,5811,ARTHURBRETT.CO.UK,CATERERS,8.4
08/09/2023,11879,IPS LD MAURICE EDELMAN HOUSE,5811,ARTHURBRETT.CO.UK,CATERERS,6.85
08/09/2023,10411,IPS HWC QUINTON LODGE,5811,ARTHURBRETT.CO.UK,CATERERS,66.09
08/09/2023,11921,COMMISSIONING & POLICY - CHILDREN?S,4112,WWW.AVANTIWESTCOAST.CO,PASSENGER RAILWAYS,14.8
08/09/2023,11764,HOSPITAL EDUCATION & OUTREACH SERVICE,5947,CARD FACTORY,"GIFT, CARD, NOVELTY AND SOUVENIR SHOPS",7.93
08/09/2023,11354,IPS DAY OPPS GILBERT RICHARDS CENTRE,5811,BRAKES (STORED CARDS),CATERERS,586.46
08/09/2023,10159,MULTI LINGUAL ASSISTANCE TRADING ACCOUNT,4121,CENTRAL TAXIS WEST MID,LIMOUSINES AND TAXICABS,16
08/09/2023,11170,BEHAVIOUR SUPPORT - PRIMARY CENTRES,5411,TESCO STORES 2328,"GROCERY STORES, SUPERMARKETS",153.88
08/09/2023,11086,OUTDOOR EDUCATION CENTRE,5999,AMZNMKTPLACE,MISCELLANEOUS AND SPECIALTY RETAIL STORES,97.98
08/09/2023,11103,RESIDENTIAL - BROAD LANE,7278,COSTCO WHOLESALE #122,"BUYING/SHOPPING CLUBS, SERVICES",23.98
08/09/2023,11166,SOUTH FAMILY HUB,5411,TESCO STORES 2335,"GROCERY STORES, SUPERMARKETS",14.53
08/09/2023,11248,IPS ERIC WILLIAMS HOUSE,5811,ARTHURBRETT.CO.UK,CATERERS,73.53
08/09/2023,11307,IPS MH THE POD,5411,SAINSBURYS S MKTS,"GROCERY STORES, SUPERMARKETS",5.5
08/09/2023,10869,AIR QUALITY EARLY MEASURES,5211,WWW.SCREWFIX.COM,"BUILDING MATERIALS, LUMBER STORES",85.96
08/09/2023,11928,COMMUNITY SUPPORT GRANTS,5999,AMZNMKTPLACE AMAZON.CO,MISCELLANEOUS AND SPECIALTY RETAIL STORES,41.83
08/09/2023,11928,COMMUNITY SUPPORT GRANTS,5999,AMZNMKTPLACE,MISCELLANEOUS AND SPECIALTY RETAIL STORES,41.83
08/09/2023,11507,CARE LEAVERS,5411,ASDA GROCERIES ONLINE,"GROCERY STORES, SUPERMARKETS",28.05
08/09/2023,11826,REPAIR & MAINTENANCE,5099,PAYPAL  SCREWFIX,"DURABLE GOODS, NOT ELSEWHERE CLASSIFIED",95.44
08/09/2023,11746,RESIDENTIAL - GRAYSWOOD,5411,ALDI 13 772,"GROCERY STORES, SUPERMARKETS",162.32
08/09/2023,11507,CARE LEAVERS,5970,HOBBYCRAFT,"ARTIST SUPPLY STORES, CRAFT SHOPS",10.6
08/09/2023,11507,CARE LEAVERS,5311,WWW.ARGOS.CO.UK,DEPARTMENT STORES,228.95
08/09/2023,11507,CARE LEAVERS,9399,DISCLOSURE & BARRING,GOVERNMENT SERVICES-NOT ELSEWHERE CLASSIFIED,13
08/09/2023,11507,CARE LEAVERS,9399,WWW.WMCA.CO.UK,GOVERNMENT SERVICES-NOT ELSEWHERE CLASSIFIED,30
08/09/2023,11507,CARE LEAVERS,5994,WH SMITH TAMWORTH VENT,NEWS DEALERS AND NEWSSTANDS,22.44
08/09/2023,10653,STRATEGIC TRANSPORTATION,7997,COVENTRY HEARSALL GOLF,"CLUBS-CNTRY,MBRSHIP(ATHLET,REC,SPRTS,PRIVATE GOLF",150
08/09/2023,11830,HELP & PROTECTION,5812,MCDONALDS   931,"EATING PLACES, RESTAURANTS",12.99
08/09/2023,10541,COVENTRY EXTENDED LEARNING CENTRE,5411,ASDA GROCERIES ONLINE,"GROCERY STORES, SUPERMARKETS",-10
08/09/2023,10291,SECTION17 PAYMENTS CENTRAL,4131,WEST MIDLANDS TRAV,BUS LINES,30
08/09/2023,11307,IPS MH THE POD,5411,SAINSBURYS S MKTS,"GROCERY STORES, SUPERMARKETS",1.3
08/09/2023,10291,SECTION17 PAYMENTS CENTRAL,4131,WEST MIDLANDS TRAV,BUS LINES,30
08/09/2023,10251,IPS LD PILS OPERATIONAL,5300,GOMPELS HEALTHCARE,WHOLESALE CLUBS,198.58
08/09/2023,10541,COVENTRY EXTENDED LEARNING CENTRE,5411,ASDA GROCERIES ONLINE,"GROCERY STORES, SUPERMARKETS",42.95
08/09/2023,10291,SECTION17 PAYMENTS CENTRAL,4131,WEST MIDLANDS TRAV,BUS LINES,30
08/09/2023,11507,CARE LEAVERS,5947,CARD FACTORY,"GIFT, CARD, NOVELTY AND SOUVENIR SHOPS",0.99
08/09/2023,10469,RESIDENTIAL - JOBS LANE,5999,AMZNMKTPLACE,MISCELLANEOUS AND SPECIALTY RETAIL STORES,8.22
08/09/2023,10663,BUSINESS SUSTAIN EXTERNAL CONSULTANCY ,5411,SAINSBURYS S/MKTS,"GROCERY STORES, SUPERMARKETS",5.35
08/09/2023,11826,REPAIR & MAINTENANCE,5099,PAYPAL  SCREWFIX,"DURABLE GOODS, NOT ELSEWHERE CLASSIFIED",39.99
08/09/2023,11687,RESIDENTIAL - BROAD PARK HOUSE,5411,ASDA STORES 4602,"GROCERY STORES, SUPERMARKETS",60.3
08/09/2023,10416,LAC PERMANENCY,9399,HM PASSPORT OFFICE,GOVERNMENT SERVICES-NOT ELSEWHERE CLASSIFIED,58.5
08/09/2023,10291,SECTION17 PAYMENTS CENTRAL,4131,WEST MIDLANDS TRAV,BUS LINES,30
08/09/2023,11507,CARE LEAVERS,5411,ASDA GROCERIES ONLINE,"GROCERY STORES, SUPERMARKETS",-1.92
08/09/2023,11507,CARE LEAVERS,5814,SUBWAY 30093 COVENTRY,FAST FOOD RESTAURANTS,7.89
08/09/2023,12106,ASYLUM DISPERSAL SCHEME,5411,SAINSBURYS S/MKTS,"GROCERY STORES, SUPERMARKETS",12.8
08/09/2023,10300,INTERNAL FOSTERING TEAM,5311,ONE4ALL,DEPARTMENT STORES,50.99
08/09/2023,11507,CARE LEAVERS,5814,KFC - CROSS CHEAPING,FAST FOOD RESTAURANTS,39.98
08/09/2023,11826,REPAIR & MAINTENANCE,5099,PAYPAL  SCREWFIX,"DURABLE GOODS, NOT ELSEWHERE CLASSIFIED",45.18
08/09/2023,11364,MULTI AGENCY SAFEGUARDING HUB (MASH),5999,AMZ EVE IT,MISCELLANEOUS AND SPECIALTY RETAIL STORES,-92.5
08/09/2023,10383,IPS HWC KNIGHTLOW,5811,BRAKES (STORED CARDS),CATERERS,244.29
08/09/2023,11771,STREETPRIDE SOUTH,5999,AMZNMKTPLACE,MISCELLANEOUS AND SPECIALTY RETAIL STORES,89.97
08/09/2023,11879,IPS LD MAURICE EDELMAN HOUSE,5811,ARTHURBRETT.CO.UK,CATERERS,3.8
08/09/2023,11879,IPS LD MAURICE EDELMAN HOUSE,5811,ARTHURBRETT.CO.UK,CATERERS,76.99
08/09/2023,11879,IPS LD MAURICE EDELMAN HOUSE,5811,ARTHURBRETT.CO.UK,CATERERS,64.91
08/09/2023,10411,IPS HWC QUINTON LODGE,5811,ARTHURBRETT.CO.UK,CATERERS,21.46
08/09/2023,10145,IPS LD BRANDON WOOD FARM,5719,THE RANGE,MISCELLANEOUS HOUSE FURNISHING SPECIALTY SHOPS,9.98
08/09/2023,11248,IPS ERIC WILLIAMS HOUSE,5811,ARTHURBRETT.CO.UK,CATERERS,93.99
08/09/2023,11507,CARE LEAVERS,5947,WWW.WEPRINTLANYARDS.CO,"GIFT, CARD, NOVELTY AND SOUVENIR SHOPS",151.88
08/09/2023,11354,IPS DAY OPPS GILBERT RICHARDS CENTRE,5811,ARTHURBRETT.CO.UK,CATERERS,88.42
08/09/2023,11274,PUBLIC HEALTH STAFFING & OVERHEADS,5999,AMZNMKTPLACE AMAZON.CO,MISCELLANEOUS AND SPECIALTY RETAIL STORES,9.68
08/09/2023,11135,YOUTH OFFENDING SERVICE,8299,TWINKL,SCHOOLS & EDUCATIONAL SVC-NOT ELSEWHERE CLASSIFIED,53.88
08/09/2023,11248,IPS ERIC WILLIAMS HOUSE,5811,ARTHURBRETT.CO.UK,CATERERS,72.49
08/09/2023,11307,IPS MH THE POD,5411,SAINSBURYS S MKTS,"GROCERY STORES, SUPERMARKETS",4.5
08/09/2023,10383,IPS HWC KNIGHTLOW,5811,ARTHURBRETT.CO.UK,CATERERS,29.91
08/09/2023,11922,ICT USER SUPPORT,5999,AMZNMKTPLACE,MISCELLANEOUS AND SPECIALTY RETAIL STORES,22.76
08/09/2023,10141,E & TS INTEGRATED COMMUNITY EQUIPME,5734,SP OPERA BEDS,COMPUTER SOFTWARE STORES,156
08/09/2023,11879,IPS LD MAURICE EDELMAN HOUSE,5811,ARTHURBRETT.CO.UK,CATERERS,74.56
08/09/2023,11879,IPS LD MAURICE EDELMAN HOUSE,5811,ARTHURBRETT.CO.UK,CATERERS,2.16
08/09/2023,10411,IPS HWC QUINTON LODGE,5811,BRAKES (STORED CARDS),CATERERS,232.62
08/09/2023,10565,ROUGH SLEEPER AND RAPID HOUSING PATH,5812,ISTANBUL,"EATING PLACES, RESTAURANTS",11
08/09/2023,11764,HOSPITAL EDUCATION & OUTREACH SERVICE,5999,AMZNMKTPLACE AMAZON.CO,MISCELLANEOUS AND SPECIALTY RETAIL STORES,3.31
08/09/2023,11951,EXTERNAL FUNDING AND BUSINESS DEVELOP,4112,COV STATION TVM,PASSENGER RAILWAYS,9
08/09/2023,11879,IPS LD MAURICE EDELMAN HOUSE,5811,ARTHURBRETT.CO.UK,CATERERS,111.45
08/09/2023,11879,IPS LD MAURICE EDELMAN HOUSE,5811,ARTHURBRETT.CO.UK,CATERERS,3.8
08/09/2023,10411,IPS HWC QUINTON LODGE,5811,ARTHURBRETT.CO.UK,CATERERS,41.67
08/09/2023,10411,IPS HWC QUINTON LODGE,5811,BRAKES (STORED CARDS),CATERERS,39.11
08/09/2023,11354,IPS DAY OPPS GILBERT RICHARDS CENTRE,5811,ARTHURBRETT.CO.UK,CATERERS,76.89
08/09/2023,11274,PUBLIC HEALTH STAFFING & OVERHEADS,5999,AMZNMKTPLACE AMAZON.CO,MISCELLANEOUS AND SPECIALTY RETAIL STORES,72.52
08/09/2023,10360,JOB SHOP,7392,TVLICENSING.CO.UK,"CONSULTING, MANAGEMENT, AND PUBLIC RELATIONS SVCS",159
08/09/2023,11403,IPS HWC COTTAGE FARM,5811,ARTHURBRETT.CO.UK,CATERERS,19.52
08/09/2023,10040,IPS HWC COPTHORNE,5811,ARTHURBRETT.CO.UK,CATERERS,26.41
11/09/2023,11928,COMMUNITY SUPPORT GRANTS,5999,AMZNMKTPLACE,MISCELLANEOUS AND SPECIALTY RETAIL STORES,6.95
11/09/2023,11928,COMMUNITY SUPPORT GRANTS,5999,AMZNMKTPLACE,MISCELLANEOUS AND SPECIALTY RETAIL STORES,17.5
11/09/2023,11928,COMMUNITY SUPPORT GRANTS,5999,AMZNMKTPLACE,MISCELLANEOUS AND SPECIALTY RETAIL STORES,13.74
11/09/2023,11928,COMMUNITY SUPPORT GRANTS,5999,AMZNMKTPLACE AMAZON.CO,MISCELLANEOUS AND SPECIALTY RETAIL STORES,41.83
11/09/2023,11928,COMMUNITY SUPPORT GRANTS,5999,AMZNMKTPLACE,MISCELLANEOUS AND SPECIALTY RETAIL STORES,13.74
11/09/2023,11928,COMMUNITY SUPPORT GRANTS,5999,AMZNMKTPLACE AMAZON.CO,MISCELLANEOUS AND SPECIALTY RETAIL STORES,13.74
11/09/2023,11928,COMMUNITY SUPPORT GRANTS,5999,AMZNMKTPLACE,MISCELLANEOUS AND SPECIALTY RETAIL STORES,41.83
11/09/2023,11928,COMMUNITY SUPPORT GRANTS,5999,AMZNMKTPLACE,MISCELLANEOUS AND SPECIALTY RETAIL STORES,41.83
11/09/2023,11928,COMMUNITY SUPPORT GRANTS,5999,AMZNMKTPLACE,MISCELLANEOUS AND SPECIALTY RETAIL STORES,94.98
11/09/2023,11928,COMMUNITY SUPPORT GRANTS,5999,AMZNMKTPLACE AMAZON.CO,MISCELLANEOUS AND SPECIALTY RETAIL STORES,94.98
11/09/2023,11197,WEST FAMILY HUB,5411,WM MORRISONS STORE,"GROCERY STORES, SUPERMARKETS",10.6
11/09/2023,11456,GENERAL EVENTS,5814,SUBWAY 30093 COVENTRY,FAST FOOD RESTAURANTS,22.67
11/09/2023,10469,RESIDENTIAL - JOBS LANE,5399,ETSY.COM - MULTIPLE SH,MISCELLANEOUS GENERAL MERCHANDISE,-8.5
11/09/2023,10378,CHILDREN?S SERVICES MANAGEMENT TEAM,7997,TENPIN LTD - 124,"CLUBS-CNTRY,MBRSHIP(ATHLET,REC,SPRTS,PRIVATE GOLF",75
11/09/2023,11403,IPS HWC COTTAGE FARM,5811,BRAKES (STORED CARDS),CATERERS,174.57
11/09/2023,11197,WEST FAMILY HUB,5999,AMZNMKTPLACE AMAZON.CO,MISCELLANEOUS AND SPECIALTY RETAIL STORES,19.99
11/09/2023,11456,GENERAL EVENTS,5814,SUBWAY 30093 COVENTRY,FAST FOOD RESTAURANTS,23.17
11/09/2023,10469,RESIDENTIAL - JOBS LANE,5651,PRIMARK - COVENTRY,FAMILY CLOTHING STORES,27
11/09/2023,11267,ICT NETWORK SERVICES,5999,AMZNMKTPLACE,MISCELLANEOUS AND SPECIALTY RETAIL STORES,111.47
11/09/2023,11248,IPS ERIC WILLIAMS HOUSE,5999,AMZNMKTPLACE,MISCELLANEOUS AND SPECIALTY RETAIL STORES,7.38
11/09/2023,11922,ICT USER SUPPORT,5969,AMZ AMAZON.CO.UK,DIRECT MARKETING-OTHER DIRECT MARKETERS/NOT ELSEW.,-10.8
11/09/2023,11197,WEST FAMILY HUB,5999,AMZNMKTPLACE AMAZON.CO,MISCELLANEOUS AND SPECIALTY RETAIL STORES,14.7
11/09/2023,10469,RESIDENTIAL - JOBS LANE,5411,ALDI STORES ATHERSTONE,"GROCERY STORES, SUPERMARKETS",252.43
11/09/2023,11687,RESIDENTIAL - BROAD PARK HOUSE,5411,ASDA STORES 4602,"GROCERY STORES, SUPERMARKETS",35.39
11/09/2023,11086,OUTDOOR EDUCATION CENTRE,5411,CO-OP GROUP 190390,"GROCERY STORES, SUPERMARKETS",20.9
11/09/2023,11716,RESOURCES MGT TEAM & OVERHEADS,4112,WWW.AVANTIWESTCOAST.CO,PASSENGER RAILWAYS,9
11/09/2023,11507,CARE LEAVERS,5411,ALDI 15 772,"GROCERY STORES, SUPERMARKETS",2.49
11/09/2023,10469,RESIDENTIAL - JOBS LANE,5211,WWW.SCREWFIX.COM,"BUILDING MATERIALS, LUMBER STORES",33.58
11/09/2023,10159,MULTI LINGUAL ASSISTANCE TRADING ACCOUNT,4121,CENTRAL TAXIS WEST MID,LIMOUSINES AND TAXICABS,16
11/09/2023,10448,RESIDENTIAL - GRAVEL HILL,5411,TESCO STORES 2328,"GROCERY STORES, SUPERMARKETS",132.24
11/09/2023,11248,IPS ERIC WILLIAMS HOUSE,5999,AMZNMKTPLACE,MISCELLANEOUS AND SPECIALTY RETAIL STORES,79.96
11/09/2023,11507,CARE LEAVERS,5311,WWW.ARGOS.CO.UK,DEPARTMENT STORES,214.98
11/09/2023,10159,MULTI LINGUAL ASSISTANCE TRADING ACCOUNT,4121,CENTRAL TAXIS WEST MID,LIMOUSINES AND TAXICABS,16
11/09/2023,11507,CARE LEAVERS,5814,MCDONALDS,FAST FOOD RESTAURANTS,7.98
11/09/2023,11248,IPS ERIC WILLIAMS HOUSE,5999,AMZNMKTPLACE,MISCELLANEOUS AND SPECIALTY RETAIL STORES,24.98
11/09/2023,11307,IPS MH THE POD,5399,CATERING24 LTD,MISCELLANEOUS GENERAL MERCHANDISE,59.82
11/09/2023,11197,WEST FAMILY HUB,5311,WWW.ARGOS.CO.UK,DEPARTMENT STORES,29.94
11/09/2023,11255,ADULT ED ADMIN & MANAGEMENT,5999,WWW.RAINBOWSAFETEY.CO.,MISCELLANEOUS AND SPECIALTY RETAIL STORES,16.45
11/09/2023,10469,RESIDENTIAL - JOBS LANE,5411,TESCO STORES 2328,"GROCERY STORES, SUPERMARKETS",17.85
11/09/2023,11049,CREMATORIUM,5411,TESCO STORES 2328,"GROCERY STORES, SUPERMARKETS",26.4
11/09/2023,11539,CENTRALISED PROMOTIONS BUDGET,5192,TIMES NEWSPAPERS LTD,"BOOKS,PERIODICALS AND NEWSPAPERS",26
11/09/2023,11507,CARE LEAVERS,4112,WWW.AVANTIWESTCOAST.CO,PASSENGER RAILWAYS,48.9
11/09/2023,10469,RESIDENTIAL - JOBS LANE,5331,POUNDSTRETCHER 666,VARIETY STORES,7.79
11/09/2023,10360,JOB SHOP,5999,AMZNMKTPLACE,MISCELLANEOUS AND SPECIALTY RETAIL STORES,179.95
11/09/2023,11001,BUSINESS INVESTMENT ? INWARD INVESTME,4121,PLATINUM CARS,LIMOUSINES AND TAXICABS,110
11/09/2023,10876,"SEN - OUTREACH, CASEWORK & SUPPORTED",9402,POST OFFICE COUNTER,POSTAL SERVICES-GOVERNMENT ONLY,7.65
11/09/2023,11107,CENTRAL FAMILY HUB,5999,AMZNMKTPLACE,MISCELLANEOUS AND SPECIALTY RETAIL STORES,28.98
11/09/2023,11687,RESIDENTIAL - BROAD PARK HOUSE,5411,TESCO STORES 2328,"GROCERY STORES, SUPERMARKETS",140.11
11/09/2023,10945,AD - STREETSCENE & GREENSPACE,5999,AMZNMKTPLACE,MISCELLANEOUS AND SPECIALTY RETAIL STORES,12.59
11/09/2023,11049,CREMATORIUM,5311,WWW.ARGOS.CO.UK,DEPARTMENT STORES,418
11/09/2023,10469,RESIDENTIAL - JOBS LANE,5999,SASS - WINSFORD,MISCELLANEOUS AND SPECIALTY RETAIL STORES,18.99
11/09/2023,11149,WAR MEMORIAL PARK,5411,WM MORRISONS STORE,"GROCERY STORES, SUPERMARKETS",6.55
11/09/2023,10561,PARKS GENERAL,5941,PAYPAL  FISHKIT LTD,SPORTING GOODS STORES,"2,495.00"
11/09/2023,10090,LIBRARIES - OPERATIONS,5999,AMZNMKTPLACE,MISCELLANEOUS AND SPECIALTY RETAIL STORES,38.94
11/09/2023,10869,AIR QUALITY EARLY MEASURES,5411,SAINSBURYS S/MKTS,"GROCERY STORES, SUPERMARKETS",33.9
11/09/2023,11764,HOSPITAL EDUCATION & OUTREACH SERVICE,5411,HEART OF ENGLAND COOP,"GROCERY STORES, SUPERMARKETS",5.35
11/09/2023,10541,COVENTRY EXTENDED LEARNING CENTRE,5999,AMZNMKTPLACE,MISCELLANEOUS AND SPECIALTY RETAIL STORES,26.99
11/09/2023,11107,CENTRAL FAMILY HUB,5411,SAINSBURYS S/MKTS,"GROCERY STORES, SUPERMARKETS",5.55
11/09/2023,11057,SFPC-FAMILY GROUP CONFERENCING,5411,W M MORRISON STORE,"GROCERY STORES, SUPERMARKETS",18.16
11/09/2023,10475,CORPORATE PROPERTY MANAGEMENT,7251,RJ & L PARKER LOCKSMIT,"HAT CLEANING SHOPS, SHOE REPAIR SHOPS, SHOE SHINE",36
11/09/2023,10360,JOB SHOP,5411,TESCO STORES 2325,"GROCERY STORES, SUPERMARKETS",20
11/09/2023,11928,COMMUNITY SUPPORT GRANTS,5999,AMZNMKTPLACE AMAZON.CO,MISCELLANEOUS AND SPECIALTY RETAIL STORES,23.87
11/09/2023,10360,JOB SHOP,5411,TESCO STORES 2325,"GROCERY STORES, SUPERMARKETS",40
11/09/2023,10360,JOB SHOP,5411,TESCO STORES 2325,"GROCERY STORES, SUPERMARKETS",20
11/09/2023,10541,COVENTRY EXTENDED LEARNING CENTRE,5411,ASDA GROCERIES ONLINE,"GROCERY STORES, SUPERMARKETS",145
11/09/2023,10448,RESIDENTIAL - GRAVEL HILL,8220,PARENTPAY E-COM R,"COLLEGES, UNIV, PRO SCHOOLS, JUNIOR COLLEGES",30
11/09/2023,10360,JOB SHOP,5411,TESCO STORES 2325,"GROCERY STORES, SUPERMARKETS",60
11/09/2023,10360,JOB SHOP,5411,TESCO STORES 2325,"GROCERY STORES, SUPERMARKETS",20
11/09/2023,10291,SECTION17 PAYMENTS CENTRAL,4112,TRAINLINE,PASSENGER RAILWAYS,70.1
11/09/2023,10360,JOB SHOP,5411,TESCO STORES 2325,"GROCERY STORES, SUPERMARKETS",40
11/09/2023,11928,COMMUNITY SUPPORT GRANTS,5999,AMZNMKTPLACE AMAZON.CO,MISCELLANEOUS AND SPECIALTY RETAIL STORES,39.99
11/09/2023,10687,WEST SOCIAL WORKER CASEHOLDING TEAM,5411,ASDA GROCERIES ONLINE,"GROCERY STORES, SUPERMARKETS",102.22
11/09/2023,11507,CARE LEAVERS,5814,JUST EAT,FAST FOOD RESTAURANTS,41.9
11/09/2023,10416,LAC PERMANENCY,4112,TRAINLINE,PASSENGER RAILWAYS,302.02
11/09/2023,11507,CARE LEAVERS,5814,JUST EAT,FAST FOOD RESTAURANTS,32.97
11/09/2023,11507,CARE LEAVERS,5411,MARKS&SPENCER PLC SACA,"GROCERY STORES, SUPERMARKETS",70.1
11/09/2023,11507,CARE LEAVERS,9402,POST OFFICE COUNTER,POSTAL SERVICES-GOVERNMENT ONLY,2.2
11/09/2023,11826,REPAIR & MAINTENANCE,5045,WWW.TYSOFT.CO.UK,"COMPUTERS, COMPUTER PERIPHERAL EQUIPMENT, SOFTWARE",71.94
11/09/2023,10676,HOUSING AND HOMELESSNESS,5211,WWW.SCREWFIX.COM,"BUILDING MATERIALS, LUMBER STORES",101.64
11/09/2023,11746,RESIDENTIAL - GRAYSWOOD,5999,AMZNMKTPLACE,MISCELLANEOUS AND SPECIALTY RETAIL STORES,26.6
11/09/2023,10300,INTERNAL FOSTERING TEAM,5411,WM MORRISONS STORE,"GROCERY STORES, SUPERMARKETS",11.25
11/09/2023,10084,SECTION17 PAYMENTS WEST,5411,ASDA GROCERIES ONLINE,"GROCERY STORES, SUPERMARKETS",-1.25
11/09/2023,11984,IPS MAYMORN RESOURCE CENTRE,5735,PRIME VIDEO  1U3CD1UF4,RECORD SHOPS,13.99
11/09/2023,11507,CARE LEAVERS,5411,ASDA SUPERSTORE,"GROCERY STORES, SUPERMARKETS",101.18
11/09/2023,11507,CARE LEAVERS,5999,SCRUMPTIOUSSS,MISCELLANEOUS AND SPECIALTY RETAIL STORES,11.91
11/09/2023,10416,LAC PERMANENCY,4722,BKG HOTEL AT BOOKING.C,TRAVEL AGENCIES AND TOUR OPERATORS,209
11/09/2023,10300,INTERNAL FOSTERING TEAM,5712,WWW.RATTANTREE.COM,"EQUIP, FURNITURE, HOME FURNSHNGS STRS (EXCPT APPL)",79.99
11/09/2023,11746,RESIDENTIAL - GRAYSWOOD,5999,AMZNMKTPLACE,MISCELLANEOUS AND SPECIALTY RETAIL STORES,13.98
11/09/2023,11862,GOCV CARD,7372,COOKIE CONTROL PRO,"COMP PROGRAMING,DATA PRCSNG,INTGRTD SYS DSGN SRVS",46.8
11/09/2023,11539,CENTRALISED PROMOTIONS BUDGET,7399,SPAGHETTI AGENCY,BUSINESS SERVICES-NOT ELSEWHERE CLASSIFIED,957.6
11/09/2023,10676,HOUSING AND HOMELESSNESS,7399,WWW.BORGLOCKS.COM,BUSINESS SERVICES-NOT ELSEWHERE CLASSIFIED,52.8
11/09/2023,11746,RESIDENTIAL - GRAYSWOOD,5999,AMZNMKTPLACE,MISCELLANEOUS AND SPECIALTY RETAIL STORES,7.82
11/09/2023,10084,SECTION17 PAYMENTS WEST,4722,BKG HOTEL AT BOOKING.C,TRAVEL AGENCIES AND TOUR OPERATORS,364
11/09/2023,11984,IPS MAYMORN RESOURCE CENTRE,4111,WWW.WMCA.ORG.UK,"TRANSPRTN-SUBRBN & LOCAL COMTR PSNGR, INCL FERRIES",10
11/09/2023,10084,SECTION17 PAYMENTS WEST,7011,HYLANDS HOTEL,"LODGING-HOTELS,MOTELS,RESORTS-NOT CLASSIFIED",320
11/09/2023,11057,SFPC-FAMILY GROUP CONFERENCING,5812,DOMINO S PIZZA,"EATING PLACES, RESTAURANTS",47.17
11/09/2023,11507,CARE LEAVERS,5814,STARBUCKS,FAST FOOD RESTAURANTS,24.45
11/09/2023,11507,CARE LEAVERS,5331,T K MAXX,VARIETY STORES,57.04
11/09/2023,11826,REPAIR & MAINTENANCE,5169,PAYPAL  PTTGROUP,CHEMICALS/ALLIED PRODUCTS NOT ELSEWHERE CLASSIFIED,68.83
11/09/2023,11135,YOUTH OFFENDING SERVICE,5814,MCDONALDS,FAST FOOD RESTAURANTS,3.18
11/09/2023,11746,RESIDENTIAL - GRAYSWOOD,5999,AMZNMKTPLACE AMAZON.CO,MISCELLANEOUS AND SPECIALTY RETAIL STORES,13.9
11/09/2023,10360,JOB SHOP,5999,AMZNMKTPLACE,MISCELLANEOUS AND SPECIALTY RETAIL STORES,179.95
11/09/2023,11248,IPS ERIC WILLIAMS HOUSE,5999,AMZNMKTPLACE,MISCELLANEOUS AND SPECIALTY RETAIL STORES,29.38
11/09/2023,10962,OUTDOOR EDUCATION SERVICE,5999,AMZNMKTPLACE,MISCELLANEOUS AND SPECIALTY RETAIL STORES,20.8
11/09/2023,10360,JOB SHOP,5999,AMZNBUSINESS 1U7NY3R64,MISCELLANEOUS AND SPECIALTY RETAIL STORES,68.04
11/09/2023,11507,CARE LEAVERS,9399,DRIVING LICENCE WEB,GOVERNMENT SERVICES-NOT ELSEWHERE CLASSIFIED,34
11/09/2023,10962,OUTDOOR EDUCATION SERVICE,5999,AMZNBUSINESS 1U3UW17C4,MISCELLANEOUS AND SPECIALTY RETAIL STORES,18.49
11/09/2023,10360,JOB SHOP,5999,AMZNMKTPLACE,MISCELLANEOUS AND SPECIALTY RETAIL STORES,189.94
11/09/2023,11507,CARE LEAVERS,4112,TRAINLINE,PASSENGER RAILWAYS,60.52
11/09/2023,10360,JOB SHOP,5999,AMZNMKTPLACE,MISCELLANEOUS AND SPECIALTY RETAIL STORES,169.99
11/09/2023,10962,OUTDOOR EDUCATION SERVICE,5999,AMZNMKTPLACE,MISCELLANEOUS AND SPECIALTY RETAIL STORES,18.48
11/09/2023,11155,HIGHWAYS S38/278 ADOPTIONS,5192,PROFESSIONAL BOOKS,"BOOKS,PERIODICALS AND NEWSPAPERS",61.93
11/09/2023,10360,JOB SHOP,5999,AMZNMKTPLACE,MISCELLANEOUS AND SPECIALTY RETAIL STORES,169.99
11/09/2023,10291,SECTION17 PAYMENTS CENTRAL,4900,WWW.OVOENERGY.COM,"UTLTS-ELCTRC, GAS, HEATING OIL, SANITARY, WATER",59.8
11/09/2023,11277,FLEET SERVICES,5999,AMZNMKTPLACE AMAZON.CO,MISCELLANEOUS AND SPECIALTY RETAIL STORES,27.51
11/09/2023,10291,SECTION17 PAYMENTS CENTRAL,3533,IBIS COVENTRY SOUTH,HOTEL IBIS,460
11/09/2023,11197,WEST FAMILY HUB,5411,TESCO STORES 2328,"GROCERY STORES, SUPERMARKETS",66.78
11/09/2023,11136,EAST FAMILY HUB,5999,AMZNMKTPLACE,MISCELLANEOUS AND SPECIALTY RETAIL STORES,24.49
11/09/2023,11277,FLEET SERVICES,5999,AMZNMKTPLACE AMAZON.CO,MISCELLANEOUS AND SPECIALTY RETAIL STORES,12.82
11/09/2023,11507,CARE LEAVERS,9402,POST OFFICE COUNTER,POSTAL SERVICES-GOVERNMENT ONLY,2.6
11/09/2023,11267,ICT NETWORK SERVICES,4814,WWW.BROADBANDBUYER.CO.,TELECOM INCL PREPAID/RECURRING PHONE SVCS,44.93
11/09/2023,11870,IPS LD WILFRED SPENCER CENTRE,5945,WWW.LIBERTYGAMES.CO.UK,"GAME, TOY, AND HOBBY SHOPS","2,047.00"
11/09/2023,11403,IPS HWC COTTAGE FARM,5300,GOMPELS HEALTHCARE,WHOLESALE CLUBS,67.79
11/09/2023,11932,LAC THROUGHCARE TEAM,5814,SNAX IN THE CITY,FAST FOOD RESTAURANTS,12.47
11/09/2023,10226,LORD MAYORS OFFICE,7997,CTK CC LTD,"CLUBS-CNTRY,MBRSHIP(ATHLET,REC,SPRTS,PRIVATE GOLF",4.9
11/09/2023,11507,CARE LEAVERS,5812,THE WALSGRAVE REST,"EATING PLACES, RESTAURANTS",29.72
11/09/2023,11507,CARE LEAVERS,4131,WEST MIDLAND CARD,BUS LINES,2
11/09/2023,11507,CARE LEAVERS,7523,WALSGRAVE CAR PARK,AUTOMOBILE PARKING LOTS AND GARAGES,3.6
11/09/2023,10225,HOUSING - B&B ACCOMMODATION,3811,PREMIER INN,PREMIER INN,546
11/09/2023,10360,JOB SHOP,9399,COVENTRY CITY COUNCIL,GOVERNMENT SERVICES-NOT ELSEWHERE CLASSIFIED,11
11/09/2023,10225,HOUSING - B&B ACCOMMODATION,3811,PREMIER INN,PREMIER INN,293
11/09/2023,11248,IPS ERIC WILLIAMS HOUSE,5411,ICELAND FOODS,"GROCERY STORES, SUPERMARKETS",75.05
11/09/2023,11928,COMMUNITY SUPPORT GRANTS,5999,AMZNMKTPLACE,MISCELLANEOUS AND SPECIALTY RETAIL STORES,13.74
11/09/2023,11928,COMMUNITY SUPPORT GRANTS,5999,AMZNMKTPLACE,MISCELLANEOUS AND SPECIALTY RETAIL STORES,199.79
11/09/2023,11389,HOUSING FIRST GRANT,5999,AMZNMKTPLACE,MISCELLANEOUS AND SPECIALTY RETAIL STORES,32.95
11/09/2023,11928,COMMUNITY SUPPORT GRANTS,5999,AMZNMKTPLACE,MISCELLANEOUS AND SPECIALTY RETAIL STORES,193.92
11/09/2023,11928,COMMUNITY SUPPORT GRANTS,5999,AMZNMKTPLACE,MISCELLANEOUS AND SPECIALTY RETAIL STORES,9.95
11/09/2023,11928,COMMUNITY SUPPORT GRANTS,5999,AMZNMKTPLACE,MISCELLANEOUS AND SPECIALTY RETAIL STORES,71.48
11/09/2023,11928,COMMUNITY SUPPORT GRANTS,5999,AMZNMKTPLACE,MISCELLANEOUS AND SPECIALTY RETAIL STORES,18.99
11/09/2023,11928,COMMUNITY SUPPORT GRANTS,5999,AMZNMKTPLACE,MISCELLANEOUS AND SPECIALTY RETAIL STORES,6.95
11/09/2023,11928,COMMUNITY SUPPORT GRANTS,5999,AMZNMKTPLACE AMAZON.CO,MISCELLANEOUS AND SPECIALTY RETAIL STORES,9.95
11/09/2023,10565,ROUGH SLEEPER AND RAPID HOUSING PATH,5411,ALDI 15 772,"GROCERY STORES, SUPERMARKETS",67.88
11/09/2023,11928,COMMUNITY SUPPORT GRANTS,5999,AMZNMKTPLACE,MISCELLANEOUS AND SPECIALTY RETAIL STORES,56.9
11/09/2023,11928,COMMUNITY SUPPORT GRANTS,5999,AMZNMKTPLACE,MISCELLANEOUS AND SPECIALTY RETAIL STORES,159.96
11/09/2023,11135,YOUTH OFFENDING SERVICE,5943,WHSMITH.CO.UK,"OFFICE, SCHOOL SUPPLY, AND STATIONERY STORES",91.96
11/09/2023,11307,IPS MH THE POD,5812,TAKEAWAY PACKAGING,"EATING PLACES, RESTAURANTS",139.02
11/09/2023,11928,COMMUNITY SUPPORT GRANTS,5999,AMZNMKTPLACE,MISCELLANEOUS AND SPECIALTY RETAIL STORES,61.88
11/09/2023,11928,COMMUNITY SUPPORT GRANTS,5999,AMZNMKTPLACE,MISCELLANEOUS AND SPECIALTY RETAIL STORES,62.89
11/09/2023,11928,COMMUNITY SUPPORT GRANTS,5999,AMZNMKTPLACE,MISCELLANEOUS AND SPECIALTY RETAIL STORES,24.33
11/09/2023,11928,COMMUNITY SUPPORT GRANTS,5999,AMZNMKTPLACE,MISCELLANEOUS AND SPECIALTY RETAIL STORES,39.99
11/09/2023,11928,COMMUNITY SUPPORT GRANTS,5999,AMZNMKTPLACE AMAZON.CO,MISCELLANEOUS AND SPECIALTY RETAIL STORES,-59.75
11/09/2023,11928,COMMUNITY SUPPORT GRANTS,5999,AMZNMKTPLACE AMAZON.CO,MISCELLANEOUS AND SPECIALTY RETAIL STORES,79.98
11/09/2023,11307,IPS MH THE POD,5411,SP HODMEDOD TRADE,"GROCERY STORES, SUPERMARKETS",99.75
11/09/2023,11307,IPS MH THE POD,5441,SP REALFOODBULK,"CANDY, NUT, CONFECTIONERY STORES",238.3
11/09/2023,11307,IPS MH THE POD,5499,SUPERFOOD MARKET,"MISC FOOD STORE-CONVENIENCE,MRKT,SPLTY,VENDNG MACS",80.06
11/09/2023,11539,CENTRALISED PROMOTIONS BUDGET,5999,AMZNMKTPLACE AMAZON.CO,MISCELLANEOUS AND SPECIALTY RETAIL STORES,43
11/09/2023,11136,EAST FAMILY HUB,5999,AMZNMKTPLACE AMAZON.CO,MISCELLANEOUS AND SPECIALTY RETAIL STORES,11.98
11/09/2023,10488,IPS LD JENNER8,4111,WWW.WMCA.ORG.UK,"TRANSPRTN-SUBRBN & LOCAL COMTR PSNGR, INCL FERRIES",10
11/09/2023,10469,RESIDENTIAL - JOBS LANE,5411,SAINSBURY'S S/MKT,"GROCERY STORES, SUPERMARKETS",-19
11/09/2023,10360,JOB SHOP,5999,AMZNMKTPLACE,MISCELLANEOUS AND SPECIALTY RETAIL STORES,179.95
11/09/2023,11149,WAR MEMORIAL PARK,5211,WWW.SCREWFIX.COM,"BUILDING MATERIALS, LUMBER STORES",74.99
11/09/2023,11848,COMMERCIAL PROPERTY MANAGEMENT (STAF,8220,PROCONFERENCES.COM,"COLLEGES, UNIV, PRO SCHOOLS, JUNIOR COLLEGES",285.6
11/09/2023,10700,AD - PROPERTY & ASSET MANAGEMENT,5812,COFFEE NO 1 COVENTRY,"EATING PLACES, RESTAURANTS",6.7
11/09/2023,11049,CREMATORIUM,5999,AMZNMKTPLACE,MISCELLANEOUS AND SPECIALTY RETAIL STORES,16.16
11/09/2023,11136,EAST FAMILY HUB,5999,AMZNMKTPLACE AMAZON.CO,MISCELLANEOUS AND SPECIALTY RETAIL STORES,7.99
11/09/2023,10416,LAC PERMANENCY,4131,WEST MIDLANDS TRAV,BUS LINES,60
12/09/2023,10291,SECTION17 PAYMENTS CENTRAL,3533,IBIS COVENTRY SOUTH,HOTEL IBIS,25
12/09/2023,11745,SAFEGUARDING CHILDREN SERVICE,4112,WWW.AVANTIWESTCOAST.CO,PASSENGER RAILWAYS,167.9
12/09/2023,11409,HONG KONG BRITISH NATIONAL (OVERSEAS) UK,5994,WH SMITH COVENTRY,NEWS DEALERS AND NEWSSTANDS,3
12/09/2023,10291,SECTION17 PAYMENTS CENTRAL,3533,IBIS COVENTRY SOUTH,HOTEL IBIS,180
12/09/2023,10360,JOB SHOP,5311,WWW.ARGOS.CO.UK,DEPARTMENT STORES,79.99
12/09/2023,10360,JOB SHOP,5719,WWW.THERANGE.CO.UK,MISCELLANEOUS HOUSE FURNISHING SPECIALTY SHOPS,63.94
12/09/2023,11764,HOSPITAL EDUCATION & OUTREACH SERVICE,2741,CGP BOOKS,MISCELLANEOUS PUBLISHING AND PRINTING,145.45
12/09/2023,10310,COVENTRY CITY CENTRE REGENERATION,4112,COVENTRY T/O,PASSENGER RAILWAYS,15.2
12/09/2023,10310,COVENTRY CITY CENTRE REGENERATION,4112,WWW.AVANTIWESTCOAST.CO,PASSENGER RAILWAYS,483.8
12/09/2023,11829,PARKING ENFORCEMENT,5999,TIMPSON LTD,MISCELLANEOUS AND SPECIALTY RETAIL STORES,13.5
12/09/2023,11166,SOUTH FAMILY HUB,7523,COVENTRY CITY COUNCIL,AUTOMOBILE PARKING LOTS AND GARAGES,3
12/09/2023,11255,ADULT ED ADMIN & MANAGEMENT,8299,PADLET  PADLET SOFTWAR,SCHOOLS & EDUCATIONAL SVC-NOT ELSEWHERE CLASSIFIED,89.99
12/09/2023,11879,IPS LD MAURICE EDELMAN HOUSE,5411,TESCO STORES 2328,"GROCERY STORES, SUPERMARKETS",263.18
12/09/2023,11870,IPS LD WILFRED SPENCER CENTRE,5411,WM MORRISONS STORE,"GROCERY STORES, SUPERMARKETS",14.23
12/09/2023,11870,IPS LD WILFRED SPENCER CENTRE,5411,WM MORRISONS STORE,"GROCERY STORES, SUPERMARKETS",1.15
12/09/2023,11539,CENTRALISED PROMOTIONS BUDGET,5815,INEWS,DIGITAL GOODS AUDIOVISUAL MEDIA,34.99
12/09/2023,10475,CORPORATE PROPERTY MANAGEMENT,7999,CROMA LOCKSMITHS & SEC,RECREATION SERVICES (NOT ELSEWHERE CLASSIFIED),85.5
12/09/2023,10541,COVENTRY EXTENDED LEARNING CENTRE,5192,TWINKL EDUCATIONAL PUB,"BOOKS,PERIODICALS AND NEWSPAPERS",720.73
12/09/2023,11570,EARLY YEARS REGISTRATION & INSPECTION,5999,AMZNMKTPLACE AMAZON.CO,MISCELLANEOUS AND SPECIALTY RETAIL STORES,6.96
12/09/2023,10541,COVENTRY EXTENDED LEARNING CENTRE,5411,TESCO STORES 5168,"GROCERY STORES, SUPERMARKETS",112
12/09/2023,11602,IPS LD GOSFORD COMMUNITY HUB,5411,ADSA STORES LTD 4231,"GROCERY STORES, SUPERMARKETS",21.2
12/09/2023,11197,WEST FAMILY HUB,7523,COVENTRY CITY COUNCIL,AUTOMOBILE PARKING LOTS AND GARAGES,3
12/09/2023,11001,BUSINESS INVESTMENT ? INWARD INVESTME,7338,PRINTWORKS COVENTRY,"QUICK COPY,REPRODUCTION AND BLUEPRINTING SERVICES",10.8
12/09/2023,10541,COVENTRY EXTENDED LEARNING CENTRE,5999,AMZNMKTPLACE AMAZON.CO,MISCELLANEOUS AND SPECIALTY RETAIL STORES,7.49
12/09/2023,11602,IPS LD GOSFORD COMMUNITY HUB,5411,SAINSBURYS S/MKTS,"GROCERY STORES, SUPERMARKETS",13
12/09/2023,11001,BUSINESS INVESTMENT ? INWARD INVESTME,7338,PRINTWORKS COVENTRY,"QUICK COPY,REPRODUCTION AND BLUEPRINTING SERVICES",16.2
12/09/2023,11570,EARLY YEARS REGISTRATION & INSPECTION,5999,AMZNMKTPLACE AMAZON.CO,MISCELLANEOUS AND SPECIALTY RETAIL STORES,18.9
12/09/2023,11928,COMMUNITY SUPPORT GRANTS,5999,AMZNMKTPLACE,MISCELLANEOUS AND SPECIALTY RETAIL STORES,16.94
12/09/2023,11570,EARLY YEARS REGISTRATION & INSPECTION,5999,AMZNMKTPLACE AMAZON.CO,MISCELLANEOUS AND SPECIALTY RETAIL STORES,31.96
12/09/2023,11507,CARE LEAVERS,5814,COSTA COFFEE 43011575,FAST FOOD RESTAURANTS,6.35
12/09/2023,10084,SECTION17 PAYMENTS WEST,4722,BKG HOTEL AT BOOKING.C,TRAVEL AGENCIES AND TOUR OPERATORS,824
12/09/2023,10962,OUTDOOR EDUCATION SERVICE,5999,AMZNMKTPLACE AMAZON.CO,MISCELLANEOUS AND SPECIALTY RETAIL STORES,123.02
12/09/2023,10360,JOB SHOP,5311,WWW.ARGOS.CO.UK,DEPARTMENT STORES,8
12/09/2023,11932,LAC THROUGHCARE TEAM,5411,PREMIER STORE,"GROCERY STORES, SUPERMARKETS",3.94
12/09/2023,11746,RESIDENTIAL - GRAYSWOOD,5999,AMZNMKTPLACE,MISCELLANEOUS AND SPECIALTY RETAIL STORES,34.99
12/09/2023,11040,LIBRARIES - WILLENHALL LIBRARY,5411,TESCO STORES 5553,"GROCERY STORES, SUPERMARKETS",6.8
12/09/2023,10382,CHILDREN?S SENSORY SUPPORT SERVICE,4814,BT BUSINESS BILL,TELECOM INCL PREPAID/RECURRING PHONE SVCS,67.07
12/09/2023,11197,WEST FAMILY HUB,5411,ADSA STORES LTD 4231,"GROCERY STORES, SUPERMARKETS",23.8
12/09/2023,11057,SFPC-FAMILY GROUP CONFERENCING,5411,SAINSBURYS S/MKTS,"GROCERY STORES, SUPERMARKETS",2
12/09/2023,11507,CARE LEAVERS,5411,ASDA STORES,"GROCERY STORES, SUPERMARKETS",40
12/09/2023,10300,INTERNAL FOSTERING TEAM,5411,SPAR HAY LANE,"GROCERY STORES, SUPERMARKETS",6.37
12/09/2023,11507,CARE LEAVERS,5814,WAGAMAMA LIMITED 227,FAST FOOD RESTAURANTS,14.5
12/09/2023,10541,COVENTRY EXTENDED LEARNING CENTRE,5411,ASDA GROCERIES ONLINE,"GROCERY STORES, SUPERMARKETS",122.87
12/09/2023,11197,WEST FAMILY HUB,5814,KFC-COURTHOUSE GREEN,FAST FOOD RESTAURANTS,6.74
12/09/2023,10541,COVENTRY EXTENDED LEARNING CENTRE,5411,ASDA GROCERIES ONLINE,"GROCERY STORES, SUPERMARKETS",-2.31
12/09/2023,11507,CARE LEAVERS,7278,COSTCO WHOLESALE #123,"BUYING/SHOPPING CLUBS, SERVICES",89.11
12/09/2023,10581,ERDF - COVENTRY & WARWICKSHIRE LOW C,2741,WWW.BUYMYP  WWWBUYMYPR,MISCELLANEOUS PUBLISHING AND PRINTING,69
12/09/2023,11746,RESIDENTIAL - GRAYSWOOD,4899,DISNEY PLUS,"CABLE, SATELLITE, OTHER PAY TELEVISION, RADIO SVCS",7.99
12/09/2023,11507,CARE LEAVERS,5310,POUNDLAND LTD - 1282,DISCOUNT STORES,4.8
12/09/2023,11746,RESIDENTIAL - GRAYSWOOD,5999,AMZNMKTPLACE,MISCELLANEOUS AND SPECIALTY RETAIL STORES,24.99
12/09/2023,11507,CARE LEAVERS,4121,UBER    TRIP,LIMOUSINES AND TAXICABS,52.98
12/09/2023,11746,RESIDENTIAL - GRAYSWOOD,5999,AMZNMKTPLACE,MISCELLANEOUS AND SPECIALTY RETAIL STORES,89.99
12/09/2023,10360,JOB SHOP,5411,TESCO GIFT CARD,"GROCERY STORES, SUPERMARKETS",95
12/09/2023,11407,CHIEF EXECUTIVE,5811,SQ  SIGNATURE CATERING,CATERERS,43.2
12/09/2023,11507,CARE LEAVERS,5968,AMAZON PRIME 140VD84G4,DIRECT MARKETING-CONTINUITY/SUBSCRIPTION MERCHANTS,8.99
12/09/2023,11103,RESIDENTIAL - BROAD LANE,5812,THE FARMHOUSE,"EATING PLACES, RESTAURANTS",96
12/09/2023,11507,CARE LEAVERS,5812,GREGGS PLC,"EATING PLACES, RESTAURANTS",4.75
12/09/2023,11507,CARE LEAVERS,5812,GREGGS,"EATING PLACES, RESTAURANTS",3.15
12/09/2023,11928,COMMUNITY SUPPORT GRANTS,5999,AMZNMKTPLACE AMAZON.CO,MISCELLANEOUS AND SPECIALTY RETAIL STORES,22
12/09/2023,11507,CARE LEAVERS,5812,GREGGS PLC,"EATING PLACES, RESTAURANTS",1.95
12/09/2023,11928,COMMUNITY SUPPORT GRANTS,5999,AMZNMKTPLACE,MISCELLANEOUS AND SPECIALTY RETAIL STORES,7.94
12/09/2023,11928,COMMUNITY SUPPORT GRANTS,5999,AMZNMKTPLACE AMAZON.CO,MISCELLANEOUS AND SPECIALTY RETAIL STORES,96.96
12/09/2023,11307,IPS MH THE POD,5999,AMZNMKTPLACE,MISCELLANEOUS AND SPECIALTY RETAIL STORES,8.09
12/09/2023,11307,IPS MH THE POD,5999,AMZNMKTPLACE,MISCELLANEOUS AND SPECIALTY RETAIL STORES,20.38
12/09/2023,11135,YOUTH OFFENDING SERVICE,5999,TESCO ONLINE,MISCELLANEOUS AND SPECIALTY RETAIL STORES,74.97
12/09/2023,11928,COMMUNITY SUPPORT GRANTS,5999,AMZNMKTPLACE,MISCELLANEOUS AND SPECIALTY RETAIL STORES,12.94
12/09/2023,11307,IPS MH THE POD,5499,AL HALAL SUPERMARKET,"MISC FOOD STORE-CONVENIENCE,MRKT,SPLTY,VENDNG MACS",10.31
12/09/2023,11166,SOUTH FAMILY HUB,7523,COVENTRY CITY COUNCIL,AUTOMOBILE PARKING LOTS AND GARAGES,2
12/09/2023,11307,IPS MH THE POD,5411,SAINSBURYS S/MKTS,"GROCERY STORES, SUPERMARKETS",1.5
12/09/2023,11928,COMMUNITY SUPPORT GRANTS,5999,AMZNMKTPLACE,MISCELLANEOUS AND SPECIALTY RETAIL STORES,99.98
12/09/2023,10945,AD - STREETSCENE & GREENSPACE,5811,SQ  SIGNATURE CATERING,CATERERS,52.8
12/09/2023,11928,COMMUNITY SUPPORT GRANTS,5999,AMZNMKTPLACE,MISCELLANEOUS AND SPECIALTY RETAIL STORES,63.64
12/09/2023,10658,TREES & WOODLANDS,5261,TUDOR ENVIRONMENTAL,LAWN AND GARDEN SUPPLY STORES,25.08
12/09/2023,11928,COMMUNITY SUPPORT GRANTS,5999,AMZNMKTPLACE,MISCELLANEOUS AND SPECIALTY RETAIL STORES,23.87
12/09/2023,11307,IPS MH THE POD,5411,SAINSBURYS S/MKTS,"GROCERY STORES, SUPERMARKETS",42.84
12/09/2023,11507,CARE LEAVERS,5399,B&M 470 - HS COVENTRY,MISCELLANEOUS GENERAL MERCHANDISE,75.24
12/09/2023,11507,CARE LEAVERS,5999,AMZNMKTPLACE AMAZON.CO,MISCELLANEOUS AND SPECIALTY RETAIL STORES,11.99
12/09/2023,11507,CARE LEAVERS,5999,AMZNMKTPLACE AMAZON.CO,MISCELLANEOUS AND SPECIALTY RETAIL STORES,14.99
12/09/2023,11197,WEST FAMILY HUB,5399,B&M 470 - HS COVENTRY,MISCELLANEOUS GENERAL MERCHANDISE,32.74
12/09/2023,11307,IPS MH THE POD,5999,AMZNMKTPLACE,MISCELLANEOUS AND SPECIALTY RETAIL STORES,44.95
12/09/2023,11507,CARE LEAVERS,4131,WEST MIDLAND CARD,BUS LINES,2
12/09/2023,10040,IPS HWC COPTHORNE,5811,BRAKES (STORED CARDS),CATERERS,255.54
12/09/2023,11307,IPS MH THE POD,5200,B & Q 1231,HOME SUPPLY WAREHOUSE STORES,28
12/09/2023,11928,COMMUNITY SUPPORT GRANTS,5999,AMZNMKTPLACE,MISCELLANEOUS AND SPECIALTY RETAIL STORES,48.48
12/09/2023,11928,COMMUNITY SUPPORT GRANTS,5999,AMZNMKTPLACE AMAZON.CO,MISCELLANEOUS AND SPECIALTY RETAIL STORES,7.94
12/09/2023,11928,COMMUNITY SUPPORT GRANTS,5999,AMZNMKTPLACE,MISCELLANEOUS AND SPECIALTY RETAIL STORES,11
12/09/2023,11928,COMMUNITY SUPPORT GRANTS,5999,AMZNMKTPLACE AMAZON.CO,MISCELLANEOUS AND SPECIALTY RETAIL STORES,31.82
12/09/2023,11984,IPS MAYMORN RESOURCE CENTRE,5411,TESCO STORES 2328,"GROCERY STORES, SUPERMARKETS",24.18
12/09/2023,11409,HONG KONG BRITISH NATIONAL (OVERSEAS) UK,5999,MAX SPIELMANN LTD,MISCELLANEOUS AND SPECIALTY RETAIL STORES,4.2
12/09/2023,11170,BEHAVIOUR SUPPORT - PRIMARY CENTRES,5411,TESCO STORES 5168,"GROCERY STORES, SUPERMARKETS",193.12
12/09/2023,11879,IPS LD MAURICE EDELMAN HOUSE,5811,BRAKES (STORED CARDS),CATERERS,270.93
13/09/2023,11928,COMMUNITY SUPPORT GRANTS,5999,AMZNMKTPLACE,MISCELLANEOUS AND SPECIALTY RETAIL STORES,39.99
13/09/2023,10291,SECTION17 PAYMENTS CENTRAL,4722,BKG HOTEL AT BOOKING.C,TRAVEL AGENCIES AND TOUR OPERATORS,867.17
13/09/2023,11771,STREETPRIDE SOUTH,5969,AMAZON.CO.UK 142TH53P4,DIRECT MARKETING-OTHER DIRECT MARKETERS/NOT ELSEW.,10.96
13/09/2023,10411,IPS HWC QUINTON LODGE,5811,BRAKES (STORED CARDS),CATERERS,298.61
13/09/2023,11507,CARE LEAVERS,7523,PAYBYPHONE RE HINCKLEY,AUTOMOBILE PARKING LOTS AND GARAGES,1.25
13/09/2023,11687,RESIDENTIAL - BROAD PARK HOUSE,4121,UBER    TRIP,LIMOUSINES AND TAXICABS,6.09
13/09/2023,11507,CARE LEAVERS,5999,AMZNMKTPLACE,MISCELLANEOUS AND SPECIALTY RETAIL STORES,333
13/09/2023,10676,HOUSING AND HOMELESSNESS,5732,CURRYS ONLINE,ELECTRONIC SALES,399
13/09/2023,11928,COMMUNITY SUPPORT GRANTS,5999,AMZNMKTPLACE AMAZON.CO,MISCELLANEOUS AND SPECIALTY RETAIL STORES,13.74
13/09/2023,10902,BEHAVIOUR SUPPORT - PRIMARY SERVICE,5942,SP THEDYSLEXIASHOP,BOOK STORES,45.91
13/09/2023,10291,SECTION17 PAYMENTS CENTRAL,5311,WWW.ARGOS.CO.UK,DEPARTMENT STORES,13.49
13/09/2023,11995,IPS HWC HARRY CAPLAN,5499,WWW.JOHALDAIRIES.CO.UK,"MISC FOOD STORE-CONVENIENCE,MRKT,SPLTY,VENDNG MACS",8.47
13/09/2023,11704,COVENTRY MUSIC,5733,JUST MUSIC,"MUSIC STORES-INSTRUMENTS, PIANOS, SHEET MUSIC",33.97
13/09/2023,10040,IPS HWC COPTHORNE,5499,WWW.JOHALDAIRIES.CO.UK,"MISC FOOD STORE-CONVENIENCE,MRKT,SPLTY,VENDNG MACS",12.26
13/09/2023,11704,COVENTRY MUSIC,4112,TRAINLINE,PASSENGER RAILWAYS,209.9
13/09/2023,11507,CARE LEAVERS,4131,WEST MIDLAND CARD,BUS LINES,60
13/09/2023,11687,RESIDENTIAL - BROAD PARK HOUSE,4121,UBER    TRIP,LIMOUSINES AND TAXICABS,14.94
13/09/2023,11507,CARE LEAVERS,5999,AMZNMKTPLACE,MISCELLANEOUS AND SPECIALTY RETAIL STORES,333
13/09/2023,11248,IPS ERIC WILLIAMS HOUSE,5499,WWW.JOHALDAIRIES.CO.UK,"MISC FOOD STORE-CONVENIENCE,MRKT,SPLTY,VENDNG MACS",357.67
13/09/2023,10676,HOUSING AND HOMELESSNESS,5732,CURRYS ONLINE,ELECTRONIC SALES,764
13/09/2023,10040,IPS HWC COPTHORNE,5811,BRAKES (STORED CARDS),CATERERS,-13.83
13/09/2023,11170,BEHAVIOUR SUPPORT - PRIMARY CENTRES,5999,AMZNMKTPLACE AMAZON.CO,MISCELLANEOUS AND SPECIALTY RETAIL STORES,37.65
13/09/2023,10448,RESIDENTIAL - GRAVEL HILL,5311,WWW.ARGOS.CO.UK,DEPARTMENT STORES,59.99
13/09/2023,10565,ROUGH SLEEPER AND RAPID HOUSING PATH,9402,POST OFFICE COUNTER,POSTAL SERVICES-GOVERNMENT ONLY,1.6
13/09/2023,11636,WEST MIDLANDS TEACHING PARTNERSHIP,4112,TRAINLINE,PASSENGER RAILWAYS,30.15
13/09/2023,11507,CARE LEAVERS,5947,CARD FACTORY,"GIFT, CARD, NOVELTY AND SOUVENIR SHOPS",2.28
13/09/2023,11507,CARE LEAVERS,9402,POST OFFICE COUNTER,POSTAL SERVICES-GOVERNMENT ONLY,7.65
13/09/2023,11374,PARTNERSHIPS & SOCIAL CARE OPERATIONAL,4111,WWW.WMCA.ORG.UK,"TRANSPRTN-SUBRBN & LOCAL COMTR PSNGR, INCL FERRIES",40
13/09/2023,11307,IPS MH THE POD,5411,SAINSBURYS S MKTS,"GROCERY STORES, SUPERMARKETS",15
13/09/2023,10300,INTERNAL FOSTERING TEAM,5712,IKEA LTD SHOP ONLINE,"EQUIP, FURNITURE, HOME FURNSHNGS STRS (EXCPT APPL)",919
13/09/2023,11507,CARE LEAVERS,8099,ABL RETAIL LTD,"HEALTH PRACTITIONERS, MEDICAL SRVCS-NOT ELSEWHERE",149
13/09/2023,11057,SFPC-FAMILY GROUP CONFERENCING,5411,TESCO STORES 5779,"GROCERY STORES, SUPERMARKETS",3
13/09/2023,11507,CARE LEAVERS,5411,SAINSBURY'S SWADLI,"GROCERY STORES, SUPERMARKETS",4.1
13/09/2023,11050,DEVELOPMENT MANAGEMENT,5999,AMZNBUSINESS 148NK0NV4,MISCELLANEOUS AND SPECIALTY RETAIL STORES,59.99
13/09/2023,10159,MULTI LINGUAL ASSISTANCE TRADING ACCOUNT,4121,CENTRAL TAXIS WEST MID,LIMOUSINES AND TAXICABS,16
13/09/2023,10159,MULTI LINGUAL ASSISTANCE TRADING ACCOUNT,4121,CENTRAL TAXIS WEST MID,LIMOUSINES AND TAXICABS,16
13/09/2023,10512,REGISTER OFFICE,8699,CHARTERED TRADING STAN,"ORGANIZATIONS, MEMBERSHIP-NOT ELSEWHERE CLASSIFIED",354
13/09/2023,11928,COMMUNITY SUPPORT GRANTS,5999,AMZNMKTPLACE,MISCELLANEOUS AND SPECIALTY RETAIL STORES,59.75
13/09/2023,11928,COMMUNITY SUPPORT GRANTS,5999,AMZNMKTPLACE,MISCELLANEOUS AND SPECIALTY RETAIL STORES,7.96
13/09/2023,11928,COMMUNITY SUPPORT GRANTS,5999,AMZNMKTPLACE AMAZON.CO,MISCELLANEOUS AND SPECIALTY RETAIL STORES,59.75
13/09/2023,11928,COMMUNITY SUPPORT GRANTS,5999,AMZNMKTPLACE,MISCELLANEOUS AND SPECIALTY RETAIL STORES,14.49
13/09/2023,11928,COMMUNITY SUPPORT GRANTS,5999,AMZNMKTPLACE,MISCELLANEOUS AND SPECIALTY RETAIL STORES,13.74
13/09/2023,10029,COOMBE,7999,CROMA LOCKSMITHS & SEC,RECREATION SERVICES (NOT ELSEWHERE CLASSIFIED),69.3
13/09/2023,11570,EARLY YEARS REGISTRATION & INSPECTION,5999,AMZNMKTPLACE AMAZON.CO,MISCELLANEOUS AND SPECIALTY RETAIL STORES,49.99
13/09/2023,11354,IPS DAY OPPS GILBERT RICHARDS CENTRE,5999,AMZNMKTPLACE,MISCELLANEOUS AND SPECIALTY RETAIL STORES,22.99
13/09/2023,10448,RESIDENTIAL - GRAVEL HILL,5999,AMZNMKTPLACE,MISCELLANEOUS AND SPECIALTY RETAIL STORES,14.98
13/09/2023,11507,CARE LEAVERS,5814,COSTA COFFEE 43011699,FAST FOOD RESTAURANTS,10.2
13/09/2023,11928,COMMUNITY SUPPORT GRANTS,5999,AMZNMKTPLACE,MISCELLANEOUS AND SPECIALTY RETAIL STORES,41.83
13/09/2023,11354,IPS DAY OPPS GILBERT RICHARDS CENTRE,5499,WWW.JOHALDAIRIES.CO.UK,"MISC FOOD STORE-CONVENIENCE,MRKT,SPLTY,VENDNG MACS",21.75
13/09/2023,11040,LIBRARIES - WILLENHALL LIBRARY,5950,NISBETS LTD,CRYSTAL AND GLASSWARE STORES,62.38
13/09/2023,11570,EARLY YEARS REGISTRATION & INSPECTION,5942,AMZN MKTP UK 145RR74A4,BOOK STORES,26.85
13/09/2023,10469,RESIDENTIAL - JOBS LANE,5999,AMZNMKTPLACE AMAZON.CO,MISCELLANEOUS AND SPECIALTY RETAIL STORES,8.5
13/09/2023,11441,ADULT ED AOL 14.1 - NUMERACY,5969,FINDEL EDUCATION,DIRECT MARKETING-OTHER DIRECT MARKETERS/NOT ELSEW.,49.25
13/09/2023,11870,IPS LD WILFRED SPENCER CENTRE,5411,ALDI 15 772,"GROCERY STORES, SUPERMARKETS",74.24
13/09/2023,11870,IPS LD WILFRED SPENCER CENTRE,5411,ALDI 15 772,"GROCERY STORES, SUPERMARKETS",3.72
13/09/2023,11870,IPS LD WILFRED SPENCER CENTRE,5499,WWW.JOHALDAIRIES.CO.UK,"MISC FOOD STORE-CONVENIENCE,MRKT,SPLTY,VENDNG MACS",3.9
13/09/2023,10382,CHILDREN?S SENSORY SUPPORT SERVICE,5411,ALDI 108 772,"GROCERY STORES, SUPERMARKETS",23.65
13/09/2023,11764,HOSPITAL EDUCATION & OUTREACH SERVICE,5311,HIGH STREET VOUCHERS,DEPARTMENT STORES,100
13/09/2023,10383,IPS HWC KNIGHTLOW,5811,BRAKES (STORED CARDS),CATERERS,191.44
13/09/2023,11570,EARLY YEARS REGISTRATION & INSPECTION,5999,AMZNMKTPLACE AMAZON.CO,MISCELLANEOUS AND SPECIALTY RETAIL STORES,41.85
13/09/2023,10448,RESIDENTIAL - GRAVEL HILL,4784,WWW.M6TOLL.CO.UK,"BRIDGE AND ROAD FEES, TOLLS",8.6
13/09/2023,11829,PARKING ENFORCEMENT,5655,SPORTSDIRECT.COM,"SPORTS APPAREL, RIDING APPAREL STORES",49.99
13/09/2023,11928,COMMUNITY SUPPORT GRANTS,5999,AMZNMKTPLACE AMAZON.CO,MISCELLANEOUS AND SPECIALTY RETAIL STORES,14.49
13/09/2023,11049,CREMATORIUM,5411,TESCO STORES 2325,"GROCERY STORES, SUPERMARKETS",8.7
13/09/2023,11928,COMMUNITY SUPPORT GRANTS,5999,AMZNMKTPLACE,MISCELLANEOUS AND SPECIALTY RETAIL STORES,17.5
13/09/2023,11928,COMMUNITY SUPPORT GRANTS,5999,AMZNMKTPLACE AMAZON.CO,MISCELLANEOUS AND SPECIALTY RETAIL STORES,45.48
13/09/2023,11984,IPS MAYMORN RESOURCE CENTRE,4111,WWW.WMCA.ORG.UK,"TRANSPRTN-SUBRBN & LOCAL COMTR PSNGR, INCL FERRIES",10
13/09/2023,11826,REPAIR & MAINTENANCE,5399,WWW.DUOMO.CO.UK,MISCELLANEOUS GENERAL MERCHANDISE,428.7
13/09/2023,11826,REPAIR & MAINTENANCE,5211,SCREWFIX DIR LTD,"BUILDING MATERIALS, LUMBER STORES",130.98
13/09/2023,11507,CARE LEAVERS,5999,AMZNMKTPLACE AMAZON.CO,MISCELLANEOUS AND SPECIALTY RETAIL STORES,98
13/09/2023,10084,SECTION17 PAYMENTS WEST,4131,WEST MIDLANDS TRAV,BUS LINES,30
13/09/2023,11507,CARE LEAVERS,5999,AMZNMKTPLACE,MISCELLANEOUS AND SPECIALTY RETAIL STORES,49.86
